﻿Body Name,Supplier Code,Supplier Name,Transaction Ref/No,Their Ref,Date Paid,Gross Value (Detail),VAT Amount,7CCC - Level 7 Cost Centre Code,7CCN - Level 7 Cost Centre Name,9AC - Level 9 Account Code,9AN - Level 9 Account Name,4CCN - Level 4 Cost Centre Name
Blackpool Council,1035030,Wicksteed Leisure Ltd,551853,0000810823,23/11/2020,7264.8,1210.8,PRKOP1,Parks Operational Manager  1,3041,Other Materials,Community & Env Services
Blackpool Council,1012789,Advanced Business Solutions (Fka Coa),554265,ARBK/99055121,17/11/2020,682.79,113.8,FBBCA,Accountancy,3532,Comp-Running & License Costs,Resources
Blackpool Council,1006944,Siemens Financial Services Ltd,554346,244/20/0250118,16/11/2020,1500,250,FCADA,Customer Services,3001,Office Equipment Purchase,Resources
Blackpool Council,1085804,Alcium Software Limited,554929,INV-20415,09/11/2020,300,50,PTA,Economic Development,3313,General Expenses,Places
Blackpool Council,1059205,Safeplace Security Limited,555239,3042,12/11/2020,477,79.5,CCTV,Cctv,3041,Other Materials,Community & Env Services
Blackpool Council,1121728,Arrow County Supplies,555946,4856617,09/11/2020,313.28,0,ZM0018,Highways & Engineering,9773,Orders Received Not Invoiced,Blackpool Services
Blackpool Council,1121728,Arrow County Supplies,555946,4856617,09/11/2020,375.94,62.66,ZM0018,Highways & Engineering,9511A,Stocks Efin,Blackpool Services
Blackpool Council,1010027,Chadwicks,556323,0963/00177500,05/11/2020,376.38,62.73,SCHEME,Highways Schemes,3041,Other Materials,Community & Env Services
Blackpool Council,1009610,Diversey Limited,556429,147310725,02/11/2020,358.32,0,ZM0018,Highways & Engineering,9773,Orders Received Not Invoiced,Blackpool Services
Blackpool Council,1009610,Diversey Limited,556429,147310725,02/11/2020,429.98,71.66,ZM0018,Highways & Engineering,9511A,Stocks Efin,Blackpool Services
Blackpool Council,1010429,Blackburn With Darwen Bc,556488,484161,11/11/2020,25000,0,FD0021,Subscriptions,3711,Subscriptions,Budgets Outside Cash Limits
Blackpool Council,1058510,Lifeline Language Services Ltd,556492,1220109,04/11/2020,258.24,43.04,JEA,Senior Management,5507,Personal,Children'S Services
Blackpool Council,1018041,Tom Lucas Partnership Limited,556500,L20011,04/11/2020,6000,1000,AED,Capital Projects,3413,Consultants,Resources
Blackpool Council,1020575,Blachere Illumination Uk Ltd,556501,SI52696,04/11/2020,2422.98,403.83,PJLA,Maintenance,3041,Other Materials,Places
Blackpool Council,1010429,Blackburn With Darwen Bc,556509,489146,11/11/2020,21054,0,AD0321,Lrf Food Reserve (Stock),3801,Other Expenses,Contingencies
Blackpool Council,1010429,Blackburn With Darwen Bc,556510,489148,11/11/2020,3518,0,AD0321,Lrf Food Reserve (Stock),3801,Other Expenses,Contingencies
Blackpool Council,1010429,Blackburn With Darwen Bc,556511,480415,11/11/2020,10761.66,0,CWAN,Children With Additional Needs,2211,Casual Hire,Children'S Services
Blackpool Council,1010429,Blackburn With Darwen Bc,556511,480415,11/11/2020,8198.15,0,CWAN,Children With Additional Needs,3008,Educational Equipment,Children'S Services
Blackpool Council,1121663,Venture Arts,556541,8591,02/11/2020,800,0,AHG,Art Gallery Summary,3456,Payment To Artists,Places
Blackpool Council,1058510,Lifeline Language Services Ltd,556546,1320025,04/11/2020,266.64,44.44,JEA,Senior Management,5507,Personal,Children'S Services
Blackpool Council,1090628,The Furniture Recycling Group,556549,INV23685,11/11/2020,278.12,46.35,CWASTE,Commercial Waste,4514,Contract 'E',Community & Env Services
Blackpool Council,1115336,Place North West,556634,4491,05/11/2020,3000,500,HJA,Growth,3315,Marketing,Places
Blackpool Council,1094424,The Networking People,556647,SI108458,05/11/2020,1726.57,287.76,CCTV,Cctv,3041,Other Materials,Community & Env Services
Blackpool Council,1094424,The Networking People,556648,SI108456,05/11/2020,18495.35,3082.56,FGAA,Ict Corporate Services,3532,Comp-Running & License Costs,Resources
Blackpool Council,1094424,The Networking People,556710,SI108460,06/11/2020,2100,350,CEMCRE,Cems Crems Etc,3531,Computer-H'Ware Purchase,Governance & Partnerships
Blackpool Council,1024186,Solon Security,556713,SI200010245,05/11/2020,646.8,107.8,PYSA,Community Safety,3313,General Expenses,Community & Env Services
Blackpool Council,1008512,Killgerm Chemicals Ltd,556721,SI02-0288531,06/11/2020,598.8,99.8,PEST,Pest Control,3041,Other Materials,Community & Env Services
Blackpool Council,1049304,Insight Direct (Uk) Ltd,556723,5012567,06/11/2020,7674.24,1279.04,FGAA,Ict Corporate Services,3532,Comp-Running & License Costs,Resources
Blackpool Council,1068747,Local Government Information Unit,556725,305629,04/11/2020,1248,208,BCA,Corp And Member Services,0911,Training Expenses,Governance & Partnerships
Blackpool Council,1033190,Apse,556765,2021/1047,05/11/2020,738,123,SCLEAN,Street Cleaning,3711,Subscriptions,Community & Env Services
Blackpool Council,1121728,Arrow County Supplies,556766,4859047,18/11/2020,265.44,44.24,ZM0018,Highways & Engineering,9511A,Stocks Efin,Blackpool Services
Blackpool Council,1058510,Lifeline Language Services Ltd,556770,1320033,05/11/2020,266.64,44.44,JEA,Senior Management,5507,Personal,Children'S Services
Blackpool Council,1008713,John Fausset Ltd,556773,12352,18/11/2020,1460,0,ZM0018,Highways & Engineering,9773,Orders Received Not Invoiced,Blackpool Services
Blackpool Council,1008713,John Fausset Ltd,556773,12352,18/11/2020,1752,292,ZM0018,Highways & Engineering,9511A,Stocks Efin,Blackpool Services
Blackpool Council,1115696,General Utilities North West Ltd,556804,BC/9041,04/11/2020,1950,325,CTABYA,Ltp Scheme 19/20,6501,Contract Payments,Capital - Commnctn & Regen
Blackpool Council,1119493,Centerprise International Ltd,556890,90247282,06/11/2020,935.4,155.9,CS0739,Ict Refresh,6525,I.T. Hardware Purchase,Capital - Resources
Blackpool Council,1121485,Philredom Ltd,556910,PL201008-25,06/11/2020,666.1,0,OPAREA,Opportunity Areas,4515,Contract Services,Places
Blackpool Council,1064524,Studio Due Uk Limited,556917,889,06/11/2020,2242.8,373.8,PJNA,New Features / Schemes - C & E,3041,Other Materials,Places
Blackpool Council,1064524,Studio Due Uk Limited,556918,202826,06/11/2020,14880,2480,PJNB,Lightpool,3041,Other Materials,Places
Blackpool Council,1009610,Diversey Limited,556925,147311888,06/11/2020,358.3,0,ZM0018,Highways & Engineering,9773,Orders Received Not Invoiced,Blackpool Services
Blackpool Council,1009610,Diversey Limited,556925,147311888,06/11/2020,429.96,71.66,ZM0018,Highways & Engineering,9511A,Stocks Efin,Blackpool Services
Blackpool Council,1088658,D-Tech International Ltd,556929,7918,06/11/2020,1188,198,LBE,Outreach Worker,3532,Comp-Running & License Costs,Places
Blackpool Council,1088658,D-Tech International Ltd,556929,7918,06/11/2020,1782,297,LBF,Library Management,3532,Comp-Running & License Costs,Places
Blackpool Council,1117813,Sigma Pharmaceuticals Plc,556930,148472,11/11/2020,1331.09,63.39,PUBH18,Stop Smoking Services & Interv,4501,Private Contractors,Public Health
Blackpool Council,1034222,Teleshore (Uk) Ltd,556932,30524,06/11/2020,1392,232,CEMCRE,Cems Crems Etc,3041,Other Materials,Governance & Partnerships
Blackpool Council,1094424,The Networking People,556943,SI108463,06/11/2020,4847.45,807.91,FGAA,Ict Corporate Services,3531,Computer-H'Ware Purchase,Resources
Blackpool Council,1123254,Anglezarke Building Consultancy Limited,556960,572,06/11/2020,1080,180,PLCAAA,Building Control,3413,Consultants,Places
Blackpool Council,1123071,Whistlejacket London Limited,556969,INV-0475,09/11/2020,4143.6,690.6,HJA,Growth,3315,Marketing,Places
Blackpool Council,1008175,Manns Music,556975,167961,02/11/2020,1181.28,196.88,MUSIC,Music & Cultural Education,3008,Educational Equipment,Children'S Services
Blackpool Council,1075307,Team Netsol Limited,556982,101877,12/11/2020,20100,3350,FCACA,Benefits - Admin,3532,Comp-Running & License Costs,Resources
Blackpool Council,1075307,Team Netsol Limited,556983,101878,12/11/2020,1680,280,FCACA,Benefits - Admin,3532,Comp-Running & License Costs,Resources
Blackpool Council,1009208,Geismar (Uk) Limited,556986,002051021,04/11/2020,960,160,ENGINE,Engineering,3041,Other Materials,Community & Env Services
Blackpool Council,1112116,Lois V Singer T/A Poppy Singer,556994,1202,09/11/2020,9531.3,0,AHHBA,Blackpool Museum,3801,Other Expenses,Places
Blackpool Council,1009501,Egbert H Taylor & Co Ltd,556995,INV000016020,06/11/2020,1152,192,CWASTE,Commercial Waste,3041,Other Materials,Community & Env Services
Blackpool Council,1035030,Wicksteed Leisure Ltd,556996,0000811652,11/11/2020,432,72,PRKOP1,Parks Operational Manager  1,1012,Premises Maint-Priv.Contractor,Community & Env Services
Blackpool Council,1094424,The Networking People,556998,SI108462,06/11/2020,3129.8,521.63,FGAA,Ict Corporate Services,3521,Landline - Line Rental,Resources
Blackpool Council,1114832,Able 2 Occupational Therapy Services Ltd,557038,20555,04/11/2020,333.48,0,FC1404,Blue Badge Reform,3401,General Services,Resources
Blackpool Council,1094355,Les Mills Fitness Uk Ltd,557042,LMUK-SIV-049231,05/11/2020,405,67.5,LEISUR,Leisure Management,3801,Other Expenses,Community & Env Services
Blackpool Council,1049304,Insight Direct (Uk) Ltd,557045,5019123,11/11/2020,615.43,102.57,FGAB,Ict E-Government,3532,Comp-Running & License Costs,Resources
Blackpool Council,1049304,Insight Direct (Uk) Ltd,557045,5019123,11/11/2020,386.4,64.4,CS0739,Ict Refresh,6525,I.T. Hardware Purchase,Capital - Resources
Blackpool Council,1118489,Transport For The North,557049,FTIN000058,12/11/2020,589.55,0,PTP,Transport Policy,3711,Subscriptions,Places
Blackpool Council,1057663,Wilde Recruitment Ltd,557050,36945,06/11/2020,863.1,143.85,CTAHHA,Tramway Emergency Works,6501,Contract Payments,Capital - Commnctn & Regen
Blackpool Council,1065232,Back Care Solutions Ltd,557073,84842,10/11/2020,554.88,92.48,JA1531,Independent Reviewing Officers,3020,Furniture - Purchase,Children'S Services
Blackpool Council,1072114,Nawdo,557078,20067,10/11/2020,600,0,DOMPFI,Domestic Waste & Waste Pfi,3041,Other Materials,Community & Env Services
Blackpool Council,1094424,The Networking People,557132,SI108472,27/11/2020,5940,990,CGRESO,Resources Schemes,6525,I.T. Hardware Purchase,Capital - Resources
Blackpool Council,1006644,Telewest/Virgin Media Payments Ltd,557133,067437901003,06/11/2020,3560.67,593.44,FGAA,Ict Corporate Services,3521,Landline - Line Rental,Resources
Blackpool Council,1119493,Centerprise International Ltd,557134,90247464,13/11/2020,2493.79,415.63,FGAA,Ict Corporate Services,3531,Computer-H'Ware Purchase,Resources
Blackpool Council,1118715,Alison Black Ltd T/A Sportmax,557138,114282,11/11/2020,680.52,113.42,LEISUR,Leisure Management,3048,Cost Of Goods Sold,Community & Env Services
Blackpool Council,1009079,Pearson Education Ltd,557152,2911570,30/11/2020,329.94,54.99,CWAN,Children With Additional Needs,3008,Educational Equipment,Children'S Services
Blackpool Council,1009079,Pearson Education Ltd,557153,2902621,30/11/2020,1152,192,CWAN,Children With Additional Needs,3008,Educational Equipment,Children'S Services
Blackpool Council,1098899,Browne Jacobson Llp,557154,IN-000060178,06/11/2020,1392,232,FL1259,Pfi Management Costs,4501,Private Contractors,Community & Env Services
Blackpool Council,1049304,Insight Direct (Uk) Ltd,557169,5021715,13/11/2020,1707.6,284.6,BAAA,Legal Services,3533,Computer S/W Purchases,Governance & Partnerships
Blackpool Council,1103450,Blackpool Entertainment Company Limited,557228,INV005313,04/11/2020,345.3,57.55,AEB,Buildings,1301,Rent & Hire Of Premises,Resources
Blackpool Council,1103450,Blackpool Entertainment Company Limited,557229,INV005312,04/11/2020,1040,173.33,FMAK,Acquisitions 9/10,1301,Rent & Hire Of Premises,Places
Blackpool Council,1103142,Dmm International Ltd,557247,1044990,13/11/2020,299.95,49.99,LEISUR,Leisure Management,3801,Other Expenses,Community & Env Services
Blackpool Council,1086788,Idox Software Ltd,557249,7030841,20/11/2020,15000,2500,CWAN,Children With Additional Needs,3533,Computer S/W Purchases,Children'S Services
Blackpool Council,1085729,W V Howe Limited,557250,273546,13/11/2020,459.36,76.56,CATERG,Catering Services,3052,Kitchen (Light) Equip-Purchase,Community & Env Services
Blackpool Council,1123783,Version 1 Analytics Uk Limited Ta/ Version 1,557256,215304,05/11/2020,1863.6,310.6,HS0002,Headstart Evaluation,3801,Other Expenses,Children'S Services
Blackpool Council,1009513,Electro-Wind Ltd,557331,183842,13/11/2020,2940,490,PJLA,Maintenance,3041,Other Materials,Places
Blackpool Council,1006449,Tmp (Uk) Ltd,557332,100001254693,13/11/2020,390.46,65.08,TRA,Traffic Management,4501,Private Contractors,Community & Env Services
Blackpool Council,1115336,Place North West,557336,4511,13/11/2020,540,90,CGICAD,Enterprise Zone,6527,Marketing,Capital - Commnctn & Regen
Blackpool Council,1123075,Survey & Engineering Projects Ltd,557357,5352,11/11/2020,3999,666.5,CGICAD,Enterprise Zone,6514,B.Holes/Site Investgtn/Surveys,Capital - Commnctn & Regen
Blackpool Council,1025240,Key Engineering Supplies Ltd,557359,32988,12/11/2020,272.06,45.34,APCBBE,Extra Support,1606,First Aid Equipment & Supplies,Adult & Families
Blackpool Council,1007385,R S Components Ltd,557365,2200334029,05/11/2020,287.47,47.91,ZM0018,Highways & Engineering,9511A,Stocks Efin,Blackpool Services
Blackpool Council,1007522,Phonak Group A Divison Of Sonova Uk Ltd,557396,2592808091,12/11/2020,3330.24,555.04,CWAN,Children With Additional Needs,3001,Office Equipment Purchase,Children'S Services
Blackpool Council,1107790,Taylek Ltd,557398,INV-16887,11/11/2020,528,88,PJRA,Electrical Infra - Places,3801,Other Expenses,Places
Blackpool Council,1112303,Access-Able (Uk) Limited (Fac001),557479,4212,06/11/2020,2600,0,CX4002,Disabled Facilities Grants,6501,Contract Payments,Capital - Adult Social Care
Blackpool Council,1112303,Access-Able (Uk) Limited (Fac001),557481,4237,18/11/2020,471.92,0,CX4002,Disabled Facilities Grants,6501,Contract Payments,Capital - Adult Social Care
Blackpool Council,1112303,Access-Able (Uk) Limited (Fac001),557486,4234,18/11/2020,4415.5,0,CX4002,Disabled Facilities Grants,6501,Contract Payments,Capital - Adult Social Care
Blackpool Council,1088636,Tarmac Building Products Ltd,557517,SI01853002,06/11/2020,509.08,0,ZM0018,Highways & Engineering,9773,Orders Received Not Invoiced,Blackpool Services
Blackpool Council,1088636,Tarmac Building Products Ltd,557517,SI01853002,06/11/2020,610.9,101.82,ZM0018,Highways & Engineering,9511A,Stocks Efin,Blackpool Services
Blackpool Council,1013064,Tarmac Lafarge Trading Limited,557519,9042440465,04/11/2020,385.11,64.18,ENGINE,Engineering,3041,Other Materials,Community & Env Services
Blackpool Council,1013064,Tarmac Lafarge Trading Limited,557523,9042440466,04/11/2020,521.83,86.97,ENGINE,Engineering,3041,Other Materials,Community & Env Services
Blackpool Council,1013064,Tarmac Lafarge Trading Limited,557528,9042446023,04/11/2020,711.26,118.54,ENGINE,Engineering,3041,Other Materials,Community & Env Services
Blackpool Council,1057663,Wilde Recruitment Ltd,557550,36989,13/11/2020,517.86,86.31,CTAHHA,Tramway Emergency Works,6501,Contract Payments,Capital - Commnctn & Regen
Blackpool Council,1094424,The Networking People,557552,SI108491,27/11/2020,339.67,56.61,APEBBA,Whitegate Cil,3531,Computer-H'Ware Purchase,Adult & Families
Blackpool Council,1094424,The Networking People,557553,SI108492,27/11/2020,660,110,FGAA,Ict Corporate Services,3531,Computer-H'Ware Purchase,Resources
Blackpool Council,1028179,Caci Ltd,557611,ES11376,06/11/2020,2280,380,SYSDEV,Systems Development,3532,Comp-Running & License Costs,Resources
Blackpool Council,1086788,Idox Software Ltd,557612,7030908,20/11/2020,540,90,EYT,Early Years Team,1066,Service Contracts,Children'S Services
Blackpool Council,1117813,Sigma Pharmaceuticals Plc,557617,I181569,19/11/2020,1144.5,54.5,PUBH18,Stop Smoking Services & Interv,4501,Private Contractors,Public Health
Blackpool Council,1076555,Uk Container Maintenance Limited,557656,40317,13/11/2020,2401.56,400.26,CWASTE,Commercial Waste,3041,Other Materials,Community & Env Services
Blackpool Council,1011369,Lancashire County Council,557658,5200214269,30/11/2020,292567,0,FR5001,Concessionary Fares,3401,General Services,Budgets Outside Cash Limits
Blackpool Council,1071925,Groundwork Cheshire Lancs And Merseyside,557662,0000002748,13/11/2020,579.2,0,PU2062,Oa Summer Hday Activities Prog,4501,Private Contractors,Public Health
Blackpool Council,1026811,Stannah Lift Services Ltd,557689,1085237789,03/11/2020,16378,0,CX4002,Disabled Facilities Grants,6501,Contract Payments,Capital - Adult Social Care
Blackpool Council,1026811,Stannah Lift Services Ltd,557690,1085238216,04/11/2020,4935,0,CX4002,Disabled Facilities Grants,6501,Contract Payments,Capital - Adult Social Care
Blackpool Council,1094424,The Networking People,557692,SI108473,27/11/2020,16034.4,2672.4,FGAA,Ict Corporate Services,3527,Communication Lines,Resources
Blackpool Council,1120172,Breaking Free Online Ltd,557695,568,20/11/2020,28800,4800,PUBH01,Public Health Misc,4501,Private Contractors,Public Health
Blackpool Council,1112303,Access-Able (Uk) Limited (Fac001),557701,4236,18/11/2020,3005,0,CX4002,Disabled Facilities Grants,6501,Contract Payments,Capital - Adult Social Care
Blackpool Council,1118402,Tony Gallagher T/A Supporting Learning Ltd,557706,VSSEP-OCT20TG,13/11/2020,832.5,0,VIRTUL,Virtual Hub,5555,Educational Support,Children'S Services
Blackpool Council,1122491,Planday Limited,557709,INV00099647,13/11/2020,2923.2,487.2,LEISUR,Leisure Management,3801,Other Expenses,Community & Env Services
Blackpool Council,1094355,Les Mills Fitness Uk Ltd,557710,LMUK-SIV-049163,05/11/2020,405,67.5,LEISUR,Leisure Management,3801,Other Expenses,Community & Env Services
Blackpool Council,1094355,Les Mills Fitness Uk Ltd,557711,LMUK-SIV-049210,05/11/2020,459,76.5,LEISUR,Leisure Management,3801,Other Expenses,Community & Env Services
Blackpool Council,1007385,R S Components Ltd,557717,2200361377,09/11/2020,614.4,102.4,PJNA,New Features / Schemes - C & E,3041,Other Materials,Places
Blackpool Council,1096596,Highfield Pfi Spv Ltd,557725,SI10078,09/11/2020,401157.54,66859.59,EM1029,Highfield Pfi,4515,Contract Services,Children'S Services
Blackpool Council,1090628,The Furniture Recycling Group,557729,INV23871,11/11/2020,334.88,55.81,CWASTE,Commercial Waste,4514,Contract 'E',Community & Env Services
Blackpool Council,1009417,Eriks Industrial Services Fna Wyko,557735,01331153,13/11/2020,470.4,78.4,PJLA,Maintenance,3041,Other Materials,Places
Blackpool Council,1120801,Eet Europarts Ltd,557738,3594412,20/11/2020,403.2,67.2,CCTV,Cctv,3041,Other Materials,Community & Env Services
Blackpool Council,1114857,University Of Brighton,557743,U0145177,12/11/2020,8272,0,HS0002,Headstart Evaluation,3401,General Services,Children'S Services
Blackpool Council,1114857,University Of Brighton,557743,U0145177,12/11/2020,4368,0,HS0002,Headstart Evaluation,3601,Subsistence,Children'S Services
Blackpool Council,1114857,University Of Brighton,557745,U0145181,12/11/2020,19153,0,HS0002,Headstart Evaluation,3401,General Services,Children'S Services
Blackpool Council,1121728,Arrow County Supplies,557777,4862165,05/11/2020,900,0,ZM0018,Highways & Engineering,9773,Orders Received Not Invoiced,Blackpool Services
Blackpool Council,1121728,Arrow County Supplies,557777,4862165,05/11/2020,1080,180,ZM0018,Highways & Engineering,9511A,Stocks Efin,Blackpool Services
Blackpool Council,1007023,Access Uk Ltd - Selima,557780,915156,18/11/2020,39148.8,6524.8,FB0181,Payroll General,3532,Comp-Running & License Costs,Resources
Blackpool Council,1006633,Technology Services Ltd T/A The Lock Shop,557784,31887,10/11/2020,273.26,45.54,GATE,Alleygates,3041,Other Materials,Community & Env Services
Blackpool Council,1006633,Technology Services Ltd T/A The Lock Shop,557785,31897,11/11/2020,396,66,GATE,Alleygates,3041,Other Materials,Community & Env Services
Blackpool Council,1088636,Tarmac Building Products Ltd,557788,SI01830342,04/11/2020,1128,0,ZM0018,Highways & Engineering,9773,Orders Received Not Invoiced,Blackpool Services
Blackpool Council,1088636,Tarmac Building Products Ltd,557788,SI01830342,04/11/2020,1353.6,225.6,ZM0018,Highways & Engineering,9511A,Stocks Efin,Blackpool Services
Blackpool Council,1058510,Lifeline Language Services Ltd,557801,1320047,12/11/2020,302.4,50.4,JEA,Senior Management,5507,Personal,Children'S Services
Blackpool Council,1119493,Centerprise International Ltd,557803,90247876,20/11/2020,516.13,86.02,CS0739,Ict Refresh,6525,I.T. Hardware Purchase,Capital - Resources
Blackpool Council,1008525,Kingswood Office Supplies Limited,557817,387690,03/11/2020,315.6,52.6,EDDIV,Education Diversity,3302,Stationery,Children'S Services
Blackpool Council,1091050,Howard Palmer T/A Trojan Travel,557822,023,02/11/2020,1700,0,TRCHIL,Integrated Transport Children,2201,Contract Hire,Community & Env Services
Blackpool Council,1041445,The Association Of Electoral Administrators,557831,27686,19/11/2020,342,57,BGA,Electoral Services,3711,Subscriptions,Governance & Partnerships
Blackpool Council,1116820,Darren Newman Employment Law Ltd,557832,INV-0452,20/11/2020,3240,540,EM1021,Business Partnering Schls&Corp,0911,Training Expenses,Chief Executive
Blackpool Council,1019678,Smirthwaite Ltd,557903,181553,20/11/2020,1290,215,MTE,Undefined Age Group,5401,Aids To Daily Living,Adult & Families
Blackpool Council,1086714,Liveasy Ltd,557920,BP0139,06/11/2020,758.4,126.4,APDBBB,Arc,3066,Personal Needs Of Clients,Adult & Families
Blackpool Council,1071928,Civica Uk Limited,557922,C/PY205278,20/11/2020,18000,3000,FC1211,Cashiers,3532,Comp-Running & License Costs,Resources
Blackpool Council,1121663,Venture Arts,557923,8652,20/11/2020,3606.64,0,AHG,Art Gallery Summary,3456,Payment To Artists,Places
Blackpool Council,1121122,Angela Latham Psychology Services Ltd,557925,120303,19/11/2020,350,0,BSTPRJ,Better Start Projects,3401,General Services,Better Start Projects
Blackpool Council,1099490,Vp-Av Ltd,557926,52041,20/11/2020,355.54,59.26,LIFEVE,Life Events Reg & Care,3532,Comp-Running & License Costs,Governance & Partnerships
Blackpool Council,1099753,Nimble Group It Ltd,557938,INV-11585,13/11/2020,4225.09,704.18,FGAC,Ict Technical Support,3532,Comp-Running & License Costs,Resources
Blackpool Council,1007206,Road Safety Services Ltd,557941,87722,04/11/2020,424.8,70.8,SCHEME,Highways Schemes,3401,General Services,Community & Env Services
Blackpool Council,1111496,Bes Healthcare Ltd,557946,INVBES150725,19/11/2020,600,100,MTE,Undefined Age Group,5401,Aids To Daily Living,Adult & Families
Blackpool Council,1115480,Seating Matters Ltd,557950,39775,20/11/2020,6604.8,1100.8,MTE,Undefined Age Group,5401,Aids To Daily Living,Adult & Families
Blackpool Council,1094277,Aitkens Sportsturf Ltd,557951,4216,12/11/2020,948.42,158.07,PRKOP1,Parks Operational Manager  1,3041,Other Materials,Community & Env Services
Blackpool Council,1114036,Odlings Ltd T/A The Columbaria Co,557953,INV0074186,06/11/2020,547.2,91.2,CEMCRE,Cems Crems Etc,3454,Remove And Refix Memorials,Governance & Partnerships
Blackpool Council,1114036,Odlings Ltd T/A The Columbaria Co,557954,INV0074285,13/11/2020,547.2,91.2,CEMCRE,Cems Crems Etc,3454,Remove And Refix Memorials,Governance & Partnerships
Blackpool Council,1115477,REDACTED PERSONAL DATA,557965,20201025-0030-0,24/11/2020,280,0,AHG,Art Gallery Summary,3456,Payment To Artists,Places
Blackpool Council,1008743,James Leckey Design Ltd T/A Vida Global,557976,OP/I165028,06/11/2020,288,48,MTE,Undefined Age Group,5401,Aids To Daily Living,Adult & Families
Blackpool Council,1049200,R82 Uk Ltd,557977,284176,09/11/2020,308.4,51.4,MTE,Undefined Age Group,5401,Aids To Daily Living,Adult & Families
Blackpool Council,1049942,Quest 88 Limited,557983,96122,13/11/2020,275.4,45.9,MTE,Undefined Age Group,5401,Aids To Daily Living,Adult & Families
Blackpool Council,1006449,Tmp (Uk) Ltd,558004,100001256048,25/11/2020,390.46,65.08,TRA,Traffic Management,4501,Private Contractors,Community & Env Services
Blackpool Council,1058510,Lifeline Language Services Ltd,558006,1320096,20/11/2020,251.64,41.94,JEA,Senior Management,5507,Personal,Children'S Services
Blackpool Council,1013064,Tarmac Lafarge Trading Limited,558017,9042475077,11/11/2020,266.14,44.35,ENGINE,Engineering,3041,Other Materials,Community & Env Services
Blackpool Council,1013064,Tarmac Lafarge Trading Limited,558018,9042488258,13/11/2020,776.12,129.35,ENGINE,Engineering,3041,Other Materials,Community & Env Services
Blackpool Council,1013064,Tarmac Lafarge Trading Limited,558019,9042475078,11/11/2020,363.06,60.51,ENGINE,Engineering,3041,Other Materials,Community & Env Services
Blackpool Council,1013064,Tarmac Lafarge Trading Limited,558020,9042481166,11/11/2020,1361.44,226.9,ENGINE,Engineering,3041,Other Materials,Community & Env Services
Blackpool Council,1013064,Tarmac Lafarge Trading Limited,558021,9042459287,06/11/2020,330.97,55.16,ENGINE,Engineering,3041,Other Materials,Community & Env Services
Blackpool Council,1013064,Tarmac Lafarge Trading Limited,558023,9042466591,06/11/2020,269.96,44.99,ENGINE,Engineering,3041,Other Materials,Community & Env Services
Blackpool Council,1013064,Tarmac Lafarge Trading Limited,558024,9042459288,06/11/2020,571.2,95.2,ENGINE,Engineering,3041,Other Materials,Community & Env Services
Blackpool Council,1013064,Tarmac Lafarge Trading Limited,558025,9042466592,06/11/2020,342.73,57.12,ENGINE,Engineering,3041,Other Materials,Community & Env Services
Blackpool Council,1027764,Colins Travel,558030,68,05/11/2020,1377,0,TRCHIL,Integrated Transport Children,2201,Contract Hire,Community & Env Services
Blackpool Council,1027764,Colins Travel,558031,70,05/11/2020,1479,0,TRCHIL,Integrated Transport Children,2201,Contract Hire,Community & Env Services
Blackpool Council,1008440,Lancashire County Council,558032,5200217077,06/11/2020,1106.26,184.38,FK1006,Head Of Workforce & Org Dev,6214,Legal Services,Chief Executive
Blackpool Council,1088636,Tarmac Building Products Ltd,558052,SI01862897,25/11/2020,1128,0,ZM0018,Highways & Engineering,9773,Orders Received Not Invoiced,Blackpool Services
Blackpool Council,1088636,Tarmac Building Products Ltd,558052,SI01862897,25/11/2020,1353.6,225.6,ZM0018,Highways & Engineering,9511A,Stocks Efin,Blackpool Services
Blackpool Council,1044156,Pell Frischmann,558056,64014012,03/11/2020,2820,470,TRB,Maintenance & Works,4501,Private Contractors,Community & Env Services
Blackpool Council,1006449,Tmp (Uk) Ltd,558060,100001256233,26/11/2020,354.96,59.16,TRA,Traffic Management,4501,Private Contractors,Community & Env Services
Blackpool Council,1053894,Scl - Society Of Chief Librarians,558061,1814,02/11/2020,445.88,0,LBF,Library Management,3711,Subscriptions,Places
Blackpool Council,1086156,Water Saving Techniques Limited,558062,4880,04/11/2020,9691.2,1615.2,PARADE,Parades & Seawall,1012,Premises Maint-Priv.Contractor,Community & Env Services
Blackpool Council,1086156,Water Saving Techniques Limited,558063,4881,03/11/2020,14892,2482,PARADE,Parades & Seawall,1012,Premises Maint-Priv.Contractor,Community & Env Services
Blackpool Council,1082067,Squire Patton Boggs (Uk) Llp,558065,2678770,24/11/2020,5763.6,960.6,CGTBBB,Conference Centre,6506,Consultants Fees,Capital - Commnctn & Regen
Blackpool Council,1117351,Open Text,558066,9002108821,26/11/2020,489.74,81.62,CTAHHA,Tramway Emergency Works,6506,Consultants Fees,Capital - Commnctn & Regen
Blackpool Council,1057663,Wilde Recruitment Ltd,558069,37019,20/11/2020,517.86,86.31,CTAHHA,Tramway Emergency Works,6501,Contract Payments,Capital - Commnctn & Regen
Blackpool Council,1097432,Colette Cassin Communications Consultancy,558070,00/03,09/11/2020,4000,0,PRM,Publications,3301,Printing,Places
Blackpool Council,1049304,Insight Direct (Uk) Ltd,558073,5031468,20/11/2020,3330.59,555.1,FGAA,Ict Corporate Services,3532,Comp-Running & License Costs,Resources
Blackpool Council,1027764,Colins Travel,558075,69,05/11/2020,1377,0,TRCHIL,Integrated Transport Children,2201,Contract Hire,Community & Env Services
Blackpool Council,1049304,Insight Direct (Uk) Ltd,558087,5038744,26/11/2020,9004.72,1500.79,FGAA,Ict Corporate Services,3531,Computer-H'Ware Purchase,Resources
Blackpool Council,1013326,Dsg Retail Ltd,558088,17326923,03/11/2020,478,79.66,SCLEAN,Street Cleaning,3041,Other Materials,Community & Env Services
Blackpool Council,1094424,The Networking People,558098,SI108511,27/11/2020,6381.28,1063.55,CGRESO,Resources Schemes,6525,I.T. Hardware Purchase,Capital - Resources
Blackpool Council,1113103,Joseph Boniface Architects Ltd,558099,JBA337 A-C,11/11/2020,1242,207,CGOAAA,Quality Corridor,6502,Grants & Advances,Capital - Commnctn & Regen
Blackpool Council,1094424,The Networking People,558100,SI108512,27/11/2020,8355.77,1392.63,CGRESO,Resources Schemes,6525,I.T. Hardware Purchase,Capital - Resources
Blackpool Council,1094424,The Networking People,558101,SI108513,27/11/2020,7933.33,1322.22,CGRESO,Resources Schemes,6525,I.T. Hardware Purchase,Capital - Resources
Blackpool Council,1094424,The Networking People,558105,SI108514,27/11/2020,5600,933.33,CGRESO,Resources Schemes,6525,I.T. Hardware Purchase,Capital - Resources
Blackpool Council,1026811,Stannah Lift Services Ltd,558155,1085241115,12/11/2020,6335,0,CX4002,Disabled Facilities Grants,6501,Contract Payments,Capital - Adult Social Care
Blackpool Council,1094424,The Networking People,558157,SI108515,27/11/2020,933.34,155.56,CGRESO,Resources Schemes,6525,I.T. Hardware Purchase,Capital - Resources
Blackpool Council,1090774,Richardson Traction Limited,558158,21686,06/11/2020,960,160,PJAA,"Erection, Operation & Dismantl",3006,Hire Of Equipment,Places
Blackpool Council,1117713,Allied Publicity Services (Manchester) Ltd,558162,C44992,26/11/2020,906.7,151.12,FC1404,Blue Badge Reform,3401,General Services,Resources
Blackpool Council,1094424,The Networking People,558163,SI108516,27/11/2020,1998.34,333.06,CGRESO,Resources Schemes,6525,I.T. Hardware Purchase,Capital - Resources
Blackpool Council,1006099,Blackpool Teaching Hospitals Nhs Ft,558165,1110055865,06/11/2020,5214.05,869.01,PUBH02,Sexual Health Services-Contrac,4501,Private Contractors,Public Health
Blackpool Council,1102823,Wilde Consultants Limited,558166,20062,27/11/2020,5408.87,901.48,TRA,Traffic Management,4501,Private Contractors,Community & Env Services
Blackpool Council,1009234,Gary Roy Kirkham,558168,GK40,05/11/2020,873,0,TRCHIL,Integrated Transport Children,2201,Contract Hire,Community & Env Services
Blackpool Council,1117846,University Of Birmingham Enterprise Ltd,558169,70428080,12/11/2020,4200,700,EP8007,Tic Maternity Pathway,3401,General Services,Tic Maternity Pathway
Blackpool Council,1115493,Kennet Equipment Leasing Ltd,558175,MI/0127587,11/11/2020,282.37,47.06,CATERG,Catering Services,4501,Private Contractors,Community & Env Services
Blackpool Council,1009922,Cipfa,558177,3155072,20/11/2020,414,69,FBBCA,Accountancy,0915,Conferences,Resources
Blackpool Council,1114704,Morson Human Resources Ltd,558205,HS311292,04/11/2020,2310,385,CTAHHI,Tramway Extention,6506,Consultants Fees,Capital - Commnctn & Regen
Blackpool Council,1055691,Norbain Sd Ltd,558206,I2958836,06/11/2020,1762.8,293.8,CCTV,Cctv,3012,Other Equipment,Community & Env Services
Blackpool Council,1123126,Matt Haylett T/A Mh Lighting,558207,216,05/11/2020,900,0,PJRA,Electrical Infra - Places,3308,Servicing,Places
Blackpool Council,1006099,Blackpool Teaching Hospitals Nhs Ft,558208,1110055822,06/11/2020,6108.9,1018.15,PUBH18,Stop Smoking Services & Interv,4501,Private Contractors,Public Health
Blackpool Council,1107600,Click 4 Assistance Ltd,558211,INV058549,27/11/2020,394.92,65.82,PBF,Communications,3535,Website Costs,Places
Blackpool Council,1086772,Taylor Transformers Ltd,558219,49648,27/11/2020,864,144,PJOA,Commercial & Marketing,3041,Other Materials,Places
Blackpool Council,1008722,J.A. Jones And Sons (Fac036 Payment),558224,9653796,20/11/2020,2760,460,PRKOP1,Parks Operational Manager  1,3041,Other Materials,Community & Env Services
Blackpool Council,1095408,Jay Salisbury Equipment Services,558231,20921,20/11/2020,307.2,51.2,CEMCRE,Cems Crems Etc,3801,Other Expenses,Governance & Partnerships
Blackpool Council,1008454,Police & Crime Commissioner For Lancashire,558244,7500012507,03/11/2020,859.53,0,FBBBB,"Insur, Scrutiny & Emerg Planin",3711,Subscriptions,Resources
Blackpool Council,1006449,Tmp (Uk) Ltd,558323,100001256391,27/11/2020,851.9,141.98,HJA,Growth,3315,Marketing,Places
Blackpool Council,1071928,Civica Uk Limited,558324,C/LE204299,03/11/2020,9000,1500,LIFEVE,Life Events Reg & Care,3532,Comp-Running & License Costs,Governance & Partnerships
Blackpool Council,1017722,Terrys Cut Price Carpets Ltd,558326,1082,06/11/2020,1826.4,304.4,FC1802,Social Fund - Client,5210,Community Care Support,Resources
Blackpool Council,1066729,Equis Associates Limited,558334,12-69-PG-BC,13/11/2020,17400,2900,CTAHHA,Tramway Emergency Works,6506,Consultants Fees,Capital - Commnctn & Regen
Blackpool Council,1025240,Key Engineering Supplies Ltd,558338,33485,05/11/2020,695.04,0,ZM0018,Highways & Engineering,9773,Orders Received Not Invoiced,Blackpool Services
Blackpool Council,1025240,Key Engineering Supplies Ltd,558338,33485,05/11/2020,834.05,139.01,ZM0018,Highways & Engineering,9511A,Stocks Efin,Blackpool Services
Blackpool Council,1114541,Integrity Print Ltd,558341,1294307,27/11/2020,896.4,149.4,PARADM,Parking Administration,3302,Stationery,Budgets Outside Cash Limits
Blackpool Council,1114541,Integrity Print Ltd,558342,1294308,27/11/2020,1956,326,PARADM,Parking Administration,3302,Stationery,Budgets Outside Cash Limits
Blackpool Council,1006292,Vodafone Corporate Ltd,558343,OO08640,03/11/2020,298.8,49.8,FGAA,Ict Corporate Services,3531,Computer-H'Ware Purchase,Resources
Blackpool Council,1006292,Vodafone Corporate Ltd,558344,OO34824,04/11/2020,418.8,69.8,FGAA,Ict Corporate Services,3531,Computer-H'Ware Purchase,Resources
Blackpool Council,1006292,Vodafone Corporate Ltd,558345,OO34825,04/11/2020,418.8,69.8,FGAA,Ict Corporate Services,3531,Computer-H'Ware Purchase,Resources
Blackpool Council,1006292,Vodafone Corporate Ltd,558346,OO34826,04/11/2020,418.8,69.8,FGAA,Ict Corporate Services,3531,Computer-H'Ware Purchase,Resources
Blackpool Council,1006292,Vodafone Corporate Ltd,558347,OO34827,04/11/2020,418.8,69.8,FGAA,Ict Corporate Services,3531,Computer-H'Ware Purchase,Resources
Blackpool Council,1006292,Vodafone Corporate Ltd,558348,OO34828,04/11/2020,418.8,69.8,FGAA,Ict Corporate Services,3531,Computer-H'Ware Purchase,Resources
Blackpool Council,1006292,Vodafone Corporate Ltd,558349,OO34829,04/11/2020,418.8,69.8,FGAA,Ict Corporate Services,3531,Computer-H'Ware Purchase,Resources
Blackpool Council,1006292,Vodafone Corporate Ltd,558352,OO34832,04/11/2020,418.8,69.8,FGAA,Ict Corporate Services,3531,Computer-H'Ware Purchase,Resources
Blackpool Council,1006292,Vodafone Corporate Ltd,558353,OO34833,04/11/2020,418.8,69.8,FGAA,Ict Corporate Services,3531,Computer-H'Ware Purchase,Resources
Blackpool Council,1006292,Vodafone Corporate Ltd,558356,OO34836,04/11/2020,418.8,69.8,FGAA,Ict Corporate Services,3531,Computer-H'Ware Purchase,Resources
Blackpool Council,1006292,Vodafone Corporate Ltd,558357,OO34837,04/11/2020,418.8,69.8,FGAA,Ict Corporate Services,3531,Computer-H'Ware Purchase,Resources
Blackpool Council,1006292,Vodafone Corporate Ltd,558358,OO34838,04/11/2020,418.8,69.8,FGAA,Ict Corporate Services,3531,Computer-H'Ware Purchase,Resources
Blackpool Council,1006292,Vodafone Corporate Ltd,558359,OO34839,04/11/2020,418.8,69.8,FGAA,Ict Corporate Services,3531,Computer-H'Ware Purchase,Resources
Blackpool Council,1006292,Vodafone Corporate Ltd,558360,OO34840,04/11/2020,418.8,69.8,FGAA,Ict Corporate Services,3531,Computer-H'Ware Purchase,Resources
Blackpool Council,1006292,Vodafone Corporate Ltd,558361,OO34841,04/11/2020,418.8,69.8,FGAA,Ict Corporate Services,3531,Computer-H'Ware Purchase,Resources
Blackpool Council,1006292,Vodafone Corporate Ltd,558362,OO54205,06/11/2020,399.6,66.6,FGAA,Ict Corporate Services,3531,Computer-H'Ware Purchase,Resources
Blackpool Council,1006292,Vodafone Corporate Ltd,558363,OO54207,06/11/2020,399.6,66.6,FGAA,Ict Corporate Services,3531,Computer-H'Ware Purchase,Resources
Blackpool Council,1006292,Vodafone Corporate Ltd,558365,OO54210,06/11/2020,399.6,66.6,FGAA,Ict Corporate Services,3531,Computer-H'Ware Purchase,Resources
Blackpool Council,1006292,Vodafone Corporate Ltd,558366,OO06342,09/11/2020,399.6,66.6,FGAA,Ict Corporate Services,3531,Computer-H'Ware Purchase,Resources
Blackpool Council,1006292,Vodafone Corporate Ltd,558368,OO92468,12/11/2020,399.6,66.6,FGAA,Ict Corporate Services,3531,Computer-H'Ware Purchase,Resources
Blackpool Council,1124062,Hive,558369,1004,09/11/2020,601.8,100.3,AHM,Arts Miscellaneous,3108,Refreshments - Mtgs @ Prog,Places
Blackpool Council,1123472,Lancashire Care Ltd T/A Lastminute Care,558371,13146,11/11/2020,2310,0,MVC,75-84,4507,Domiciliary Care,Adult & Families
Blackpool Council,1123472,Lancashire Care Ltd T/A Lastminute Care,558372,13147,11/11/2020,900,0,MVC,75-84,4507,Domiciliary Care,Adult & Families
Blackpool Council,1123472,Lancashire Care Ltd T/A Lastminute Care,558373,13171,11/11/2020,1575,0,MVC,75-84,4507,Domiciliary Care,Adult & Families
Blackpool Council,1123472,Lancashire Care Ltd T/A Lastminute Care,558374,13172,11/11/2020,2340,0,MVC,75-84,4507,Domiciliary Care,Adult & Families
Blackpool Council,1123472,Lancashire Care Ltd T/A Lastminute Care,558376,13190,11/11/2020,1560,0,MTE,Undefined Age Group,4507,Domiciliary Care,Adult & Families
Blackpool Council,1123472,Lancashire Care Ltd T/A Lastminute Care,558377,13310,11/11/2020,900,0,MTE,Undefined Age Group,4507,Domiciliary Care,Adult & Families
Blackpool Council,1123768,Helen Brady,558379,0016,10/11/2020,2416.64,0,AHH,Heritage,3413,Consultants,Places
Blackpool Council,1123768,Helen Brady,558380,0023,13/11/2020,1208.32,0,AHH,Heritage,3413,Consultants,Places
Blackpool Council,1082067,Squire Patton Boggs (Uk) Llp,558382,2679523,26/11/2020,10376.76,1729.46,CTAHHA,Tramway Emergency Works,6506,Consultants Fees,Capital - Commnctn & Regen
Blackpool Council,1123768,Helen Brady,558383,0017,10/11/2020,2200,0,AHH,Heritage,3413,Consultants,Places
Blackpool Council,1006419,Tunstall Healthcare (Uk) Ltd,558403,3IN/10362553,25/11/2020,4049.88,674.98,APFBAB,Vitaline,3004,Operating Lease,Adult & Families
Blackpool Council,1090812,Imperial Polythene Products Ltd,558417,SIN106727,27/11/2020,2610,435,CWASTE,Commercial Waste,3041,Other Materials,Community & Env Services
Blackpool Council,1117945,Valtech Limited,558421,UKSI11134,25/11/2020,528.96,88.16,FC1404,Blue Badge Reform,3401,General Services,Resources
Blackpool Council,1101740,Ken Taylor Supplies Limited,558422,0321285,30/11/2020,272.16,45.36,ZM0018,Highways & Engineering,9511A,Stocks Efin,Blackpool Services
Blackpool Council,1009009,Hermolle Associates Ltd,558423,10092,03/11/2020,744,124,AEH,Built Heritage,3413,Consultants,Places
Blackpool Council,1078235,Springboard Research Limited,558426,2015-25842,03/11/2020,2173.5,362.25,PPA,Head Of Tourism Services,3401,General Services,Places
Blackpool Council,1028852,Thornber And Walker,558428,3946,13/11/2020,1500,250,AED,Capital Projects,3413,Consultants,Resources
Blackpool Council,1002190,South Shore Cricket Club & Squash Club,558429,BC2,12/11/2020,7000,0,CGICAD,Enterprise Zone,6501,Contract Payments,Capital - Commnctn & Regen
Blackpool Council,1063597,Nga (National Governance Association),558431,83133,13/11/2020,414,0,ER3499,Governors' Services,3711,Subscriptions,Governance & Partnerships
Blackpool Council,1092245,Connor Specialist Paving,558432,2610CN01,09/11/2020,65930.4,10988.4,TRB,Maintenance & Works,4501,Private Contractors,Community & Env Services
Blackpool Council,1106132,Bridge Education And Training Ltd,558438,7226,10/11/2020,780,130,AEB,Buildings,0791,Temp/Relief (Bureau Staff),Resources
Blackpool Council,1106132,Bridge Education And Training Ltd,558438,7226,10/11/2020,810,135,AEF,Facilities,0791,Temp/Relief (Bureau Staff),Resources
Blackpool Council,1106132,Bridge Education And Training Ltd,558439,7198,10/11/2020,780,130,AEB,Buildings,0791,Temp/Relief (Bureau Staff),Resources
Blackpool Council,1106132,Bridge Education And Training Ltd,558439,7198,10/11/2020,810,135,AEF,Facilities,0791,Temp/Relief (Bureau Staff),Resources
Blackpool Council,1094424,The Networking People,558440,SI108539,27/11/2020,656.21,109.37,FGAA,Ict Corporate Services,3532,Comp-Running & License Costs,Resources
Blackpool Council,1071702,Links Signs & Graphics Ltd,558441,LSGI30374,06/11/2020,278.4,46.4,PRG,Tourism General,3301,Printing,Places
Blackpool Council,1112127,T & C Laycock,558442,INV-0229,06/11/2020,10476,1746,PJNA,New Features / Schemes - C & E,3041,Other Materials,Places
Blackpool Council,1120827,Engage Esm Ltd,558453,5337004115,13/11/2020,507.6,84.6,FGAC,Ict Technical Support,3532,Comp-Running & License Costs,Resources
Blackpool Council,1110996,Philip Holmes T/A Dragon Creative,558454,101594,10/11/2020,2517.44,0,PJNA,New Features / Schemes - C & E,3308,Servicing,Places
Blackpool Council,1011970,A1 Streamline Road Markings Ltd,558456,6008,09/11/2020,11666.72,1944.45,PARADM,Parking Administration,2002,Repairs And Maintenance,Budgets Outside Cash Limits
Blackpool Council,1110996,Philip Holmes T/A Dragon Creative,558459,101587,10/11/2020,450,0,PJW,Management - Places - Illumina,3401,General Services,Places
Blackpool Council,1108859,Education Business Partnership (Nw) Limited,558460,INV-0742,04/11/2020,354,59,EDDIV,Education Diversity,4101,Other Local Authorities,Children'S Services
Blackpool Council,1108859,Education Business Partnership (Nw) Limited,558461,INV-0744,05/11/2020,354,59,EDDIV,Education Diversity,4101,Other Local Authorities,Children'S Services
Blackpool Council,1117002,Redraw Travel Ltd T/A Blackpool Minibuses,558462,INV8545B,05/11/2020,1105,0,TRCHIL,Integrated Transport Children,2201,Contract Hire,Community & Env Services
Blackpool Council,1117002,Redraw Travel Ltd T/A Blackpool Minibuses,558463,INV8511B,05/11/2020,1530,0,TRCHIL,Integrated Transport Children,2201,Contract Hire,Community & Env Services
Blackpool Council,1117002,Redraw Travel Ltd T/A Blackpool Minibuses,558464,INV8477B,05/11/2020,1530,0,TRCHIL,Integrated Transport Children,2201,Contract Hire,Community & Env Services
Blackpool Council,1117002,Redraw Travel Ltd T/A Blackpool Minibuses,558465,INV8439B,05/11/2020,1530,0,TRCHIL,Integrated Transport Children,2201,Contract Hire,Community & Env Services
Blackpool Council,1117002,Redraw Travel Ltd T/A Blackpool Minibuses,558466,INV8579B,05/11/2020,1734,289,TRCHIL,Integrated Transport Children,2201,Contract Hire,Community & Env Services
Blackpool Council,1117002,Redraw Travel Ltd T/A Blackpool Minibuses,558467,INV8415B,05/11/2020,1548,0,TRCHIL,Integrated Transport Children,2201,Contract Hire,Community & Env Services
Blackpool Council,1028228,Danfo (Uk) Ltd,558474,0000005267,04/11/2020,49000,8166.67,PUBCON,Public Conveniences,4501,Private Contractors,Community & Env Services
Blackpool Council,1072848,Peter Rhodes,558475,01/017OCT,05/11/2020,1513,0,TRCHIL,Integrated Transport Children,2201,Contract Hire,Community & Env Services
Blackpool Council,1007206,Road Safety Services Ltd,558476,87751,12/11/2020,3192,532,TRB,Maintenance & Works,4501,Private Contractors,Community & Env Services
Blackpool Council,1055691,Norbain Sd Ltd,558478,I2960029,12/11/2020,1114.03,185.67,CCTV,Cctv,3041,Other Materials,Community & Env Services
Blackpool Council,1009079,Pearson Education Ltd,558479,IEKT73_VOC,05/11/2020,265.05,0,EDDIV,Education Diversity,3404,Exam Fees & Exps (Sch),Children'S Services
Blackpool Council,1090628,The Furniture Recycling Group,558482,INV24034,17/11/2020,289.48,48.25,CWASTE,Commercial Waste,4514,Contract 'E',Community & Env Services
Blackpool Council,1007814,Water Plus Limited,558483,UU-INV05935417,09/11/2020,549.71,0,PTA,Economic Development,1402,Water Charges-Unmetered,Places
Blackpool Council,1111807,Costar Uk Limited,558484,112227177,04/11/2020,653.23,108.87,AEE,Estates,3532,Comp-Running & License Costs,Resources
Blackpool Council,1006099,Blackpool Teaching Hospitals Nhs Ft,558485,1110055645,10/11/2020,27616.87,0,LIFEVE,Life Events Reg & Care,3401,General Services,Governance & Partnerships
Blackpool Council,1116831,Ocean Boulevard Iii Ltd T/A Boulevard Hotel,558486,546,06/11/2020,317.2,15.11,PJHA,"Depot, Management & Admin",3041,Other Materials,Places
Blackpool Council,1053261,Ad Systems (Uk) Limited,558487,INV-7306,05/11/2020,5304,884,CCTV,Cctv,1012,Premises Maint-Priv.Contractor,Community & Env Services
Blackpool Council,1010667,Argos Business Solutions Ltd,558489,01897613,13/11/2020,1631.76,271.96,FC1802,Social Fund - Client,5210,Community Care Support,Resources
Blackpool Council,1090378,Depot Rail Limited,558491,10427,05/11/2020,34140.12,5690.02,CTAHHA,Tramway Emergency Works,6518,Miscellaneous - Capital,Capital - Commnctn & Regen
Blackpool Council,1114797,Licence Check Limited,558522,14865,10/11/2020,2100,350,PYLA,Licencing,3429,Company Searches,Community & Env Services
Blackpool Council,1121728,Arrow County Supplies,558523,4864358,12/11/2020,568.8,0,ZM0018,Highways & Engineering,9773,Orders Received Not Invoiced,Blackpool Services
Blackpool Council,1121728,Arrow County Supplies,558523,4864358,12/11/2020,682.56,113.76,ZM0018,Highways & Engineering,9511A,Stocks Efin,Blackpool Services
Blackpool Council,1014996,Peters Ltd T/A Peters Bookselling Svces,558527,1804646,25/11/2020,251.51,0,LBB,Central Library,3304,Books And Periodicals,Places
Blackpool Council,1014996,Peters Ltd T/A Peters Bookselling Svces,558528,1804653,25/11/2020,293.04,0,LBB,Central Library,3304,Books And Periodicals,Places
Blackpool Council,1014996,Peters Ltd T/A Peters Bookselling Svces,558529,1804654,25/11/2020,293.04,0,LBB,Central Library,3304,Books And Periodicals,Places
Blackpool Council,1014996,Peters Ltd T/A Peters Bookselling Svces,558530,1804751,26/11/2020,271.52,0,LBB,Central Library,3304,Books And Periodicals,Places
Blackpool Council,1014996,Peters Ltd T/A Peters Bookselling Svces,558531,1804752,26/11/2020,271.52,0,LBB,Central Library,3304,Books And Periodicals,Places
Blackpool Council,1014996,Peters Ltd T/A Peters Bookselling Svces,558532,1804848,26/11/2020,271.36,0,LBB,Central Library,3304,Books And Periodicals,Places
Blackpool Council,1014996,Peters Ltd T/A Peters Bookselling Svces,558533,1804849,26/11/2020,271.36,0,LBB,Central Library,3304,Books And Periodicals,Places
Blackpool Council,1008235,Lucy Faithfull Foundation,558536,26109,26/11/2020,2109.75,0,JEA,Senior Management,5507,Personal,Children'S Services
Blackpool Council,1094355,Les Mills Fitness Uk Ltd,558537,LMUK-SIV-027035,04/11/2020,435.82,72.64,LEISUR,Leisure Management,3801,Other Expenses,Community & Env Services
Blackpool Council,1012789,Advanced Business Solutions (Fka Coa),558539,ARCMIN/99080630,26/11/2020,7200,1200,FBBCA,Accountancy,3532,Comp-Running & License Costs,Resources
Blackpool Council,1096722,Kirwin Maclean Associates Ltd,558541,1334,26/11/2020,1170,195,LM0421,Adults Asye Training,3304,Books And Periodicals,Adult & Families
Blackpool Council,1006907,Socitm Limited,558543,INV14010,16/11/2020,2874,479,FGAA,Ict Corporate Services,3711,Subscriptions,Resources
Blackpool Council,1107790,Taylek Ltd,558547,INV-16341,06/11/2020,287.64,47.94,PJRA,Electrical Infra - Places,3801,Other Expenses,Places
Blackpool Council,1114704,Morson Human Resources Ltd,558548,HS307357,04/11/2020,2310,385,CTAHHI,Tramway Extention,6506,Consultants Fees,Capital - Commnctn & Regen
Blackpool Council,1114664,REDACTED PERSONAL DATA,558549,035,06/11/2020,3700,0,HS0005,Whole School Approach,0911,Training Expenses,Children'S Services
Blackpool Council,1107790,Taylek Ltd,558552,INV-16439,06/11/2020,391.2,65.2,PJRA,Electrical Infra - Places,3801,Other Expenses,Places
Blackpool Council,1118439,Project Centre Limited,558553,0000017387,16/11/2020,5550,925,CTABWA,Ltp Scheme 17/18,6501,Contract Payments,Capital - Commnctn & Regen
Blackpool Council,1107790,Taylek Ltd,558555,INV-16751,06/11/2020,528,88,PJRA,Electrical Infra - Places,3801,Other Expenses,Places
Blackpool Council,1057663,Wilde Recruitment Ltd,558557,37048,27/11/2020,563.89,93.98,CTAHHA,Tramway Emergency Works,6501,Contract Payments,Capital - Commnctn & Regen
Blackpool Council,1010386,Montgomery Academy,558558,3000000168,05/11/2020,3500,0,OPAREA,Opportunity Areas,4515,Contract Services,Places
Blackpool Council,1099746,Unity Academy,558559,9000000296,16/11/2020,3500,0,OPAREA,Opportunity Areas,4515,Contract Services,Places
Blackpool Council,1006944,Siemens Financial Services Ltd,558563,212/21/0019819,27/11/2020,1375.68,229.28,FCADA,Customer Services,3801,Other Expenses,Resources
Blackpool Council,1058510,Lifeline Language Services Ltd,558565,1320079,19/11/2020,512.06,85.34,JEA,Senior Management,5507,Personal,Children'S Services
Blackpool Council,1023478,Highfield Leadership Academy,558572,HLSI315,05/11/2020,3500,0,OPAREA,Opportunity Areas,4515,Contract Services,Places
Blackpool Council,1019622,Stephen  Floweth,558575,HT0072,09/11/2020,748,0,TRCHIL,Integrated Transport Children,2201,Contract Hire,Community & Env Services
Blackpool Council,1012789,Advanced Business Solutions (Fka Coa),558576,ARBK/99055722,30/11/2020,2731.15,455.19,FBBCA,Accountancy,3532,Comp-Running & License Costs,Resources
Blackpool Council,1094355,Les Mills Fitness Uk Ltd,558578,LMUK-SIV-036241,05/11/2020,510,85,LEISUR,Leisure Management,3801,Other Expenses,Community & Env Services
Blackpool Council,1094355,Les Mills Fitness Uk Ltd,558579,LMUK-SIV-011663,05/11/2020,435.82,72.64,LEISUR,Leisure Management,3801,Other Expenses,Community & Env Services
Blackpool Council,1094355,Les Mills Fitness Uk Ltd,558580,LMUK-SIV-009683,05/11/2020,435.82,72.64,LEISUR,Leisure Management,3801,Other Expenses,Community & Env Services
Blackpool Council,1016238,Pentland Plants Limited,558582,94322,25/11/2020,1569.91,261.65,CEMCRE,Cems Crems Etc,3801,Other Expenses,Governance & Partnerships
Blackpool Council,1066795,Jd Training Services,558583,35/20,09/11/2020,295,0,BEACHP,Beach Patrol,3605,Confs & Short Courses,Places
Blackpool Council,1112198,Kkc Engineering Consultants Limited,558584,859/20,30/11/2020,6204,1034,CTAHHI,Tramway Extention,6506,Consultants Fees,Capital - Commnctn & Regen
Blackpool Council,1008039,Woodswaste Ltd,558587,32305,10/11/2020,338.21,56.37,CEMCRE,Cems Crems Etc,3801,Other Expenses,Governance & Partnerships
Blackpool Council,1027465,Ove Arup & Partners Limited,558588,1068181,05/11/2020,17512.48,2918.75,FMAK,Acquisitions 9/10,3801,Other Expenses,Places
Blackpool Council,1109682,Entertainment Concepts Ltd,558589,254,12/11/2020,799.99,133.33,FMAK,Acquisitions 9/10,1131,Electrical Equipment - Repairs,Places
Blackpool Council,1092768,21st Century Passenger Systems Limited,558597,202286,26/11/2020,11990.4,1998.4,CTABYA,Ltp Scheme 19/20,6501,Contract Payments,Capital - Commnctn & Regen
Blackpool Council,1012071,Bethell Construction Limited,558598,16928,05/11/2020,2136.48,356.08,ENGINE,Engineering,1012,Premises Maint-Priv.Contractor,Community & Env Services
Blackpool Council,1012071,Bethell Construction Limited,558599,16933,05/11/2020,1129.67,188.28,ENGINE,Engineering,1012,Premises Maint-Priv.Contractor,Community & Env Services
Blackpool Council,1012071,Bethell Construction Limited,558600,16932,05/11/2020,2921.68,486.95,ENGINE,Engineering,1012,Premises Maint-Priv.Contractor,Community & Env Services
Blackpool Council,1012071,Bethell Construction Limited,558601,16930,05/11/2020,4254.82,709.14,ENGINE,Engineering,1012,Premises Maint-Priv.Contractor,Community & Env Services
Blackpool Council,1012071,Bethell Construction Limited,558602,16929,05/11/2020,1874.12,312.35,ENGINE,Engineering,1012,Premises Maint-Priv.Contractor,Community & Env Services
Blackpool Council,1012071,Bethell Construction Limited,558603,16931,05/11/2020,1746.95,291.16,ENGINE,Engineering,1012,Premises Maint-Priv.Contractor,Community & Env Services
Blackpool Council,1012071,Bethell Construction Limited,558604,16936,05/11/2020,2018.42,336.4,ENGINE,Engineering,1012,Premises Maint-Priv.Contractor,Community & Env Services
Blackpool Council,1012071,Bethell Construction Limited,558607,16927,05/11/2020,2059.24,343.21,ENGINE,Engineering,1012,Premises Maint-Priv.Contractor,Community & Env Services
Blackpool Council,1013064,Tarmac Lafarge Trading Limited,558608,9042501234,13/11/2020,1980.85,330.14,ENGINE,Engineering,3041,Other Materials,Community & Env Services
Blackpool Council,1013064,Tarmac Lafarge Trading Limited,558609,9042495166,13/11/2020,916.89,152.81,ENGINE,Engineering,3041,Other Materials,Community & Env Services
Blackpool Council,1013064,Tarmac Lafarge Trading Limited,558613,9042507302,18/11/2020,1895.65,315.94,ENGINE,Engineering,3041,Other Materials,Community & Env Services
Blackpool Council,1018184,Blackpool Skip Hire Ltd,558618,025842,05/11/2020,336,56,SCHEME,Highways Schemes,1012,Premises Maint-Priv.Contractor,Community & Env Services
Blackpool Council,1123126,Matt Haylett T/A Mh Lighting,558627,217,12/11/2020,1125,0,PJRA,Electrical Infra - Places,3308,Servicing,Places
Blackpool Council,1119933,Mitchell Bailey T/A Pda Technical,558628,277,09/11/2020,480,0,PJRA,Electrical Infra - Places,3308,Servicing,Places
Blackpool Council,1082924,Dotdigital Emea Ltd,558673,DM1335461,13/11/2020,432,72,PBF,Communications,3315,Marketing,Places
Blackpool Council,1093809,William Drain T/A The Music Man,558674,2249,05/11/2020,272,0,MUSIC,Music & Cultural Education,3008,Educational Equipment,Children'S Services
Blackpool Council,1093809,William Drain T/A The Music Man,558675,2251,05/11/2020,300,0,MUSIC,Music & Cultural Education,3008,Educational Equipment,Children'S Services
Blackpool Council,1093809,William Drain T/A The Music Man,558677,2246,05/11/2020,294.5,0,MUSIC,Music & Cultural Education,3008,Educational Equipment,Children'S Services
Blackpool Council,1093809,William Drain T/A The Music Man,558678,2247,05/11/2020,385,0,MUSIC,Music & Cultural Education,3008,Educational Equipment,Children'S Services
Blackpool Council,1005071,Blackpool Transport Services Limited,558679,I0002596,12/11/2020,1698.63,0,FRAEA,Public Transport Contracts,2201,Contract Hire,Community & Env Services
Blackpool Council,1121728,Arrow County Supplies,558680,4864683,11/11/2020,568.8,0,ZM0018,Highways & Engineering,9773,Orders Received Not Invoiced,Blackpool Services
Blackpool Council,1121728,Arrow County Supplies,558680,4864683,11/11/2020,682.56,113.76,ZM0018,Highways & Engineering,9511A,Stocks Efin,Blackpool Services
Blackpool Council,1102016,Critiqom Limited,558681,060852,06/11/2020,1873.15,312.19,FBBEA,"Income, Recovery & Debtors",3511,Postages,Resources
Blackpool Council,1102016,Critiqom Limited,558682,060850,06/11/2020,6186.5,1031.08,FBBEA,"Income, Recovery & Debtors",3511,Postages,Resources
Blackpool Council,1102016,Critiqom Limited,558683,060849,06/11/2020,851.62,141.94,FBBEA,"Income, Recovery & Debtors",3301,Printing,Resources
Blackpool Council,1093763,Shapemaster Global Ltd,558687,1504,20/11/2020,857.48,142.91,LEISUR,Leisure Management,3003,Equipt-Mtce Repairs,Community & Env Services
Blackpool Council,1010830,Ace Radio Cabs Limited,558689,0045,09/11/2020,1428,238,TRCHIL,Integrated Transport Children,2201,Contract Hire,Community & Env Services
Blackpool Council,1008039,Woodswaste Ltd,558691,32304,10/11/2020,281.9,46.98,CEMCRE,Cems Crems Etc,3801,Other Expenses,Governance & Partnerships
Blackpool Council,1008165,Manchester City Council,558701,8500624239,10/11/2020,1152,192,PBC,Strategy Team,4004,Management Fees,Chief Executive
Blackpool Council,1026811,Stannah Lift Services Ltd,558702,1085245357,24/11/2020,4315,0,CX4002,Disabled Facilities Grants,6501,Contract Payments,Capital - Adult Social Care
Blackpool Council,1026811,Stannah Lift Services Ltd,558703,1085240807,12/11/2020,2250,0,CX4002,Disabled Facilities Grants,6501,Contract Payments,Capital - Adult Social Care
Blackpool Council,1026811,Stannah Lift Services Ltd,558704,1085243764,19/11/2020,2640,0,CX4002,Disabled Facilities Grants,6501,Contract Payments,Capital - Adult Social Care
Blackpool Council,1112303,Access-Able (Uk) Limited (Fac001),558705,4235,18/11/2020,2057.74,0,CXAAA,Local Authority Dwellings,6501,Contract Payments,Capital - Chief Executive
Blackpool Council,1102823,Wilde Consultants Limited,558706,20009,30/11/2020,3330,555,TRB,Maintenance & Works,4501,Private Contractors,Community & Env Services
Blackpool Council,1015228,Virgin Media Payments Limited,558709,806981-214,13/11/2020,336.02,56,FGAA,Ict Corporate Services,3521,Landline - Line Rental,Resources
Blackpool Council,1109502,Llewelyn-Bowen Design Associates Ltd,558710,SI-24,06/11/2020,758.28,126.38,PJAA,"Erection, Operation & Dismantl",2211,Casual Hire,Places
Blackpool Council,1014996,Peters Ltd T/A Peters Bookselling Svces,558717,1804753,26/11/2020,282.2,0,LBB,Central Library,3304,Books And Periodicals,Places
Blackpool Council,1120977,Castle Mile Group Ltd,558721,INV-0516,06/11/2020,300,50,AEB,Buildings,1064,Delegated Maintenance,Resources
Blackpool Council,1120977,Castle Mile Group Ltd,558721,INV-0516,06/11/2020,3480,580,AER,Dual Use Properties,1064,Delegated Maintenance,Resources
Blackpool Council,1094424,The Networking People,558723,SI108518,27/11/2020,86388.16,14398.03,CGICAD,Enterprise Zone,6511,Service Connections / Altera,Capital - Commnctn & Regen
Blackpool Council,1112477,Big Wave Media (Fac060),558765,64637,19/11/2020,900,150,LEISUR,Leisure Management,3801,Other Expenses,Community & Env Services
Blackpool Council,1011369,Lancashire County Council,558775,5200217222,06/11/2020,498908,0,JBR,Lac - Placements,4701,Other Contracted Services,Children'S Services
Blackpool Council,1117608,Pts Ltd,558776,9123-01,11/11/2020,6412.25,1068.71,TRB,Maintenance & Works,4501,Private Contractors,Community & Env Services
Blackpool Council,1123821,Jr Consulting,558778,20/12,13/11/2020,1750,0,PU1001,Public Health Core Funding,3801,Other Expenses,Public Health
Blackpool Council,1009247,G J Brookes Ltd,558779,1664,06/11/2020,480,80,AED,Capital Projects,3413,Consultants,Resources
Blackpool Council,1094355,Les Mills Fitness Uk Ltd,558782,LMUK-SIV-036288,06/11/2020,450,75,LEISUR,Leisure Management,3801,Other Expenses,Community & Env Services
Blackpool Council,1094355,Les Mills Fitness Uk Ltd,558787,SIV343483,06/11/2020,308,51.33,LEISUR,Leisure Management,3801,Other Expenses,Community & Env Services
Blackpool Council,1007385,R S Components Ltd,558790,2200550784,24/11/2020,389.34,0,ZM0018,Highways & Engineering,9773,Orders Received Not Invoiced,Blackpool Services
Blackpool Council,1007385,R S Components Ltd,558790,2200550784,24/11/2020,467.21,77.87,ZM0018,Highways & Engineering,9511A,Stocks Efin,Blackpool Services
Blackpool Council,1084907,Ken Williams T/A Akwa Irrigation Services,558791,INV-0270,27/11/2020,582,97,PRKOP1,Parks Operational Manager  1,1012,Premises Maint-Priv.Contractor,Community & Env Services
Blackpool Council,1112477,Big Wave Media (Fac060),558796,64653,26/11/2020,4182.25,697.04,LEISUR,Leisure Management,3801,Other Expenses,Community & Env Services
Blackpool Council,1118699,Enveco Blackpool Waste Services Ltd,558801,30153274,06/11/2020,323458.8,53909.8,DOMPFI,Domestic Waste & Waste Pfi,4501,Private Contractors,Community & Env Services
Blackpool Council,1120775,Standard Fuel Oils,558803,133601,17/11/2020,23816.95,3969.49,ZF0001,"Insurance,Dso,Banking",9511A,Stocks Efin,Total Reconciliations
Blackpool Council,1093145,On A Roll Sandwich Company,558811,192784,10/11/2020,357.1,0,CATERG,Catering Services,3101,Provisions,Community & Env Services
Blackpool Council,1009260,G S Brown,558814,10183,09/11/2020,680,0,TRCHIL,Integrated Transport Children,2201,Contract Hire,Community & Env Services
Blackpool Council,1119761,Janet Carroll,558815,07/020/TAS014,06/11/2020,4800,0,OPAREA,Opportunity Areas,4515,Contract Services,Places
Blackpool Council,1092245,Connor Specialist Paving,558884,NO0405CN01,09/11/2020,5520,920,TRB,Maintenance & Works,4501,Private Contractors,Community & Env Services
Blackpool Council,1092245,Connor Specialist Paving,558885,060520CN01,09/11/2020,8236.8,1372.8,TRB,Maintenance & Works,4501,Private Contractors,Community & Env Services
Blackpool Council,1092245,Connor Specialist Paving,558886,NO0505CN01,09/11/2020,4320,720,TRB,Maintenance & Works,4501,Private Contractors,Community & Env Services
Blackpool Council,1009295,Autolines Graphics Ltd,558894,B2551,16/11/2020,3936,656,CWASTE,Commercial Waste,3041,Other Materials,Community & Env Services
Blackpool Council,1107153,Landscape Supply Company,558895,94109,10/11/2020,252.48,42.08,ZM0018,Highways & Engineering,9511A,Stocks Efin,Blackpool Services
Blackpool Council,1014996,Peters Ltd T/A Peters Bookselling Svces,558899,1804647,25/11/2020,251.51,0,LBB,Central Library,3304,Books And Periodicals,Places
Blackpool Council,1014996,Peters Ltd T/A Peters Bookselling Svces,558901,1804655,25/11/2020,293.04,0,LBB,Central Library,3304,Books And Periodicals,Places
Blackpool Council,1010667,Argos Business Solutions Ltd,558906,01891000,10/11/2020,266.04,44.34,FC1802,Social Fund - Client,5210,Community Care Support,Resources
Blackpool Council,1010667,Argos Business Solutions Ltd,558907,01894369,10/11/2020,1344.6,224.1,FC1802,Social Fund - Client,5210,Community Care Support,Resources
Blackpool Council,1010667,Argos Business Solutions Ltd,558908,01896026,10/11/2020,591.66,98.61,FC1802,Social Fund - Client,5210,Community Care Support,Resources
Blackpool Council,1010300,Blacktax Radio Taxis T/A Blackpool Courier,558910,13847,09/11/2020,330,0,TRCHIL,Integrated Transport Children,2201,Contract Hire,Community & Env Services
Blackpool Council,1099512,Dga (Uk) Ltd,558914,SIN210293,13/11/2020,19404,3234,CGTBBB,Conference Centre,6506,Consultants Fees,Capital - Commnctn & Regen
Blackpool Council,1090124,REDACTED PERSONAL DATA,558916,201001,30/11/2020,560,0,LEISUR,Leisure Management,3801,Other Expenses,Community & Env Services
Blackpool Council,1053592,Tfs Training Consultants Ltd,558917,270,13/11/2020,660,110,FK0071,Corporate Training,3426,Course Fees,Chief Executive
Blackpool Council,1096993,Nla Media Access Limited,558919,Q451989,20/11/2020,594.24,99.04,PBF,Communications,2008,Running Costs-Licences,Places
Blackpool Council,1111248,Nottingham City Council,558920,853911572,23/11/2020,9092.4,1515.4,PRKOP1,Parks Operational Manager  1,1021,Growing,Community & Env Services
Blackpool Council,1101668,Fylde Coast Teaching School,558936,1839,13/11/2020,3500,0,OPAREA,Opportunity Areas,4515,Contract Services,Places
Blackpool Council,1026738,Cassidy + Ashton,558945,18144,10/11/2020,28680,4780,CGICAD,Enterprise Zone,6506,Consultants Fees,Capital - Commnctn & Regen
Blackpool Council,1028641,New Mind Internet Consultancy Ltd,558983,NM33697,27/11/2020,3420,570,PRJAAA,Website Team,3535,Website Costs,Places
Blackpool Council,1108432,Motionlab Marketing Limited,558985,ML14510,10/11/2020,816,136,PBF,Communications,3806,Advertising-General,Places
Blackpool Council,1108432,Motionlab Marketing Limited,558986,ML14509,13/11/2020,816,136,PBF,Communications,3806,Advertising-General,Places
Blackpool Council,1008966,Holden  Lee & Partners,558992,4839/2,19/11/2020,3623.4,603.9,AED,Capital Projects,3413,Consultants,Resources
Blackpool Council,1008966,Holden  Lee & Partners,558993,4836/2,19/11/2020,1039.5,173.25,AED,Capital Projects,3413,Consultants,Resources
Blackpool Council,1026811,Stannah Lift Services Ltd,558997,1085246708,26/11/2020,2860,0,CX4002,Disabled Facilities Grants,6501,Contract Payments,Capital - Adult Social Care
Blackpool Council,1011675,Bambers Remedial Contractors Limited,559002,16647,10/11/2020,36375,0,CX4002,Disabled Facilities Grants,6501,Contract Payments,Capital - Adult Social Care
Blackpool Council,1011675,Bambers Remedial Contractors Limited,559004,16651,10/11/2020,265,0,CXAAA,Local Authority Dwellings,6501,Contract Payments,Capital - Chief Executive
Blackpool Council,1011675,Bambers Remedial Contractors Limited,559005,16637,10/11/2020,5835.4,0,CX4002,Disabled Facilities Grants,6501,Contract Payments,Capital - Adult Social Care
Blackpool Council,1030119,Generation (Uk) Ltd,559010,H2401682,30/11/2020,3644.7,607.45,PJAA,"Erection, Operation & Dismantl",3006,Hire Of Equipment,Places
Blackpool Council,1010179,Buchanan Computing,559013,H10253,10/11/2020,16495.2,2749.2,TRB,Maintenance & Works,3532,Comp-Running & License Costs,Community & Env Services
Blackpool Council,1006099,Blackpool Teaching Hospitals Nhs Ft,559017,1110055952,16/11/2020,3600,600,PU2061,Domestic Violence,4501,Private Contractors,Public Health
Blackpool Council,1006099,Blackpool Teaching Hospitals Nhs Ft,559018,1110055948,16/11/2020,3750,0,PU2061,Domestic Violence,4501,Private Contractors,Public Health
Blackpool Council,1006099,Blackpool Teaching Hospitals Nhs Ft,559019,1110055949,16/11/2020,9211,1535.17,PUBH18,Stop Smoking Services & Interv,4501,Private Contractors,Public Health
Blackpool Council,1123965,Evolve Military College Ltd,559023,00051,10/11/2020,2000,0,EDDIV,Education Diversity,4101,Other Local Authorities,Children'S Services
Blackpool Council,1073709,Delphi Medical Limited,559030,SINV86/00000652,16/11/2020,2130,0,PU1001,Public Health Core Funding,4501,Private Contractors,Public Health
Blackpool Council,1073709,Delphi Medical Limited,559031,SINV86/00000653,16/11/2020,2982,0,PU1001,Public Health Core Funding,4501,Private Contractors,Public Health
Blackpool Council,1073709,Delphi Medical Limited,559032,SINV86/00000654,16/11/2020,2982,0,PU1001,Public Health Core Funding,4501,Private Contractors,Public Health
Blackpool Council,1073709,Delphi Medical Limited,559033,SINV86/00000646,16/11/2020,2556,0,PUBH04,Substance Misuse,4501,Private Contractors,Public Health
Blackpool Council,1089201,Wedge Group Galvanizing Ltd,559034,MS00172390,11/11/2020,632.57,105.43,PJHA,"Depot, Management & Admin",3308,Servicing,Places
Blackpool Council,1008454,Police & Crime Commissioner For Lancashire,559035,7500012604,16/11/2020,25047.02,0,PYAA,Head Of Environmental Health,3313,General Expenses,Community & Env Services
Blackpool Council,1010138,C Cabs,559037,06531,16/11/2020,510,0,TRCHIL,Integrated Transport Children,2201,Contract Hire,Community & Env Services
Blackpool Council,1010138,C Cabs,559038,06533,16/11/2020,765,0,TRCHIL,Integrated Transport Children,2201,Contract Hire,Community & Env Services
Blackpool Council,1010138,C Cabs,559039,06534,16/11/2020,1700,0,TRCHIL,Integrated Transport Children,2201,Contract Hire,Community & Env Services
Blackpool Council,1010138,C Cabs,559040,06532,16/11/2020,680,0,TRCHIL,Integrated Transport Children,2201,Contract Hire,Community & Env Services
Blackpool Council,1010138,C Cabs,559041,06535,16/11/2020,748,0,TRCHIL,Integrated Transport Children,2201,Contract Hire,Community & Env Services
Blackpool Council,1010138,C Cabs,559042,06537,16/11/2020,816,0,TRCHIL,Integrated Transport Children,2201,Contract Hire,Community & Env Services
Blackpool Council,1010138,C Cabs,559043,06536,16/11/2020,540,0,TRCHIL,Integrated Transport Children,2201,Contract Hire,Community & Env Services
Blackpool Council,1010138,C Cabs,559044,06538,16/11/2020,782,0,TRCHIL,Integrated Transport Children,2201,Contract Hire,Community & Env Services
Blackpool Council,1010138,C Cabs,559045,06539,16/11/2020,640,0,TRCHIL,Integrated Transport Children,2201,Contract Hire,Community & Env Services
Blackpool Council,1010138,C Cabs,559046,06540,16/11/2020,680,0,TRCHIL,Integrated Transport Children,2201,Contract Hire,Community & Env Services
Blackpool Council,1010138,C Cabs,559047,06541,16/11/2020,782,0,TRCHIL,Integrated Transport Children,2201,Contract Hire,Community & Env Services
Blackpool Council,1010138,C Cabs,559048,06542,16/11/2020,434,0,TRCHIL,Integrated Transport Children,2201,Contract Hire,Community & Env Services
Blackpool Council,1010138,C Cabs,559049,06543,16/11/2020,816,0,TRCHIL,Integrated Transport Children,2201,Contract Hire,Community & Env Services
Blackpool Council,1010138,C Cabs,559050,06544,16/11/2020,850,0,TRCHIL,Integrated Transport Children,2201,Contract Hire,Community & Env Services
Blackpool Council,1010138,C Cabs,559051,06546,16/11/2020,1114,0,TRCHIL,Integrated Transport Children,2201,Contract Hire,Community & Env Services
Blackpool Council,1010138,C Cabs,559052,06545,16/11/2020,850,0,TRCHIL,Integrated Transport Children,2201,Contract Hire,Community & Env Services
Blackpool Council,1010138,C Cabs,559053,06547,16/11/2020,982,0,TRCHIL,Integrated Transport Children,2201,Contract Hire,Community & Env Services
Blackpool Council,1010138,C Cabs,559054,06548,16/11/2020,720,0,TRCHIL,Integrated Transport Children,2201,Contract Hire,Community & Env Services
Blackpool Council,1010138,C Cabs,559055,06549,16/11/2020,850,0,TRCHIL,Integrated Transport Children,2201,Contract Hire,Community & Env Services
Blackpool Council,1119267,National Education Group Ltd,559056,NOS-INV-20261,27/11/2020,300,50,MNGMT,Central Management,3426,Course Fees,Children'S Services
Blackpool Council,1010138,C Cabs,559057,06550,16/11/2020,782,0,TRCHIL,Integrated Transport Children,2201,Contract Hire,Community & Env Services
Blackpool Council,1010138,C Cabs,559058,06551,16/11/2020,385,0,TRCHIL,Integrated Transport Children,2201,Contract Hire,Community & Env Services
Blackpool Council,1010138,C Cabs,559059,06552,16/11/2020,1050,0,TRCHIL,Integrated Transport Children,2201,Contract Hire,Community & Env Services
Blackpool Council,1010138,C Cabs,559060,06553,16/11/2020,850,0,TRCHIL,Integrated Transport Children,2201,Contract Hire,Community & Env Services
Blackpool Council,1011976,Randstad Public Services Limited,559061,4517496,10/11/2020,436.32,72.72,VIRTUL,Virtual Hub,5555,Educational Support,Children'S Services
Blackpool Council,1011976,Randstad Public Services Limited,559063,4519799,11/11/2020,436.32,72.72,VIRTUL,Virtual Hub,5555,Educational Support,Children'S Services
Blackpool Council,1073709,Delphi Medical Limited,559073,SINV86/00000661,19/11/2020,852,0,PUBH04,Substance Misuse,4501,Private Contractors,Public Health
Blackpool Council,1073709,Delphi Medical Limited,559074,SINV86/00000655,19/11/2020,3834,0,PUBH04,Substance Misuse,4501,Private Contractors,Public Health
Blackpool Council,1006099,Blackpool Teaching Hospitals Nhs Ft,559075,1110055955,19/11/2020,4253.65,708.94,PU2061,Domestic Violence,4501,Private Contractors,Public Health
Blackpool Council,1026738,Cassidy + Ashton,559081,18126,11/11/2020,2527.2,421.2,CGICAD,Enterprise Zone,6506,Consultants Fees,Capital - Commnctn & Regen
Blackpool Council,1009009,Hermolle Associates Ltd,559110,10090,16/11/2020,534,89,HJA,Growth,3413,Consultants,Places
Blackpool Council,1025318,Salford City Council,559111,505437013,12/11/2020,12000,2000,FD0021,Subscriptions,3711,Subscriptions,Budgets Outside Cash Limits
Blackpool Council,1017722,Terrys Cut Price Carpets Ltd,559116,1083,13/11/2020,369.6,61.6,FC1802,Social Fund - Client,5210,Community Care Support,Resources
Blackpool Council,1006633,Technology Services Ltd T/A The Lock Shop,559119,32044,26/11/2020,583.08,97.17,GATE,Alleygates,3041,Other Materials,Community & Env Services
Blackpool Council,1011717,Clearview Intelligence Limited,559122,21430,27/11/2020,2206.98,367.84,TRB,Maintenance & Works,4501,Private Contractors,Community & Env Services
Blackpool Council,1011717,Clearview Intelligence Limited,559124,21431,27/11/2020,656.4,109.4,TRB,Maintenance & Works,4501,Private Contractors,Community & Env Services
Blackpool Council,1044156,Pell Frischmann,559125,64014319,17/11/2020,1617.84,269.64,CTAHHI,Tramway Extention,6506,Consultants Fees,Capital - Commnctn & Regen
Blackpool Council,1027465,Ove Arup & Partners Limited,559131,1069933,27/11/2020,30710.12,5118.35,FMAK,Acquisitions 9/10,2002,Repairs And Maintenance,Places
Blackpool Council,1005144,Blackpool Airport Operations Limited,559132,0000024099,12/11/2020,300,50,CGTBBB,Conference Centre,6501,Contract Payments,Capital - Commnctn & Regen
Blackpool Council,1026811,Stannah Lift Services Ltd,559133,1085241451,13/11/2020,789.95,131.66,MVA,18-64,5401,Aids To Daily Living,Adult & Families
Blackpool Council,1026811,Stannah Lift Services Ltd,559135,1085241423,13/11/2020,646.2,107.7,MVB,65-74,5401,Aids To Daily Living,Adult & Families
Blackpool Council,1026811,Stannah Lift Services Ltd,559136,1085241455,13/11/2020,488.88,81.48,CXAAA,Local Authority Dwellings,6501,Contract Payments,Capital - Chief Executive
Blackpool Council,1026811,Stannah Lift Services Ltd,559138,1085241464,13/11/2020,256.57,42.76,MVB,65-74,5401,Aids To Daily Living,Adult & Families
Blackpool Council,1026811,Stannah Lift Services Ltd,559139,1085241376,13/11/2020,1106.94,184.49,MVA,18-64,5401,Aids To Daily Living,Adult & Families
Blackpool Council,1023161,Suez Recycling And Recovery Uk Ltd,559140,80203752,12/11/2020,69243.64,11540.61,DOMPFI,Domestic Waste & Waste Pfi,4501,Private Contractors,Community & Env Services
Blackpool Council,1006196,Prism Medical Uk Ltd,559142,5426933,11/11/2020,368.47,61.41,MVA,18-64,5401,Aids To Daily Living,Adult & Families
Blackpool Council,1049942,Quest 88 Limited,559146,96251,27/11/2020,1980,330,MTE,Undefined Age Group,5401,Aids To Daily Living,Adult & Families
Blackpool Council,1031475,Jenx Ltd T/A Jiraffe,559148,228582,27/11/2020,3217.2,536.2,MTE,Undefined Age Group,5401,Aids To Daily Living,Adult & Families
Blackpool Council,1111496,Bes Healthcare Ltd,559149,INVBES150899,27/11/2020,655.2,109.2,MTE,Undefined Age Group,5401,Aids To Daily Living,Adult & Families
Blackpool Council,1006576,The Helping Hand Company Ltd,559150,385870,27/11/2020,873.6,145.6,MTE,Undefined Age Group,5401,Aids To Daily Living,Adult & Families
Blackpool Council,1123770,Headstart Hair Academy,559156,1,12/11/2020,480,0,VIRTUL,Virtual Hub,5555,Educational Support,Children'S Services
Blackpool Council,1111134,Jean Martin,559157,14,13/11/2020,1100,0,MNGMT,Central Management,3413,Consultants,Children'S Services
Blackpool Council,1008135,Marshalls,559162,Z000652005,20/11/2020,2301.44,0,ZM0018,Highways & Engineering,9773,Orders Received Not Invoiced,Blackpool Services
Blackpool Council,1008135,Marshalls,559162,Z000652005,20/11/2020,2761.73,460.29,ZM0018,Highways & Engineering,9511A,Stocks Efin,Blackpool Services
Blackpool Council,1009906,Combined Precision Components Plc Cpc,559169,1257773,24/11/2020,418.01,69.67,CCTV,Cctv,3041,Other Materials,Community & Env Services
Blackpool Council,1009906,Combined Precision Components Plc Cpc,559171,1257821,24/11/2020,627.01,104.5,CCTV,Cctv,3041,Other Materials,Community & Env Services
Blackpool Council,1011970,A1 Streamline Road Markings Ltd,559173,6036,17/11/2020,1636.63,272.77,TRB,Maintenance & Works,4501,Private Contractors,Community & Env Services
Blackpool Council,1025837,R Draper Ltd,559174,58291,27/11/2020,594,99,PRKOP1,Parks Operational Manager  1,3041,Other Materials,Community & Env Services
Blackpool Council,1087034,Cool Milk Limited,559175,CML00023948,16/11/2020,19866.51,0,SCHBRK,Free School Breakfasts,3107,Milk For Drinking,Community & Env Services
Blackpool Council,1009166,Glasdon Uk Ltd,559176,SI805266,23/11/2020,1075.99,179.33,PRKOP1,Parks Operational Manager  1,3041,Other Materials,Community & Env Services
Blackpool Council,1008454,Police & Crime Commissioner For Lancashire,559184,7500012596,12/11/2020,6022.63,0,LIFEVE,Life Events Reg & Care,3801,Other Expenses,Governance & Partnerships
Blackpool Council,1119933,Mitchell Bailey T/A Pda Technical,559185,278,16/11/2020,640,0,PJLA,Maintenance,3308,Servicing,Places
Blackpool Council,1123126,Matt Haylett T/A Mh Lighting,559225,218,19/11/2020,600,0,PJLA,Maintenance,3308,Servicing,Places
Blackpool Council,1099882,Rue Amusement Lighting Ltd,559226,3589,12/11/2020,420,70,PJLA,Maintenance,3041,Other Materials,Places
Blackpool Council,1087234,Aitch Tools & Fasteners Ltd,559229,049097,12/11/2020,1760,0,ZM0018,Highways & Engineering,9773,Orders Received Not Invoiced,Blackpool Services
Blackpool Council,1087234,Aitch Tools & Fasteners Ltd,559229,049097,12/11/2020,2112,352,ZM0018,Highways & Engineering,9511A,Stocks Efin,Blackpool Services
Blackpool Council,1008755,Jc Applications Development,559232,18597,13/11/2020,6727.2,1121.2,FBBBB,"Insur, Scrutiny & Emerg Planin",3532,Comp-Running & License Costs,Resources
Blackpool Council,1087234,Aitch Tools & Fasteners Ltd,559233,049196,12/11/2020,1040,0,ZM0018,Highways & Engineering,9773,Orders Received Not Invoiced,Blackpool Services
Blackpool Council,1087234,Aitch Tools & Fasteners Ltd,559233,049196,12/11/2020,1040,0,ZM0018,Highways & Engineering,9511A,Stocks Efin,Blackpool Services
Blackpool Council,1087234,Aitch Tools & Fasteners Ltd,559234,048059,12/11/2020,2950,0,ZM0018,Highways & Engineering,9773,Orders Received Not Invoiced,Blackpool Services
Blackpool Council,1087234,Aitch Tools & Fasteners Ltd,559234,048059,12/11/2020,3020,70,ZM0018,Highways & Engineering,9511A,Stocks Efin,Blackpool Services
Blackpool Council,1104238,Maguire Weighing Ltd,559238,MWS-0307,19/11/2020,420,70,CWASTE,Commercial Waste,2002,Repairs And Maintenance,Community & Env Services
Blackpool Council,1104238,Maguire Weighing Ltd,559239,MWS-0306,19/11/2020,420,70,CWASTE,Commercial Waste,2002,Repairs And Maintenance,Community & Env Services
Blackpool Council,1007206,Road Safety Services Ltd,559241,87856,17/11/2020,336,56,TRB,Maintenance & Works,4501,Private Contractors,Community & Env Services
Blackpool Council,1007206,Road Safety Services Ltd,559243,87766,20/11/2020,414.72,69.12,SCHEME,Highways Schemes,3041,Other Materials,Community & Env Services
Blackpool Council,1023161,Suez Recycling And Recovery Uk Ltd,559247,80207594,27/11/2020,69687.66,11614.61,DOMPFI,Domestic Waste & Waste Pfi,4501,Private Contractors,Community & Env Services
Blackpool Council,1070036,Gaist Solutions Ltd,559253,10952,12/11/2020,11460,1910,TRB,Maintenance & Works,4501,Private Contractors,Community & Env Services
Blackpool Council,1090874,Advanced Health And Care Limited,559255,ARMIN/00019219,12/11/2020,672,112,HOMECA,Homecare,6241,Ict Services,Adult & Families
Blackpool Council,1006773,Stri  Ltd,559266,IW05453,12/11/2020,124296.68,20716.11,CGICAD,Enterprise Zone,6506,Consultants Fees,Capital - Commnctn & Regen
Blackpool Council,1006773,Stri  Ltd,559266,IW05453,12/11/2020,11414.19,0,ZF0001,"Insurance,Dso,Banking",97A6,Retention Monies - Capital,Total Reconciliations
Blackpool Council,1058510,Lifeline Language Services Ltd,559272,1320061,30/11/2020,266.64,44.44,JEA,Senior Management,5507,Personal,Children'S Services
Blackpool Council,1058510,Lifeline Language Services Ltd,559275,1320070,30/11/2020,266.64,44.44,JEA,Senior Management,5507,Personal,Children'S Services
Blackpool Council,1008525,Kingswood Office Supplies Limited,559317,389504,20/11/2020,594.24,99.04,AER,Dual Use Properties,3302,Stationery,Resources
Blackpool Council,1114704,Morson Human Resources Ltd,559321,HS313548,18/11/2020,4620,770,CTAHHI,Tramway Extention,6506,Consultants Fees,Capital - Commnctn & Regen
Blackpool Council,1040938,Urban Coffee Services,559322,17063,13/11/2020,403.28,0,APDBBB,Arc,3101,Provisions,Adult & Families
Blackpool Council,1060135,Happy Creative Ltd,559323,H4971,20/11/2020,4200,700,PTA,Economic Development,3315,Marketing,Places
Blackpool Council,1010667,Argos Business Solutions Ltd,559327,01899047,20/11/2020,1185.6,197.6,FC1802,Social Fund - Client,5210,Community Care Support,Resources
Blackpool Council,1117264,True North Communications Ltd,559329,01762,30/11/2020,300,50,AHHBA,Blackpool Museum,3535,Website Costs,Places
Blackpool Council,1087234,Aitch Tools & Fasteners Ltd,559331,047890,13/11/2020,910,0,ZM0018,Highways & Engineering,9773,Orders Received Not Invoiced,Blackpool Services
Blackpool Council,1087234,Aitch Tools & Fasteners Ltd,559331,047890,13/11/2020,1092,182,ZM0018,Highways & Engineering,9511A,Stocks Efin,Blackpool Services
Blackpool Council,1096596,Highfield Pfi Spv Ltd,559334,SI10080,16/11/2020,391026.48,65171.08,EM1029,Highfield Pfi,4515,Contract Services,Children'S Services
Blackpool Council,1096596,Highfield Pfi Spv Ltd,559334,SI10080,16/11/2020,10131.06,1688.51,EM1029,Highfield Pfi,1202,Electricity,Children'S Services
Blackpool Council,1087234,Aitch Tools & Fasteners Ltd,559337,049231,13/11/2020,264,44,ZM0018,Highways & Engineering,9511A,Stocks Efin,Blackpool Services
Blackpool Council,1087234,Aitch Tools & Fasteners Ltd,559339,049715,13/11/2020,1076,0,ZM0018,Highways & Engineering,9773,Orders Received Not Invoiced,Blackpool Services
Blackpool Council,1087234,Aitch Tools & Fasteners Ltd,559339,049715,13/11/2020,1291.2,215.2,ZM0018,Highways & Engineering,9511A,Stocks Efin,Blackpool Services
Blackpool Council,1086156,Water Saving Techniques Limited,559340,4894,25/11/2020,3072,512,PARADE,Parades & Seawall,1012,Premises Maint-Priv.Contractor,Community & Env Services
Blackpool Council,1006944,Siemens Financial Services Ltd,559350,244/21/0021433,27/11/2020,2785.64,464.27,APFBAB,Vitaline,4501,Private Contractors,Adult & Families
Blackpool Council,1104384,Blackpool Aspire Academy & Highfurlong School,559355,7000000124,16/11/2020,3500,0,OPAREA,Opportunity Areas,4515,Contract Services,Places
Blackpool Council,1012096,St Mary'S Catholic Academy,559356,0000000344,20/11/2020,3500,0,OPAREA,Opportunity Areas,4515,Contract Services,Places
Blackpool Council,1101124,South Shore Academy,559357,SSS1 2,16/11/2020,3500,0,OPAREA,Opportunity Areas,4515,Contract Services,Places
Blackpool Council,1021388,Cidari Education Ltd T/A St Georges School,559364,0000000173,20/11/2020,3500,0,OPAREA,Opportunity Areas,4515,Contract Services,Places
Blackpool Council,1006984,Ser-Vac Ltd,559368,01481,16/11/2020,580,96.66,APCBCA,Langdale,3031,Cleaning Equipment - Purchase,Adult & Families
Blackpool Council,1073516,Purple Heather Ltd,559371,191020,18/11/2020,2700,0,JA1521,Lscb (Acpc),0981,Professional Fees,Children'S Services
Blackpool Council,1073516,Purple Heather Ltd,559372,201020,19/11/2020,3150,0,JA1521,Lscb (Acpc),0981,Professional Fees,Children'S Services
Blackpool Council,1011952,Empowerment,559374,1133,16/11/2020,1314.73,0,HS0003,Headstart Commissioning,3401,General Services,Children'S Services
Blackpool Council,1006099,Blackpool Teaching Hospitals Nhs Ft,559375,1110055989,23/11/2020,9211,1535.17,PUBH18,Stop Smoking Services & Interv,4501,Private Contractors,Public Health
Blackpool Council,1087234,Aitch Tools & Fasteners Ltd,559377,049195,16/11/2020,300,50,ZM0018,Highways & Engineering,9511A,Stocks Efin,Blackpool Services
Blackpool Council,1031656,Wigan Council,559378,71270550403,16/11/2020,3654,609,FK1003,Hr Systems & Info,0921,Advertising (Staff Vac.),Chief Executive
Blackpool Council,1117763,Street Angels - Angels Rest,559380,08,16/11/2020,400,0,HOPB,Housing Options,4004,Management Fees,Chief Executive
Blackpool Council,1011923,Rp Tyson Construction Ltd,559384,IN3046,13/11/2020,422584.62,0,CXC11,Site Development,6501,Contract Payments,Capital - Chief Executive
Blackpool Council,1011923,Rp Tyson Construction Ltd,559384,IN3046,13/11/2020,13069.63,0,ZH0001,Housing Revenue Account,97B6,Retention Monies - Cap Trsfr,Housing Revenue Account
Blackpool Council,1093618,Energy Assets Limited,559451,S0048445,16/11/2020,4729.78,788.3,FB0004,Energy & Sustainability,1203,Gas,Resources
Blackpool Council,1011896,Capita Business Services Ltd,559453,6004018891,19/11/2020,540,90,FBBEA,"Income, Recovery & Debtors",3605,Confs & Short Courses,Resources
Blackpool Council,1011896,Capita Business Services Ltd,559453,6004018891,19/11/2020,540,90,FCACA,Benefits - Admin,3605,Confs & Short Courses,Resources
Blackpool Council,1007206,Road Safety Services Ltd,559457,87769,18/11/2020,96314.4,16052.4,TRB,Maintenance & Works,4501,Private Contractors,Community & Env Services
Blackpool Council,1019678,Smirthwaite Ltd,559461,181665,25/11/2020,276,46,MTE,Undefined Age Group,5401,Aids To Daily Living,Adult & Families
Blackpool Council,1006196,Prism Medical Uk Ltd,559462,5434908,27/11/2020,317.54,52.92,MVA,18-64,5401,Aids To Daily Living,Adult & Families
Blackpool Council,1006196,Prism Medical Uk Ltd,559465,5384930,17/11/2020,417.71,69.62,CXAAA,Local Authority Dwellings,6501,Contract Payments,Capital - Chief Executive
Blackpool Council,1098293,Dy Property Services Ltd,559502,IV00389,17/11/2020,1360,0,HOPB,Housing Options,4004,Management Fees,Chief Executive
Blackpool Council,1026811,Stannah Lift Services Ltd,559511,1085247050,30/11/2020,441.72,73.62,MVB,65-74,5401,Aids To Daily Living,Adult & Families
Blackpool Council,1011714,Michael Hope Haulage Limited,559513,001497,17/11/2020,2112,352,SCHEME,Highways Schemes,1012,Premises Maint-Priv.Contractor,Community & Env Services
Blackpool Council,1011714,Michael Hope Haulage Limited,559514,001496,17/11/2020,2112,352,SCHEME,Highways Schemes,1012,Premises Maint-Priv.Contractor,Community & Env Services
Blackpool Council,1045794,Amion Consulting Limited,559515,AEL5157,18/11/2020,7134,1189,DDC,Partnerships & Business Dev,3413,Consultants,Places
Blackpool Council,1010138,C Cabs,559516,06530,17/11/2020,2241.6,0,EDDIV,Education Diversity,2201,Contract Hire,Children'S Services
Blackpool Council,1010138,C Cabs,559517,06529,17/11/2020,1436,0,EDDIV,Education Diversity,2201,Contract Hire,Children'S Services
Blackpool Council,1121728,Arrow County Supplies,559520,4866830,20/11/2020,267,0,ZM0018,Highways & Engineering,9773,Orders Received Not Invoiced,Blackpool Services
Blackpool Council,1121728,Arrow County Supplies,559520,4866830,20/11/2020,320.4,53.4,ZM0018,Highways & Engineering,9511A,Stocks Efin,Blackpool Services
Blackpool Council,1121728,Arrow County Supplies,559521,4866831,20/11/2020,265.44,44.24,ZM0018,Highways & Engineering,9511A,Stocks Efin,Blackpool Services
Blackpool Council,1124061,Gateway Qualifications Limited,559528,0000135681,18/11/2020,750,0,ALEARN,Adult Learning,3711,Subscriptions,Places
Blackpool Council,1010667,Argos Business Solutions Ltd,559532,01900596,27/11/2020,417.24,69.54,FC1802,Social Fund - Client,5210,Community Care Support,Resources
Blackpool Council,1075909,Viatec Uk Ltd,559546,1975766,20/11/2020,920,0,ZM0018,Highways & Engineering,9773,Orders Received Not Invoiced,Blackpool Services
Blackpool Council,1075909,Viatec Uk Ltd,559546,1975766,20/11/2020,1104,184,ZM0018,Highways & Engineering,9511A,Stocks Efin,Blackpool Services
Blackpool Council,1006644,Telewest/Virgin Media Payments Ltd,559547,067437901506,20/11/2020,3238.42,539.73,FGAA,Ict Corporate Services,3521,Landline - Line Rental,Resources
Blackpool Council,1006644,Telewest/Virgin Media Payments Ltd,559549,078850001547,20/11/2020,314.4,52.4,FGAA,Ict Corporate Services,3521,Landline - Line Rental,Resources
Blackpool Council,1006644,Telewest/Virgin Media Payments Ltd,559550,081127901504,20/11/2020,612,102,FGAA,Ict Corporate Services,3521,Landline - Line Rental,Resources
Blackpool Council,1006644,Telewest/Virgin Media Payments Ltd,559553,067437901003,18/11/2020,3557.81,592.97,FGAA,Ict Corporate Services,3521,Landline - Line Rental,Resources
Blackpool Council,1116762,Dt Electrical (Uk) Ltd,559554,IN1918,26/11/2020,1963.75,327.29,PJRA,Electrical Infra - Places,3308,Servicing,Places
Blackpool Council,1116762,Dt Electrical (Uk) Ltd,559555,IN1920,27/11/2020,850.8,141.8,PJRA,Electrical Infra - Places,3308,Servicing,Places
Blackpool Council,1116762,Dt Electrical (Uk) Ltd,559556,IN1919,27/11/2020,1089.9,181.65,PJLA,Maintenance,3308,Servicing,Places
Blackpool Council,1116762,Dt Electrical (Uk) Ltd,559558,IN1921,26/11/2020,3083.8,513.97,PJRA,Electrical Infra - Places,3308,Servicing,Places
Blackpool Council,1090628,The Furniture Recycling Group,559559,INV24190,24/11/2020,289.48,48.25,CWASTE,Commercial Waste,4514,Contract 'E',Community & Env Services
Blackpool Council,1101639,Aardvark Art Services Limited,559575,INV-14626,25/11/2020,636,106,AHHBA,Blackpool Museum,3801,Other Expenses,Places
Blackpool Council,1027732,The Staff College,559581,724,18/11/2020,1000,0,JA0505,Children'S Training,3711,Subscriptions,Children'S Services
Blackpool Council,1005071,Blackpool Transport Services Limited,559600,I0002626,27/11/2020,1160,0,PVA,Other External Funding,2301,Bus & Tram Fares,Places
Blackpool Council,1058250,Coram Voice,559605,VIVC0005394,23/11/2020,347.42,0,JA1531,Independent Reviewing Officers,3413,Consultants,Children'S Services
Blackpool Council,1058250,Coram Voice,559626,VIVC0005469,23/11/2020,402.29,0,JA1531,Independent Reviewing Officers,3413,Consultants,Children'S Services
Blackpool Council,1058250,Coram Voice,559627,VIVC0005680,23/11/2020,397,0,JA1531,Independent Reviewing Officers,3413,Consultants,Children'S Services
Blackpool Council,1058250,Coram Voice,559628,VIVC0005093,23/11/2020,586.72,0,JA1531,Independent Reviewing Officers,3413,Consultants,Children'S Services
Blackpool Council,1011675,Bambers Remedial Contractors Limited,559637,16666,19/11/2020,4949.01,0,CX4002,Disabled Facilities Grants,6501,Contract Payments,Capital - Adult Social Care
Blackpool Council,1011675,Bambers Remedial Contractors Limited,559638,16667,19/11/2020,5097.17,0,CX4002,Disabled Facilities Grants,6501,Contract Payments,Capital - Adult Social Care
Blackpool Council,1011675,Bambers Remedial Contractors Limited,559639,16669,19/11/2020,6150.13,0,CX4002,Disabled Facilities Grants,6501,Contract Payments,Capital - Adult Social Care
Blackpool Council,1058250,Coram Voice,559640,VIVC0005856,23/11/2020,323,0,JA1531,Independent Reviewing Officers,3413,Consultants,Children'S Services
Blackpool Council,1058250,Coram Voice,559642,VIVC0005872,23/11/2020,316.5,0,JA1531,Independent Reviewing Officers,3413,Consultants,Children'S Services
Blackpool Council,1011675,Bambers Remedial Contractors Limited,559643,16665,19/11/2020,4891.55,0,CX4002,Disabled Facilities Grants,6501,Contract Payments,Capital - Adult Social Care
Blackpool Council,1058250,Coram Voice,559644,VIVC0005951,23/11/2020,329.5,0,JA1531,Independent Reviewing Officers,3413,Consultants,Children'S Services
Blackpool Council,1009009,Hermolle Associates Ltd,559645,10078,19/11/2020,2982,497,HJA,Growth,3413,Consultants,Places
Blackpool Council,1058250,Coram Voice,559647,VIVC0005241,23/11/2020,454.52,0,JA1531,Independent Reviewing Officers,3413,Consultants,Children'S Services
Blackpool Council,1005071,Blackpool Transport Services Limited,559657,I0002627,27/11/2020,45003,0,OTHL,Other Learning,2201,Contract Hire,Children'S Services
Blackpool Council,1005071,Blackpool Transport Services Limited,559658,I0002628,27/11/2020,45003,0,OTHL,Other Learning,2201,Contract Hire,Children'S Services
Blackpool Council,1011970,A1 Streamline Road Markings Ltd,559661,6071,24/11/2020,305.74,50.96,ENGINE,Engineering,1012,Premises Maint-Priv.Contractor,Community & Env Services
Blackpool Council,1093145,On A Roll Sandwich Company,559666,193776,23/11/2020,931.41,0,CATERG,Catering Services,3101,Provisions,Community & Env Services
Blackpool Council,1091329,Pentagull Limited,559667,13188,19/11/2020,48000,8000,FGAB,Ict E-Government,3532,Comp-Running & License Costs,Resources
Blackpool Council,1093145,On A Roll Sandwich Company,559668,193775,23/11/2020,618,0,CATERG,Catering Services,3101,Provisions,Community & Env Services
Blackpool Council,1116244,Linda Clegg Consulting Ltd,559677,020,30/11/2020,1800,300,JEA,Senior Management,3401,General Services,Children'S Services
Blackpool Council,1125367,Abs Education Consultancy,559679,007,25/11/2020,775,0,MNGMT,Central Management,3413,Consultants,Children'S Services
Blackpool Council,1007206,Road Safety Services Ltd,559680,87767,19/11/2020,1408.43,234.74,ZM0003,Planning,9624,Rechargeable Works Account,Place Directorate
Blackpool Council,1023759,The Ashley Foundation,559681,026,19/11/2020,3467.07,0,HOPB,Housing Options,4004,Management Fees,Chief Executive
Blackpool Council,1023759,The Ashley Foundation,559682,025,19/11/2020,3696.6,0,HOPB,Housing Options,4004,Management Fees,Chief Executive
Blackpool Council,1073709,Delphi Medical Limited,559683,SINV86/00000678,26/11/2020,2130,0,PUBH04,Substance Misuse,4501,Private Contractors,Public Health
Blackpool Council,1007206,Road Safety Services Ltd,559691,87857,19/11/2020,422.4,70.4,ZM0003,Planning,9624,Rechargeable Works Account,Place Directorate
Blackpool Council,1123126,Matt Haylett T/A Mh Lighting,559694,219,26/11/2020,450,0,PJRA,Electrical Infra - Places,3308,Servicing,Places
Blackpool Council,1119933,Mitchell Bailey T/A Pda Technical,559696,279,23/11/2020,800,0,PJRA,Electrical Infra - Places,3308,Servicing,Places
Blackpool Council,1118794,Awol Adventure Limited,559698,5249,20/11/2020,2400,400,BSTPRJ,Better Start Projects,3401,General Services,Better Start Projects
Blackpool Council,1072848,Peter Rhodes,559726,01/001OCT20,19/11/2020,1526.6,0,TRCHIL,Integrated Transport Children,2201,Contract Hire,Community & Env Services
Blackpool Council,1013064,Tarmac Lafarge Trading Limited,559729,9042545145,25/11/2020,3690.62,615.1,ENGINE,Engineering,3041,Other Materials,Community & Env Services
Blackpool Council,1013064,Tarmac Lafarge Trading Limited,559730,9042532693,27/11/2020,2404.9,400.81,ENGINE,Engineering,3041,Other Materials,Community & Env Services
Blackpool Council,1118165,Pendrich Height Services Ltd,559733,0000011922,19/11/2020,89280.94,14254.94,FMAK,Acquisitions 9/10,2002,Repairs And Maintenance,Places
Blackpool Council,1117478,Pearson Insight Ltd,559734,PI1860,30/11/2020,1005,167.5,PJNA,New Features / Schemes - C & E,3308,Servicing,Places
Blackpool Council,1008525,Kingswood Office Supplies Limited,559735,389774,26/11/2020,310.46,51.74,LBF,Library Management,1603,Non-Consumable Supplies,Places
Blackpool Council,1011675,Bambers Remedial Contractors Limited,559741,16663,19/11/2020,7272.29,0,CX4002,Disabled Facilities Grants,6501,Contract Payments,Capital - Adult Social Care
Blackpool Council,1011675,Bambers Remedial Contractors Limited,559745,16670,19/11/2020,6123.71,0,CXAAA,Local Authority Dwellings,6501,Contract Payments,Capital - Chief Executive
Blackpool Council,1013064,Tarmac Lafarge Trading Limited,559749,9042575472,30/11/2020,3864.9,644.15,ENGINE,Engineering,3041,Other Materials,Community & Env Services
Blackpool Council,1122971,Mint Commercial And Healthcare Ltd (Fac087),559750,10091,30/11/2020,4385.22,730.87,EDDIV,Education Diversity,1607,Rechg Cleaning Dso,Children'S Services
Blackpool Council,1122971,Mint Commercial And Healthcare Ltd (Fac087),559751,10089,30/11/2020,4385.22,730.87,EDDIV,Education Diversity,1607,Rechg Cleaning Dso,Children'S Services
Blackpool Council,1123965,Evolve Military College Ltd,559752,00047,23/11/2020,2000,0,EDDIV,Education Diversity,4101,Other Local Authorities,Children'S Services
Blackpool Council,1123965,Evolve Military College Ltd,559753,00054,23/11/2020,2000,0,EDDIV,Education Diversity,4101,Other Local Authorities,Children'S Services
Blackpool Council,1122971,Mint Commercial And Healthcare Ltd (Fac087),559754,10090,30/11/2020,4385.22,730.87,EDDIV,Education Diversity,1607,Rechg Cleaning Dso,Children'S Services
Blackpool Council,1122971,Mint Commercial And Healthcare Ltd (Fac087),559755,10092,30/11/2020,4385.22,730.87,EDDIV,Education Diversity,1607,Rechg Cleaning Dso,Children'S Services
Blackpool Council,1026738,Cassidy + Ashton,559762,18065,20/11/2020,17452.2,2908.7,CS01DH,A P S Capital Works,6503,Capital Salaries (Pro Advance),Capital - Adult Social Care
Blackpool Council,1106132,Bridge Education And Training Ltd,559765,7291,26/11/2020,780,130,AEB,Buildings,0791,Temp/Relief (Bureau Staff),Resources
Blackpool Council,1106132,Bridge Education And Training Ltd,559765,7291,26/11/2020,810,135,AEF,Facilities,0791,Temp/Relief (Bureau Staff),Resources
Blackpool Council,1008966,Holden  Lee & Partners,559766,4837/1,23/11/2020,950.4,158.4,AED,Capital Projects,3413,Consultants,Resources
Blackpool Council,1105990,Fylde Environmental Services Ltd,559768,BC/387/2020,27/11/2020,3290,0,SCLEAN,Street Cleaning,4501,Private Contractors,Community & Env Services
Blackpool Council,1114704,Morson Human Resources Ltd,559772,HS314472,25/11/2020,2310,385,CTAHHI,Tramway Extention,6506,Consultants Fees,Capital - Commnctn & Regen
Blackpool Council,1011970,A1 Streamline Road Markings Ltd,559818,6022,20/11/2020,788.74,131.46,ENGINE,Engineering,1012,Premises Maint-Priv.Contractor,Community & Env Services
Blackpool Council,1006940,Smiths Equipment Hire Ltd - Smiths Training,559823,V01-864552,20/11/2020,617.76,102.96,ENGINE,Engineering,3041,Other Materials,Community & Env Services
Blackpool Council,1013064,Tarmac Lafarge Trading Limited,559826,9042545146,30/11/2020,797.58,132.93,ENGINE,Engineering,3041,Other Materials,Community & Env Services
Blackpool Council,1013064,Tarmac Lafarge Trading Limited,559828,9042513653,25/11/2020,551.98,91.99,ENGINE,Engineering,3041,Other Materials,Community & Env Services
Blackpool Council,1013064,Tarmac Lafarge Trading Limited,559829,9042521321,30/11/2020,507.54,84.59,ENGINE,Engineering,3041,Other Materials,Community & Env Services
Blackpool Council,1013064,Tarmac Lafarge Trading Limited,559831,9042551358,30/11/2020,418.62,69.77,ENGINE,Engineering,3041,Other Materials,Community & Env Services
Blackpool Council,1096112,Wagtail Uk Limited,559846,1547,23/11/2020,881.28,146.88,PYTA,Trading Standards,3313,General Expenses,Community & Env Services
Blackpool Council,1010138,C Cabs,559848,06554,20/11/2020,8047.5,0,TRCHIL,Integrated Transport Children,2201,Contract Hire,Community & Env Services
Blackpool Council,1010138,C Cabs,559849,06576,20/11/2020,1840.4,0,TRCHIL,Integrated Transport Children,2201,Contract Hire,Community & Env Services
Blackpool Council,1010138,C Cabs,559853,06575,20/11/2020,1338.4,0,TRCHIL,Integrated Transport Children,2201,Contract Hire,Community & Env Services
Blackpool Council,1073088,Muse Developments Limited,559859,51007576,24/11/2020,98247.07,16374.51,CGWBAA,Cbd Phase 2,6501,Contract Payments,Capital - Commnctn & Regen
Blackpool Council,1010300,Blacktax Radio Taxis T/A Blackpool Courier,559867,13894,20/11/2020,855,0,TRCHIL,Integrated Transport Children,2201,Contract Hire,Community & Env Services
Blackpool Council,1124173,Aim 2 Care Training Limited,559869,0220,30/11/2020,2860,0,APCBBE,Extra Support,0911,Training Expenses,Adult & Families
Blackpool Council,1055691,Norbain Sd Ltd,559871,I2965897,27/11/2020,2257.43,376.25,CCTV,Cctv,3041,Other Materials,Community & Env Services
Blackpool Council,1055691,Norbain Sd Ltd,559874,I2965898,27/11/2020,2814.44,469.08,CCTV,Cctv,3042,Direct Materials,Community & Env Services
Blackpool Council,1055691,Norbain Sd Ltd,559875,I2965899,27/11/2020,2814.44,469.08,CCTV,Cctv,3042,Direct Materials,Community & Env Services
Blackpool Council,1011714,Michael Hope Haulage Limited,559877,001498,20/11/2020,2112,352,SCHEME,Highways Schemes,1012,Premises Maint-Priv.Contractor,Community & Env Services
Blackpool Council,1073709,Delphi Medical Limited,559878,SINV86/00000680,27/11/2020,1491,0,PUBH04,Substance Misuse,4501,Private Contractors,Public Health
Blackpool Council,1005144,Blackpool Airport Operations Limited,559879,0000024125,23/11/2020,900,150,AEV,Vacant & Under Used,1301,Rent & Hire Of Premises,Resources
Blackpool Council,1113103,Joseph Boniface Architects Ltd,559886,42217953,23/11/2020,300,50,CGOAAA,Quality Corridor,6506,Consultants Fees,Capital - Commnctn & Regen
Blackpool Council,1113243,Mclaughlin & Harvey Ltd,559887,23386,20/11/2020,346887.79,57814.63,CGTBBB,Conference Centre,6501,Contract Payments,Capital - Commnctn & Regen
Blackpool Council,1113243,Mclaughlin & Harvey Ltd,559887,23386,20/11/2020,8940.41,0,ZF0001,"Insurance,Dso,Banking",97B6,Retention Monies - Cap Trsfr,Total Reconciliations
Blackpool Council,1114865,The Water Services Regulation Authority,559888,OFW0806,20/11/2020,1838,0,FB0004,Energy & Sustainability,1401,Water Charges-Metered,Resources
Blackpool Council,1073088,Muse Developments Limited,559943,51007654,23/11/2020,677778.23,112963.04,CGWBAA,Cbd Phase 2,6501,Contract Payments,Capital - Commnctn & Regen
Blackpool Council,1073088,Muse Developments Limited,559943,51007654,23/11/2020,27034.65,0,ZF0001,"Insurance,Dso,Banking",97B6,Retention Monies - Cap Trsfr,Total Reconciliations
Blackpool Council,1074325,Mangar International,559946,0000213692,24/11/2020,938.02,156.34,MTE,Undefined Age Group,5401,Aids To Daily Living,Adult & Families
Blackpool Council,1005071,Blackpool Transport Services Limited,559948,I0002636,27/11/2020,972.4,0,OTHL,Other Learning,2201,Contract Hire,Children'S Services
Blackpool Council,1074052,Brent Stevenson Memorials Ltd,559952,21929,26/11/2020,491.52,81.92,CEMCRE,Cems Crems Etc,3454,Remove And Refix Memorials,Governance & Partnerships
Blackpool Council,1016258,M J Teale Plant Hire Ltd,559957,INV-2642,24/11/2020,1259.33,209.89,SCHEME,Highways Schemes,1012,Premises Maint-Priv.Contractor,Community & Env Services
Blackpool Council,1010300,Blacktax Radio Taxis T/A Blackpool Courier,559960,13884,23/11/2020,1455,0,TRADUL,Intergrated Transport Adults,2201,Contract Hire,Community & Env Services
Blackpool Council,1116288,Amas Ltd - Common Receipts Account,559963,0751-1535206,23/11/2020,181625,0,HJI,Growth Investments,1301,Rent & Hire Of Premises,Places
Blackpool Council,1086156,Water Saving Techniques Limited,559975,4901,26/11/2020,11544,1924,TRB,Maintenance & Works,4501,Private Contractors,Community & Env Services
Blackpool Council,1093145,On A Roll Sandwich Company,559977,194208,27/11/2020,281.19,0,CATERG,Catering Services,3101,Provisions,Community & Env Services
Blackpool Council,1073709,Delphi Medical Limited,559980,SINV86/00000681,27/11/2020,4473,0,PUBH04,Substance Misuse,4501,Private Contractors,Public Health
Blackpool Council,1104671,Acp Concrete Limited,560016,32118,24/11/2020,2754,459,PJNA,New Features / Schemes - C & E,3041,Other Materials,Places
Blackpool Council,1006292,Vodafone Corporate Ltd,560018,OP37665,24/11/2020,418.8,69.8,FGAA,Ict Corporate Services,3531,Computer-H'Ware Purchase,Resources
Blackpool Council,1006292,Vodafone Corporate Ltd,560019,OQ37443,30/11/2020,399.6,66.6,FGAA,Ict Corporate Services,3531,Computer-H'Ware Purchase,Resources
Blackpool Council,1006292,Vodafone Corporate Ltd,560020,OQ37444,30/11/2020,399.6,66.6,FGAA,Ict Corporate Services,3531,Computer-H'Ware Purchase,Resources
Blackpool Council,1006292,Vodafone Corporate Ltd,560021,OQ37445,30/11/2020,399.6,66.6,FGAA,Ict Corporate Services,3531,Computer-H'Ware Purchase,Resources
Blackpool Council,1006292,Vodafone Corporate Ltd,560022,OQ37446,30/11/2020,399.6,66.6,FGAA,Ict Corporate Services,3531,Computer-H'Ware Purchase,Resources
Blackpool Council,1006292,Vodafone Corporate Ltd,560023,OQ37447,30/11/2020,399.6,66.6,FGAA,Ict Corporate Services,3531,Computer-H'Ware Purchase,Resources
Blackpool Council,1006292,Vodafone Corporate Ltd,560024,OQ37448,30/11/2020,399.6,66.6,FGAA,Ict Corporate Services,3531,Computer-H'Ware Purchase,Resources
Blackpool Council,1006292,Vodafone Corporate Ltd,560025,OQ37449,30/11/2020,399.6,66.6,FGAA,Ict Corporate Services,3531,Computer-H'Ware Purchase,Resources
Blackpool Council,1005102,Sandcastle Waterpark - Boc Ltd,560042,7607,24/11/2020,99477.33,16579.56,FB0004,Energy & Sustainability,1202,Electricity,Resources
Blackpool Council,1102434,Inform Cpi Limited,560044,AL62110,25/11/2020,4080,680,FC2011,Nndr Collection Costs,3401,General Services,Budgets Outside Cash Limits
Blackpool Council,1120775,Standard Fuel Oils,560046,135206,27/11/2020,9023.05,1503.84,ZF0001,"Insurance,Dso,Banking",9511A,Stocks Efin,Total Reconciliations
Blackpool Council,1018184,Blackpool Skip Hire Ltd,560051,8809,26/11/2020,4117.5,686.25,CWASTE,Commercial Waste,4514,Contract 'E',Community & Env Services
Blackpool Council,1044964,Marketing Lancashire,560057,1528,25/11/2020,1291.2,215.2,CGICAD,Enterprise Zone,6527,Marketing,Capital - Commnctn & Regen
Blackpool Council,1106462,Richard Moore T/A Mint Audio,560059,002,27/11/2020,3000,0,MUSIC,Music & Cultural Education,0781,Contracted,Children'S Services
Blackpool Council,1006633,Technology Services Ltd T/A The Lock Shop,560060,32068,27/11/2020,1024.27,170.71,GATE,Alleygates,3041,Other Materials,Community & Env Services
Blackpool Council,1123887,Castle Fine Arts Foundry Ltd,560087,22984,30/11/2020,5017.92,836.32,AHM,Arts Miscellaneous,3456,Payment To Artists,Places
Blackpool Council,1012096,St Mary'S Catholic Academy,560091,0000000345,25/11/2020,40000,0,EDDIV,Education Diversity,6236,High Needs Sen Support,Children'S Services
Blackpool Council,1011976,Randstad Public Services Limited,560094,4523076,25/11/2020,436.32,72.72,VIRTUL,Virtual Hub,5555,Educational Support,Children'S Services
Blackpool Council,1094882,Open Award Group (Duke Of Edinburgh'S Award),560098,09,25/11/2020,1562,0,LNOUCL,Learning Outside The Classroom,6273,Miscellaneous,Children'S Services
Blackpool Council,1009922,Cipfa,560099,5287709,25/11/2020,2082,347,FBBCA,Accountancy,0911,Training Expenses,Resources
Blackpool Council,1113103,Joseph Boniface Architects Ltd,560100,JBA472A-C,25/11/2020,300,50,CGOAAA,Quality Corridor,6506,Consultants Fees,Capital - Commnctn & Regen
Blackpool Council,1122364,Jsm Construction Ltd,560104,SI23572,26/11/2020,17747.44,2957.91,CGICAD,Enterprise Zone,6511,Service Connections / Altera,Capital - Commnctn & Regen
Blackpool Council,1086156,Water Saving Techniques Limited,560105,4902,27/11/2020,10392,1732,TRB,Maintenance & Works,4501,Private Contractors,Community & Env Services
Blackpool Council,1057261,Experian Ltd,560107,HEX54000706786,27/11/2020,8376.91,1396.15,CORDEV,Corporate Delivery Unit,0917,Other Exps,Chief Executive
Blackpool Council,1117264,True North Communications Ltd,560108,01724,26/11/2020,3150,525,AHHBA,Blackpool Museum,3801,Other Expenses,Places
Blackpool Council,1011369,Lancashire County Council,560126,5200219402,26/11/2020,1017,0,FR5001,Concessionary Fares,3401,General Services,Budgets Outside Cash Limits
Blackpool Council,1000009,Blackpool & The Fylde College,560128,S0022300,26/11/2020,9000,0,LM0420,Adults Training,1901,Contributions To Funds,Adult & Families
Blackpool Council,1010386,Montgomery Academy,560143,3000000169,30/11/2020,19005.26,0,OPAREA,Opportunity Areas,4515,Contract Services,Places
Blackpool Council,1112127,T & C Laycock,560147,INV-0244,26/11/2020,1080,180,PJNA,New Features / Schemes - C & E,3041,Other Materials,Places
Blackpool Council,1083256,Community Lighting Partnership (Bpool) Ltd,560149,131A,27/11/2020,513955.5,85659.25,FL1259,Pfi Management Costs,4501,Private Contractors,Community & Env Services
Blackpool Council,1026811,Stannah Lift Services Ltd,560182,1085239174,26/11/2020,12925,0,CX4002,Disabled Facilities Grants,6501,Contract Payments,Capital - Adult Social Care
Blackpool Council,1119933,Mitchell Bailey T/A Pda Technical,560185,280,30/11/2020,560,0,PJRA,Electrical Infra - Places,3308,Servicing,Places
Blackpool Council,1123965,Evolve Military College Ltd,560186,00048,26/11/2020,2000,0,EDDIV,Education Diversity,4101,Other Local Authorities,Children'S Services
Blackpool Council,1123965,Evolve Military College Ltd,560187,00049,26/11/2020,2000,0,EDDIV,Education Diversity,4101,Other Local Authorities,Children'S Services
Blackpool Council,1026782,The Prince'S Trust,560188,008115,26/11/2020,642.5,0,EDDIV,Education Diversity,3404,Exam Fees & Exps (Sch),Children'S Services
Blackpool Council,1012071,Bethell Construction Limited,560199,16958,30/11/2020,11079.84,1846.64,ENGINE,Engineering,1012,Premises Maint-Priv.Contractor,Community & Env Services
Blackpool Council,1011369,Lancashire County Council,560291,5200219408,27/11/2020,292567,0,FR5001,Concessionary Fares,3401,General Services,Budgets Outside Cash Limits
Blackpool Council,1119674,Waterman Laundry Equipment Ltd,560292,W001927,27/11/2020,279.96,46.66,APDBBB,Arc,3211,Laundry,Adult & Families
Blackpool Council,1119674,Waterman Laundry Equipment Ltd,560293,W001928,27/11/2020,363.96,60.66,APDBBB,Arc,3211,Laundry,Adult & Families
Blackpool Council,1120775,Standard Fuel Oils,560304,135648,27/11/2020,15375.35,2562.56,ZF0001,"Insurance,Dso,Banking",9511A,Stocks Efin,Total Reconciliations
Blackpool Council,1011369,Lancashire County Council,560317,5200218471,27/11/2020,845,0,FR5001,Concessionary Fares,3401,General Services,Budgets Outside Cash Limits
Blackpool Council,1011369,Lancashire County Council,560318,5200218192,27/11/2020,292567,0,FR5001,Concessionary Fares,3401,General Services,Budgets Outside Cash Limits
Blackpool Council,1120847,REDACTED PERSONAL DATA,560320,04,27/11/2020,472.5,0,ALEARN,Adult Learning,0917,Other Exps,Places
Blackpool Council,1090902,Anderson & Sons Contracting & Turf Care,560327,240,27/11/2020,3500,0,TRB,Maintenance & Works,4501,Private Contractors,Community & Env Services
Blackpool Council,1118491,School-Home Support Service (Uk),560335,685,30/11/2020,57981.33,0,OPAREA,Opportunity Areas,4515,Contract Services,Places
Blackpool Council,1118491,School-Home Support Service (Uk),560336,686,30/11/2020,31547,0,OPAREA,Opportunity Areas,4515,Contract Services,Places
Blackpool Council,1118491,School-Home Support Service (Uk),560337,687,30/11/2020,31547,0,OPAREA,Opportunity Areas,4515,Contract Services,Places
Blackpool Council,1077963,Electricity Northwest Ltd,560338,5500185871,30/11/2020,4761.96,793.66,FB0004,Energy & Sustainability,1202,Electricity,Resources
Blackpool Council,1093618,Energy Assets Limited,560339,EAL2020/3765,30/11/2020,5546.47,924.41,FB0004,Energy & Sustainability,1203,Gas,Resources
Blackpool Council,1006099,Blackpool Teaching Hospitals Nhs Ft,560407,1110055848,30/11/2020,3354.33,0,BC3001,Information Governance,0191,Wages-Other,Governance & Partnerships
Blackpool Council,1006099,Blackpool Teaching Hospitals Nhs Ft,560408,1110055594,30/11/2020,3354.33,0,BC3001,Information Governance,0191,Wages-Other,Governance & Partnerships
Blackpool Council,1006099,Blackpool Teaching Hospitals Nhs Ft,560409,1110055392,30/11/2020,3354.33,0,BC3001,Information Governance,0191,Wages-Other,Governance & Partnerships
Blackpool Council,1006099,Blackpool Teaching Hospitals Nhs Ft,560410,1110055382,30/11/2020,3354.33,0,BC3001,Information Governance,0191,Wages-Other,Governance & Partnerships
Blackpool Council,1006099,Blackpool Teaching Hospitals Nhs Ft,560411,1110054896,30/11/2020,6940.52,0,BC3001,Information Governance,0191,Wages-Other,Governance & Partnerships
Blackpool Council,1011995,Technical & Electrical Services Ltd,4303847,C 8752,04/11/2020,4976.94,829.49,CXC11,Site Development,6501,Contract Payments,Capital - Chief Executive
Blackpool Council,1011995,Technical & Electrical Services Ltd,4310720,M 19711,05/11/2020,279.36,46.56,CXB91,Hra Capital Programme 2020/21,6501,Contract Payments,Capital - Chief Executive
Blackpool Council,1011995,Technical & Electrical Services Ltd,4310721,M 19709,05/11/2020,279.36,46.56,CXB91,Hra Capital Programme 2020/21,6501,Contract Payments,Capital - Chief Executive
Blackpool Council,1116805,REDACTED PERSONAL DATA,4314204,BURSARY - 2,24/11/2020,500,0,JEA,Senior Management,5555,Educational Support,Children'S Services
Blackpool Council,1116805,REDACTED PERSONAL DATA,4314205,BURSARY - 3,24/11/2020,500,0,JEA,Senior Management,5555,Educational Support,Children'S Services
Blackpool Council,1116805,REDACTED PERSONAL DATA,4314206,BURSARY - 4,24/11/2020,500,0,JEA,Senior Management,5555,Educational Support,Children'S Services
Blackpool Council,1011675,Bambers Remedial Contractors Limited,4314979,16519,02/11/2020,7728,1288,CXB91,Hra Capital Programme 2020/21,6501,Contract Payments,Capital - Chief Executive
Blackpool Council,1011675,Bambers Remedial Contractors Limited,4315021,16517,05/11/2020,2721.6,453.6,CXB91,Hra Capital Programme 2020/21,6501,Contract Payments,Capital - Chief Executive
Blackpool Council,1011995,Technical & Electrical Services Ltd,4315976,M 19758,04/11/2020,276,46,CXB91,Hra Capital Programme 2020/21,6501,Contract Payments,Capital - Chief Executive
Blackpool Council,1062185,Mark Garner Tree Services,4316749,0025,09/11/2020,540,90,CXXXX,Hra Non Specific Contingency,6501,Contract Payments,Capital - Chief Executive
Blackpool Council,1117457,Wrps Ltd,4318167,6550,09/11/2020,279.42,46.57,CXB91,Hra Capital Programme 2020/21,6501,Contract Payments,Capital - Chief Executive
Blackpool Council,1107100,Nonstop Consulting Ltd,4321322,175939,02/11/2020,254.88,42.48,JAB,Locality,0791,Temp/Relief (Bureau Staff),Children'S Services
Blackpool Council,1107100,Nonstop Consulting Ltd,4321323,175879,02/11/2020,2032.63,338.77,JAB,Locality,0791,Temp/Relief (Bureau Staff),Children'S Services
Blackpool Council,1112231,North West Fire Protection Limited,4322313,0001ABCH,05/11/2020,2422.73,403.79,CXB91,Hra Capital Programme 2020/21,6501,Contract Payments,Capital - Chief Executive
Blackpool Council,1121514,Choices Home For Children Ltd,4323031,1432,06/11/2020,12842.86,0,JEA,Senior Management,4501,Private Contractors,Children'S Services
Blackpool Council,1115716,North Liverpool Construction Ltd (Fac067),4324849,127783,09/11/2020,4684.64,780.77,CXXXX,Hra Non Specific Contingency,6501,Contract Payments,Capital - Chief Executive
Blackpool Council,1006099,Blackpool Teaching Hospitals Nhs Ft,4324919,1110055579,19/11/2020,5418,0,BSTPRJ,Better Start Projects,3401,General Services,Better Start Projects
Blackpool Council,1006099,Blackpool Teaching Hospitals Nhs Ft,4324920,1110055581,19/11/2020,5418,0,BSTPRJ,Better Start Projects,3401,General Services,Better Start Projects
Blackpool Council,1107100,Nonstop Consulting Ltd,4324925,176073,02/11/2020,2032.63,338.77,JAB,Locality,0791,Temp/Relief (Bureau Staff),Children'S Services
Blackpool Council,1009300,Fylde Coast Women'S Aid,4326542,16/20-21,10/11/2020,51576,0,SP1019,Domestic Violence,5101,Transfer Payments - General,Adult & Families
Blackpool Council,1044395,Sellick Partnership Limited,4326896,INV328578,04/11/2020,2808.6,468.1,JBT,Looked After Children,0793,Supply Cost Of Other Agency,Children'S Services
Blackpool Council,1044395,Sellick Partnership Limited,4326898,INV328496,04/11/2020,1339.2,223.2,JBT,Looked After Children,0793,Supply Cost Of Other Agency,Children'S Services
Blackpool Council,1008450,Lawrence Vehicles Ltd T/A Lancashire Daf,4327055,1647473 ,04/11/2020,354,59,CVMU,Cvmu,3041,Other Materials,Community & Env Services
Blackpool Council,1118567,J&F Drainage Ltd,4328226,BCH73096FW,02/11/2020,1176,196,CXXXX,Hra Non Specific Contingency,6501,Contract Payments,Capital - Chief Executive
Blackpool Council,1118567,J&F Drainage Ltd,4328228,BCH72738FW,02/11/2020,1056,176,CXXXX,Hra Non Specific Contingency,6501,Contract Payments,Capital - Chief Executive
Blackpool Council,1099411,Llg Legal Training,4328348,LLG-00242,05/11/2020,258,43,BAAA,Legal Services,0911,Training Expenses,Governance & Partnerships
Blackpool Council,1107100,Nonstop Consulting Ltd,4329352,176297,05/11/2020,2060.1,343.35,JAB,Locality,0791,Temp/Relief (Bureau Staff),Children'S Services
Blackpool Council,1110132,Health Assured Ltd,4330145,SF-064409,06/11/2020,3185.15,530.86,FK0013,Corporate Health,0992,Medical Fees (Employee),Chief Executive
Blackpool Council,1123674,Innovate (H&Sc) Services Limited,4330166,IHSC00000119,03/11/2020,14308.48,2384.75,JBT,Looked After Children,0791,Temp/Relief (Bureau Staff),Children'S Services
Blackpool Council,1123674,Innovate (H&Sc) Services Limited,4330167,IHSC00000114,03/11/2020,3275.71,545.95,JBT,Looked After Children,0791,Temp/Relief (Bureau Staff),Children'S Services
Blackpool Council,1123190,Cder Group Limted,4330292,142844,06/11/2020,1750.62,291.77,FBBEA,"Income, Recovery & Debtors",3807,Legal & Court Costs,Resources
Blackpool Council,1101279,Greenpass Training,4330743,051001,04/11/2020,3960,0,CVMU,Cvmu,3426,Course Fees,Community & Env Services
Blackpool Council,1114000,Dac Beachcroft Claims Limited,4330795,450033280,02/11/2020,386,0,RK6008,Gallagher Bassett Sensitive,4705,Solicitors Fees,Internal Insurance
Blackpool Council,1007481,Pond Marsh Solicitors,4330796,SEARLE - 19654,02/11/2020,1222.33,142.05,BAAA,Legal Services,4715,Other Fees,Governance & Partnerships
Blackpool Council,1054796,Bolton Gate Services Ltd,4330842,SI0037146,05/11/2020,366,61,FMAE,Civic Centre,1012,Premises Maint-Priv.Contractor,Resources
Blackpool Council,1039034,Contract Floors Ltd,4331172,INV-1323,02/11/2020,342,57,CXB91,Hra Capital Programme 2020/21,6501,Contract Payments,Capital - Chief Executive
Blackpool Council,1104767,North Star Environmental Ltd,4331176,INV-20350,06/11/2020,630,105,CXB91,Hra Capital Programme 2020/21,6501,Contract Payments,Capital - Chief Executive
Blackpool Council,1120588,G2 Recruitment Solutions,4331245,74437,06/11/2020,1400.4,233.4,AEF,Facilities,0791,Temp/Relief (Bureau Staff),Resources
Blackpool Council,1120588,G2 Recruitment Solutions,4331246,74465,06/11/2020,3150,525,AEF,Facilities,1012,Premises Maint-Priv.Contractor,Resources
Blackpool Council,1123190,Cder Group Limted,4331276,142831,06/11/2020,3374.59,562.43,FV6705,Phoenix Commercial Collection,7366,Car Parking Fees,Budgets Outside Cash Limits
Blackpool Council,1063606,Your Housing Limited,4331284,RM 1/011,04/11/2020,566.6,0,MTE,Undefined Age Group,1301,Rent & Hire Of Premises,Adult & Families
Blackpool Council,1063606,Your Housing Limited,4331285,RM 2/012,04/11/2020,566.6,0,MTE,Undefined Age Group,1301,Rent & Hire Of Premises,Adult & Families
Blackpool Council,1063606,Your Housing Limited,4331287,RM 3/013,04/11/2020,566.6,0,MTE,Undefined Age Group,1301,Rent & Hire Of Premises,Adult & Families
Blackpool Council,1063606,Your Housing Limited,4331288,RM 4/010,04/11/2020,566.6,0,MTE,Undefined Age Group,1301,Rent & Hire Of Premises,Adult & Families
Blackpool Council,1044395,Sellick Partnership Limited,4331294,INV329352,11/11/2020,2790,465,JBT,Looked After Children,0793,Supply Cost Of Other Agency,Children'S Services
Blackpool Council,1088102,Whistl Uk Limited,4331295,IN18US20005474,06/11/2020,3307.9,551.32,FCADA,Customer Services,3511,Postages,Resources
Blackpool Council,1049869,Voyage 1 Limited T/A Voyage Care,4331885,BSBS00084,10/11/2020,6688.48,396.56,MSA,18-64,4507,Domiciliary Care,Adult & Families
Blackpool Council,1049869,Voyage 1 Limited T/A Voyage Care,4331886,BSBS00088,10/11/2020,5552.88,393.48,MSA,18-64,4507,Domiciliary Care,Adult & Families
Blackpool Council,1049869,Voyage 1 Limited T/A Voyage Care,4331887,BSBS00083,10/11/2020,5235.14,351.18,MHA,Older People ( U65) With Ld,4507,Domiciliary Care,Adult & Families
Blackpool Council,1044395,Sellick Partnership Limited,4332356,INV329381,11/11/2020,1599.6,266.6,JBT,Looked After Children,0793,Supply Cost Of Other Agency,Children'S Services
Blackpool Council,1115716,North Liverpool Construction Ltd (Fac067),4332568,127956,12/11/2020,507,84.5,MVA,18-64,5401,Aids To Daily Living,Adult & Families
Blackpool Council,1011995,Technical & Electrical Services Ltd,4332579,M 19839,05/11/2020,279.36,46.56,CXB91,Hra Capital Programme 2020/21,6501,Contract Payments,Capital - Chief Executive
Blackpool Council,1011995,Technical & Electrical Services Ltd,4332580,M 19840,04/11/2020,552,92,CXB91,Hra Capital Programme 2020/21,6501,Contract Payments,Capital - Chief Executive
Blackpool Council,1011995,Technical & Electrical Services Ltd,4332583,M 19842,04/11/2020,276,46,CXB91,Hra Capital Programme 2020/21,6501,Contract Payments,Capital - Chief Executive
Blackpool Council,1115716,North Liverpool Construction Ltd (Fac067),4332591,127954,12/11/2020,468,78,MVB,65-74,5401,Aids To Daily Living,Adult & Families
Blackpool Council,1115716,North Liverpool Construction Ltd (Fac067),4332597,127959,12/11/2020,468,78,MVB,65-74,5401,Aids To Daily Living,Adult & Families
Blackpool Council,1069355,Volunteer Centre Blackpool Wyre & Fylde Ltd,4332741,BSABOXES2020313,19/11/2020,580,0,BSTPRJ,Better Start Projects,3401,General Services,Better Start Projects
Blackpool Council,1102569,Shannon Educational Psychology Ltd,4332743,259,19/11/2020,4480,0,BSTPRJ,Better Start Projects,3401,General Services,Better Start Projects
Blackpool Council,1012096,REDACTED PERSONAL DATA,4332744,0000000339,09/11/2020,5800,0,CWAN,Children With Additional Needs,4403,Special Needs - Children,Children'S Services
Blackpool Council,1107100,Nonstop Consulting Ltd,4332754,176501,12/11/2020,2032.63,338.77,JAB,Locality,0791,Temp/Relief (Bureau Staff),Children'S Services
Blackpool Council,1111078,Dr Y P Shukla,4332756,53/2020,10/11/2020,1050,0,JDEAAA,Safeguarding Adults,4501,Private Contractors,Adult & Families
Blackpool Council,1111078,Dr Y P Shukla,4332758,52/2020,10/11/2020,1050,0,JDEAAA,Safeguarding Adults,4501,Private Contractors,Adult & Families
Blackpool Council,1111078,Dr Y P Shukla,4332760,51/2020,10/11/2020,1050,0,JDEAAA,Safeguarding Adults,4501,Private Contractors,Adult & Families
Blackpool Council,1111078,Dr Y P Shukla,4332761,54/2020,10/11/2020,1050,0,JDEAAA,Safeguarding Adults,4501,Private Contractors,Adult & Families
Blackpool Council,1076015,Ks Education Limited T/A Roselyn House School,4332768,1809,09/11/2020,1295.89,0,CWAN,Children With Additional Needs,2211,Casual Hire,Children'S Services
Blackpool Council,1123818,Vicar'S Relief Fund,4332941,C1EF1\204118,09/11/2020,300,0,HAAAB,Strategy & Projects,3801,Other Expenses,Net Cost Of Services
Blackpool Council,1007789,Northern Jack Specialists,4332947,111239 ,11/11/2020,468,78,CVMU,Cvmu,3001,Office Equipment Purchase,Community & Env Services
Blackpool Council,1008450,Lawrence Vehicles Ltd T/A Lancashire Daf,4332948,1648566 ,12/11/2020,303.24,50.54,CVMU,Cvmu,3041,Other Materials,Community & Env Services
Blackpool Council,1029067,Johnston Sweepers Limited,4332968,61912296 ,12/11/2020,298.18,49.7,CVMU,Cvmu,3041,Other Materials,Community & Env Services
Blackpool Council,1116447,W J Sanderson & Sons Ltd,4332976,INV-00725,04/11/2020,3648,608,CVMU,Cvmu,4501,Private Contractors,Community & Env Services
Blackpool Council,1052479,Kids,4333103,13933,09/11/2020,425,0,CWAN,Children With Additional Needs,4403,Special Needs - Children,Children'S Services
Blackpool Council,1115868,Aspire Behaviour Management Ltd,4333134,1693,09/11/2020,14652,2442,CWAN,Children With Additional Needs,4501,Private Contractors,Children'S Services
Blackpool Council,1104552,Hexagon Care Services Ltd,4333136,22282,09/11/2020,10157.65,0,CWAN,Children With Additional Needs,4501,Private Contractors,Children'S Services
Blackpool Council,1057348,Venn Group Limited,4333139,3697003,06/11/2020,2026.91,337.82,BAAA,Legal Services,0793,Supply Cost Of Other Agency,Governance & Partnerships
Blackpool Council,1123190,Cder Group Limted,4333143,143543,13/11/2020,11271.67,1878.61,FBBEA,"Income, Recovery & Debtors",3807,Legal & Court Costs,Resources
Blackpool Council,1007945,The Fostering Network,4333159,RINV/00004505,06/11/2020,720,120,JBR,Lac - Placements,3801,Other Expenses,Children'S Services
Blackpool Council,1007945,The Fostering Network,4333160,RINV/00004489,06/11/2020,720,120,JBR,Lac - Placements,3801,Other Expenses,Children'S Services
Blackpool Council,1084763,Partridge & Print Ltd,4333440,166342,06/11/2020,257.75,0,JBR,Lac - Placements,3304,Books And Periodicals,Children'S Services
Blackpool Council,1121406,T M Woodflooring Solutions Ltd,4334032,201,05/11/2020,7550.4,1258.4,AEB,Buildings,1012,Premises Maint-Priv.Contractor,Resources
Blackpool Council,1123674,Innovate (H&Sc) Services Limited,4334034,IHSC00000126,10/11/2020,14378.14,2396.36,JAB,Locality,0791,Temp/Relief (Bureau Staff),Children'S Services
Blackpool Council,1041219,Abelglass Trade Supplies Ltd,4334061,INV-5002,02/11/2020,638.4,106.4,CXB91,Hra Capital Programme 2020/21,6501,Contract Payments,Capital - Chief Executive
Blackpool Council,1066073,Blackpool Coastal Housing,4334062,30001851,04/11/2020,71640.44,11940.07,CXB91,Hra Capital Programme 2020/21,6501,Contract Payments,Capital - Chief Executive
Blackpool Council,1066073,Blackpool Coastal Housing,4334063,30001852,04/11/2020,46616.57,7769.43,CXC11,Site Development,6501,Contract Payments,Capital - Chief Executive
Blackpool Council,1117457,Wrps Ltd,4334065,6830,13/11/2020,5301,883.5,CXXXX,Hra Non Specific Contingency,6501,Contract Payments,Capital - Chief Executive
Blackpool Council,1057348,Venn Group Limited,4334069,3699091,13/11/2020,1865.26,310.88,BAAA,Legal Services,0793,Supply Cost Of Other Agency,Governance & Partnerships
Blackpool Council,1057348,Venn Group Limited,4334070,3699092,13/11/2020,2786.46,464.41,BAAA,Legal Services,0793,Supply Cost Of Other Agency,Governance & Partnerships
Blackpool Council,1007321,R.S.P. Ltd,4334072,000000350429,19/11/2020,1308.6,0,EM2001,Administration Team,2302,Rail Fares,Children'S Services
Blackpool Council,1006202,I Care Gb Limited,4334073,BPLEX/1110E,10/11/2020,15931.37,0,MVB,65-74,4512,Other Care Block Payments,Adult & Families
Blackpool Council,1006202,I Care Gb Limited,4334074,BPLEX/1110T,10/11/2020,13295.44,0,MVB,65-74,4512,Other Care Block Payments,Adult & Families
Blackpool Council,1117457,Wrps Ltd,4334075,6829,13/11/2020,5472,912,CXB91,Hra Capital Programme 2020/21,6501,Contract Payments,Capital - Chief Executive
Blackpool Council,1011675,Bambers Remedial Contractors Limited,4334076,16621,17/11/2020,20405.32,3400.89,CXB91,Hra Capital Programme 2020/21,6501,Contract Payments,Capital - Chief Executive
Blackpool Council,1104767,North Star Environmental Ltd,4334077,INV-20477,13/11/2020,252,42,CXB91,Hra Capital Programme 2020/21,6501,Contract Payments,Capital - Chief Executive
Blackpool Council,1092200,Aiming Higher,4334080,010632,10/11/2020,19463.76,0,CWAN,Children With Additional Needs,5101,Transfer Payments - General,Children'S Services
Blackpool Council,1007183,Royal Mail Group Ltd,4334085,9061706330,03/11/2020,629.62,104.94,BGA,Electoral Services,3511,Postages,Governance & Partnerships
Blackpool Council,1099262,Nhs Blackpool Ccg,4334639,7011217254,03/11/2020,1574,0,MGC,75-84,4201,Joint Authorities,Adult & Families
Blackpool Council,1099262,Nhs Blackpool Ccg,4334640,7011217350,03/11/2020,2195,0,MFA,Adults Under 65 With Mh,4201,Joint Authorities,Adult & Families
Blackpool Council,1099262,Nhs Blackpool Ccg,4334641,7011217256,03/11/2020,5086.38,0,MVB,65-74,4201,Joint Authorities,Adult & Families
Blackpool Council,1099262,Nhs Blackpool Ccg,4334642,7011217257,03/11/2020,8782.06,0,MFA,Adults Under 65 With Mh,4201,Joint Authorities,Adult & Families
Blackpool Council,1099262,Nhs Blackpool Ccg,4334643,7011217261,03/11/2020,5815.72,0,MGB,65-74,4201,Joint Authorities,Adult & Families
Blackpool Council,1099262,Nhs Blackpool Ccg,4334644,7011217269,03/11/2020,3419.17,0,MFB,65-74,4201,Joint Authorities,Adult & Families
Blackpool Council,1099262,Nhs Blackpool Ccg,4334645,7011217276,03/11/2020,8417.79,0,MGB,65-74,4201,Joint Authorities,Adult & Families
Blackpool Council,1099262,Nhs Blackpool Ccg,4334646,7011217290,03/11/2020,3104.08,0,MFA,Adults Under 65 With Mh,4201,Joint Authorities,Adult & Families
Blackpool Council,1099262,Nhs Blackpool Ccg,4334647,7011217294,03/11/2020,4211.58,0,MFA,Adults Under 65 With Mh,4201,Joint Authorities,Adult & Families
Blackpool Council,1099262,Nhs Blackpool Ccg,4334648,7011217298,03/11/2020,1342.46,0,MFA,Adults Under 65 With Mh,4201,Joint Authorities,Adult & Families
Blackpool Council,1099262,Nhs Blackpool Ccg,4334649,7011217299,03/11/2020,4274.87,0,MFA,Adults Under 65 With Mh,4201,Joint Authorities,Adult & Families
Blackpool Council,1099262,Nhs Blackpool Ccg,4334650,7011217300,03/11/2020,3976,0,MFA,Adults Under 65 With Mh,4201,Joint Authorities,Adult & Families
Blackpool Council,1099262,Nhs Blackpool Ccg,4334651,7011217303,03/11/2020,2433.6,0,MFA,Adults Under 65 With Mh,4201,Joint Authorities,Adult & Families
Blackpool Council,1099262,Nhs Blackpool Ccg,4334652,7011217304,03/11/2020,3308.75,0,MXA,18-64,4201,Joint Authorities,Adult & Families
Blackpool Council,1099262,Nhs Blackpool Ccg,4334653,7011217305,03/11/2020,2217,0,MFA,Adults Under 65 With Mh,4201,Joint Authorities,Adult & Families
Blackpool Council,1099262,Nhs Blackpool Ccg,4334654,7011217307,03/11/2020,2006.92,0,MFA,Adults Under 65 With Mh,4201,Joint Authorities,Adult & Families
Blackpool Council,1099262,Nhs Blackpool Ccg,4334655,7011217308,03/11/2020,2431,0,MFA,Adults Under 65 With Mh,4201,Joint Authorities,Adult & Families
Blackpool Council,1099262,Nhs Blackpool Ccg,4334656,7011217309,03/11/2020,2247,0,MFA,Adults Under 65 With Mh,4201,Joint Authorities,Adult & Families
Blackpool Council,1099262,Nhs Blackpool Ccg,4334657,7011217310,03/11/2020,3855.6,0,MFA,Adults Under 65 With Mh,4201,Joint Authorities,Adult & Families
Blackpool Council,1099262,Nhs Blackpool Ccg,4334658,7011217311,03/11/2020,4324.85,0,MFA,Adults Under 65 With Mh,4201,Joint Authorities,Adult & Families
Blackpool Council,1099262,Nhs Blackpool Ccg,4334659,7011217314,03/11/2020,1566.2,0,MFA,Adults Under 65 With Mh,4201,Joint Authorities,Adult & Families
Blackpool Council,1099262,Nhs Blackpool Ccg,4334660,7011217315,03/11/2020,3056.04,0,MFA,Adults Under 65 With Mh,4201,Joint Authorities,Adult & Families
Blackpool Council,1099262,Nhs Blackpool Ccg,4334661,7011217317,03/11/2020,4411.8,0,MFA,Adults Under 65 With Mh,4201,Joint Authorities,Adult & Families
Blackpool Council,1099262,Nhs Blackpool Ccg,4334662,7011217319,03/11/2020,4726.92,0,MFA,Adults Under 65 With Mh,4201,Joint Authorities,Adult & Families
Blackpool Council,1099262,Nhs Blackpool Ccg,4334663,7011217320,03/11/2020,9801.12,0,MHA,Older People ( U65) With Ld,4201,Joint Authorities,Adult & Families
Blackpool Council,1099262,Nhs Blackpool Ccg,4334664,7011217322,03/11/2020,1610.5,0,MFA,Adults Under 65 With Mh,4201,Joint Authorities,Adult & Families
Blackpool Council,1099262,Nhs Blackpool Ccg,4334666,7011217325,03/11/2020,1771,0,MFA,Adults Under 65 With Mh,4201,Joint Authorities,Adult & Families
Blackpool Council,1099262,Nhs Blackpool Ccg,4334667,7011217326,03/11/2020,3147.36,0,MFA,Adults Under 65 With Mh,4201,Joint Authorities,Adult & Families
Blackpool Council,1099262,Nhs Blackpool Ccg,4334668,7011217327,03/11/2020,5184.36,0,MHA,Older People ( U65) With Ld,4201,Joint Authorities,Adult & Families
Blackpool Council,1099262,Nhs Blackpool Ccg,4334669,7011217328,03/11/2020,2479.96,0,MFA,Adults Under 65 With Mh,4201,Joint Authorities,Adult & Families
Blackpool Council,1099262,Nhs Blackpool Ccg,4334670,7011217329,03/11/2020,1590,0,MFA,Adults Under 65 With Mh,4201,Joint Authorities,Adult & Families
Blackpool Council,1099262,Nhs Blackpool Ccg,4334671,7011217331,03/11/2020,3300,0,MFA,Adults Under 65 With Mh,4201,Joint Authorities,Adult & Families
Blackpool Council,1099262,Nhs Blackpool Ccg,4334672,7011217332,03/11/2020,7376,0,MFB,65-74,4201,Joint Authorities,Adult & Families
Blackpool Council,1099262,Nhs Blackpool Ccg,4334673,7011217333,03/11/2020,3360,0,MFA,Adults Under 65 With Mh,4201,Joint Authorities,Adult & Families
Blackpool Council,1099262,Nhs Blackpool Ccg,4334674,7011217334,03/11/2020,4492.62,0,MFA,Adults Under 65 With Mh,4201,Joint Authorities,Adult & Families
Blackpool Council,1099262,Nhs Blackpool Ccg,4334675,7011217338,03/11/2020,3518.04,0,MFA,Adults Under 65 With Mh,4201,Joint Authorities,Adult & Families
Blackpool Council,1099262,Nhs Blackpool Ccg,4334676,7011217340,03/11/2020,3287.04,0,MFA,Adults Under 65 With Mh,4201,Joint Authorities,Adult & Families
Blackpool Council,1099262,Nhs Blackpool Ccg,4334677,7011217345,03/11/2020,1598.22,0,MFA,Adults Under 65 With Mh,4201,Joint Authorities,Adult & Families
Blackpool Council,1099262,Nhs Blackpool Ccg,4334678,7011217346,03/11/2020,2761.48,0,MFA,Adults Under 65 With Mh,4201,Joint Authorities,Adult & Families
Blackpool Council,1099262,Nhs Blackpool Ccg,4334679,7011217347,03/11/2020,384.79,0,MVB,65-74,4201,Joint Authorities,Adult & Families
Blackpool Council,1099262,Nhs Blackpool Ccg,4334680,7011217255,03/11/2020,1574,0,MVC,75-84,4201,Joint Authorities,Adult & Families
Blackpool Council,1007753,Probrush T/A Northern Municipal Spares Ltd,4334703,21490,13/11/2020,1766.69,294.45,CVMU,Cvmu,3041,Other Materials,Community & Env Services
Blackpool Council,1008450,Lawrence Vehicles Ltd T/A Lancashire Daf,4334708,1648790,13/11/2020,347.13,57.86,CVMU,Cvmu,3041,Other Materials,Community & Env Services
Blackpool Council,1008450,Lawrence Vehicles Ltd T/A Lancashire Daf,4334710,1648924,13/11/2020,950.04,158.35,CVMU,Cvmu,3041,Other Materials,Community & Env Services
Blackpool Council,1013690,Enterprise Rent-A-Car Uk Ltd,4334719,850039674006,13/11/2020,342.72,57.12,CVMU,Cvmu,2211,Casual Hire,Community & Env Services
Blackpool Council,1120922,Parts Plus Preston,4334735,14292067,13/11/2020,2031.78,338.63,CVMU,Cvmu,3041,Other Materials,Community & Env Services
Blackpool Council,1007337,Ralawise Ltd,4334948,OP/I710918,06/11/2020,268.62,44.77,PRINTS,Print Blackpool,3408,Services To Clients,Places
Blackpool Council,1010104,Canon (Uk ) Ltd,4334954,77804304,06/11/2020,1640.86,273.48,PRINTS,Print Blackpool,3004,Operating Lease,Places
Blackpool Council,1094655,Xpres,4334955,CH-047672,13/11/2020,468,78,PRINTS,Print Blackpool,3347,Laser Materials,Places
Blackpool Council,1011518,Tw Joinery & Fencing Contractors,4334974,3362,04/11/2020,6942,1157,CXB91,Hra Capital Programme 2020/21,6501,Contract Payments,Capital - Chief Executive
Blackpool Council,1044395,Sellick Partnership Limited,4335045,INV330179,18/11/2020,2734.2,455.7,JBT,Looked After Children,0793,Supply Cost Of Other Agency,Children'S Services
Blackpool Council,1020179,The James Mercer Group Ltd,4335066,132346,13/11/2020,448.01,74.67,PTA,Economic Development,1012,Premises Maint-Priv.Contractor,Places
Blackpool Council,1117705,Rhea Projects Ltd,4335083,RP-0766,04/11/2020,250.01,0,CX4024,Winter Warmth Grant,6501,Contract Payments,Capital - Adult Social Care
Blackpool Council,1115716,North Liverpool Construction Ltd (Fac067),4335093,127991,18/11/2020,942,157,MVB,65-74,5401,Aids To Daily Living,Adult & Families
Blackpool Council,1115716,North Liverpool Construction Ltd (Fac067),4335100,127981,18/11/2020,708,118,MVB,65-74,5401,Aids To Daily Living,Adult & Families
Blackpool Council,1115716,North Liverpool Construction Ltd (Fac067),4335101,127980,18/11/2020,3720,620,MVB,65-74,5401,Aids To Daily Living,Adult & Families
Blackpool Council,1115716,North Liverpool Construction Ltd (Fac067),4335102,127979,18/11/2020,354,59,MVB,65-74,5401,Aids To Daily Living,Adult & Families
Blackpool Council,1115716,North Liverpool Construction Ltd (Fac067),4335104,127977,18/11/2020,624,104,MVB,65-74,5401,Aids To Daily Living,Adult & Families
Blackpool Council,1115716,North Liverpool Construction Ltd (Fac067),4335105,127976,18/11/2020,312,52,MVB,65-74,5401,Aids To Daily Living,Adult & Families
Blackpool Council,1115716,North Liverpool Construction Ltd (Fac067),4335106,127975,18/11/2020,768,128,MVA,18-64,5401,Aids To Daily Living,Adult & Families
Blackpool Council,1115716,North Liverpool Construction Ltd (Fac067),4335107,127974,18/11/2020,432,72,MVB,65-74,5401,Aids To Daily Living,Adult & Families
Blackpool Council,1115716,North Liverpool Construction Ltd (Fac067),4335109,127973,18/11/2020,390,65,MVB,65-74,5401,Aids To Daily Living,Adult & Families
Blackpool Council,1115716,North Liverpool Construction Ltd (Fac067),4335112,127971,18/11/2020,775.56,129.26,MVB,65-74,5401,Aids To Daily Living,Adult & Families
Blackpool Council,1123813,Nys Nursing Agency Ltd,4335116,4845,04/11/2020,2597.28,0,MFC,75-84,4507,Domiciliary Care,Adult & Families
Blackpool Council,1115716,North Liverpool Construction Ltd (Fac067),4335117,127968,18/11/2020,1380,230,MVB,65-74,5401,Aids To Daily Living,Adult & Families
Blackpool Council,1123813,Nys Nursing Agency Ltd,4335120,4857,11/11/2020,1855.2,0,MFC,75-84,4507,Domiciliary Care,Adult & Families
Blackpool Council,1115716,North Liverpool Construction Ltd (Fac067),4335124,127989,18/11/2020,1260,210,MVB,65-74,5401,Aids To Daily Living,Adult & Families
Blackpool Council,1115716,North Liverpool Construction Ltd (Fac067),4335125,127988,18/11/2020,2136,356,MVB,65-74,5401,Aids To Daily Living,Adult & Families
Blackpool Council,1011369,Lancashire County Council,4335126,5200216379,09/11/2020,5983.33,0,CWAN,Children With Additional Needs,4101,Other Local Authorities,Children'S Services
Blackpool Council,1115716,North Liverpool Construction Ltd (Fac067),4335128,127986,18/11/2020,288,0,CXAAA,Local Authority Dwellings,6501,Contract Payments,Capital - Chief Executive
Blackpool Council,1069355,Volunteer Centre Blackpool Wyre & Fylde Ltd,4335131,BS_VSP_QE001220,23/11/2020,37500,0,BSTPRJ,Better Start Projects,3401,General Services,Better Start Projects
Blackpool Council,1115716,North Liverpool Construction Ltd (Fac067),4335132,127987,18/11/2020,1572,262,MVB,65-74,5401,Aids To Daily Living,Adult & Families
Blackpool Council,1115716,North Liverpool Construction Ltd (Fac067),4335133,127985,18/11/2020,432,72,MVB,65-74,5401,Aids To Daily Living,Adult & Families
Blackpool Council,1115716,North Liverpool Construction Ltd (Fac067),4335135,127983,18/11/2020,939,156.5,MVB,65-74,5401,Aids To Daily Living,Adult & Families
Blackpool Council,1069355,Volunteer Centre Blackpool Wyre & Fylde Ltd,4335137,CV_P_BUDGET2020,19/11/2020,1000,0,BSTPRJ,Better Start Projects,3401,General Services,Better Start Projects
Blackpool Council,1117457,Wrps Ltd,4335140,6887,13/11/2020,933.12,155.52,CXB91,Hra Capital Programme 2020/21,6501,Contract Payments,Capital - Chief Executive
Blackpool Council,1115716,North Liverpool Construction Ltd (Fac067),4335141,127992,18/11/2020,297,49.5,MVB,65-74,5401,Aids To Daily Living,Adult & Families
Blackpool Council,1117457,Wrps Ltd,4335144,6888,13/11/2020,2321.54,386.92,CXB91,Hra Capital Programme 2020/21,6501,Contract Payments,Capital - Chief Executive
Blackpool Council,1044395,Sellick Partnership Limited,4335148,INV330245,18/11/2020,1525.2,254.2,JBT,Looked After Children,0793,Supply Cost Of Other Agency,Children'S Services
Blackpool Council,1018273,A1 Residential Care Ltd,4335831,342935,04/11/2020,348.51,0,MFC,75-84,7582,Indep Sect Residential Homes,Adult & Families
Blackpool Council,1115439,Hc-One Oval Ltd - Bank House,4336055,342298,04/11/2020,1118.82,0,MVC,75-84,4506,Nursing Homes,Adult & Families
Blackpool Council,1115439,Hc-One Oval Ltd - Bank House,4336056,342781,04/11/2020,1118.82,0,MGD,85+,4506,Nursing Homes,Adult & Families
Blackpool Council,1055947,Cherish Uk Limited,4336156,170411,10/11/2020,8675.1,0,MTE,Undefined Age Group,3801,Other Expenses,Adult & Families
Blackpool Council,1039034,Contract Floors Ltd,4336200,INV-1334,02/11/2020,367.2,61.2,CXB91,Hra Capital Programme 2020/21,6501,Contract Payments,Capital - Chief Executive
Blackpool Council,1006196,Prism Medical Uk Ltd,4336490,5429994,03/11/2020,4032,672,MTE,Undefined Age Group,3006,Hire Of Equipment,Adult & Families
Blackpool Council,1123674,Innovate (H&Sc) Services Limited,4336580,TCI00000004,03/11/2020,21116.46,3519.41,JAB,Locality,0791,Temp/Relief (Bureau Staff),Children'S Services
Blackpool Council,1008454,Police & Crime Commissioner For Lancashire,4336581,7500012573,19/11/2020,4938.74,0,BSTPRJ,Better Start Projects,3401,General Services,Better Start Projects
Blackpool Council,1008454,Police & Crime Commissioner For Lancashire,4336585,7500012481,19/11/2020,4817.16,0,BSTPRJ,Better Start Projects,3401,General Services,Better Start Projects
Blackpool Council,1078323,Weightmans Llp,4336587,01972056,02/11/2020,5220,870,BAAA,Legal Services,4705,Solicitors Fees,Governance & Partnerships
Blackpool Council,1078323,Weightmans Llp,4336588,01972057,02/11/2020,9027.3,1504.55,BAAA,Legal Services,4705,Solicitors Fees,Governance & Partnerships
Blackpool Council,1078323,Weightmans Llp,4336590,01972152,02/11/2020,5955.54,992.59,BAAA,Legal Services,4705,Solicitors Fees,Governance & Partnerships
Blackpool Council,1078323,Weightmans Llp,4336591,01972698,02/11/2020,12042,2007,BAAA,Legal Services,4705,Solicitors Fees,Governance & Partnerships
Blackpool Council,1078323,Weightmans Llp,4336592,01972699,02/11/2020,5224.8,870.8,BAAA,Legal Services,4705,Solicitors Fees,Governance & Partnerships
Blackpool Council,1120274,Mewa Llp,4336593,15578,06/11/2020,1160.64,193.44,BAAA,Legal Services,4712,Experts Fees,Governance & Partnerships
Blackpool Council,1096871,Andrew Mellor Ltd,4336594,1163034,02/11/2020,258.47,43.08,PYLA,Licencing,3424,Registration & Inspection,Community & Env Services
Blackpool Council,1091610,Communicate Slt Cic,4336596,INV-0481,10/11/2020,17065.64,0,EP8002,Speech And Language,3801,Other Expenses,Children'S Services
Blackpool Council,1119281,Fulcrum Global Advisory Limited,4336597,140121020,02/11/2020,1404,234,BAAA,Legal Services,4713,Process Servers Fees,Governance & Partnerships
Blackpool Council,1119281,Fulcrum Global Advisory Limited,4336598,139121020,03/11/2020,390,65,BAAA,Legal Services,4713,Process Servers Fees,Governance & Partnerships
Blackpool Council,1084280,Alpha Biolabs,4336599,513609,03/11/2020,570,95,BAAA,Legal Services,4712,Experts Fees,Governance & Partnerships
Blackpool Council,1084280,Alpha Biolabs,4336600,513608,03/11/2020,774,129,BAAA,Legal Services,4712,Experts Fees,Governance & Partnerships
Blackpool Council,1072548,Advanced Child Care Assessments Limited,4336602,MW NG 33 10 20,03/11/2020,516.8,86.13,BAAA,Legal Services,4712,Experts Fees,Governance & Partnerships
Blackpool Council,1072548,Advanced Child Care Assessments Limited,4336606,MW RR 08 10 20,03/11/2020,720,120,BAAA,Legal Services,4712,Experts Fees,Governance & Partnerships
Blackpool Council,1111328,Hadley Fraser Ltd,4336608,BLA111,19/11/2020,6690,1115,JDEAAA,Safeguarding Adults,4501,Private Contractors,Adult & Families
Blackpool Council,1116675,Pickering Psychology Services Ltd,4336615,PPS2609,10/11/2020,748.61,124.77,BAAA,Legal Services,4712,Experts Fees,Governance & Partnerships
Blackpool Council,1100221,Forensic Testing Service Ltd,4336616,60735,03/11/2020,1228.56,204.76,BAAA,Legal Services,4712,Experts Fees,Governance & Partnerships
Blackpool Council,1083813,REDACTED PERSONAL DATA,4336619,261883,03/11/2020,510,85,BAAA,Legal Services,4707,Counsels Fees,Governance & Partnerships
Blackpool Council,1008630,REDACTED PERSONAL DATA,4336620,438370,11/11/2020,450,75,BAAA,Legal Services,4707,Counsels Fees,Governance & Partnerships
Blackpool Council,1123411,REDACTED PERSONAL DATA,4336621,279351,06/11/2020,888,148,BAAA,Legal Services,4707,Counsels Fees,Governance & Partnerships
Blackpool Council,1012034,REDACTED PERSONAL DATA,4336622,261119,06/11/2020,1290,215,BAAA,Legal Services,4707,Counsels Fees,Governance & Partnerships
Blackpool Council,1116015,REDACTED PERSONAL DATA,4336623,261455,06/11/2020,708,118,BAAA,Legal Services,4707,Counsels Fees,Governance & Partnerships
Blackpool Council,1122514,REDACTED PERSONAL DATA,4336624,440569,03/11/2020,390,65,BAAA,Legal Services,4707,Counsels Fees,Governance & Partnerships
Blackpool Council,1012034,REDACTED PERSONAL DATA,4336625,261054,06/11/2020,792,132,BAAA,Legal Services,4707,Counsels Fees,Governance & Partnerships
Blackpool Council,1008630,REDACTED PERSONAL DATA,4336626,443591,06/11/2020,810,135,BAAA,Legal Services,4707,Counsels Fees,Governance & Partnerships
Blackpool Council,1113969,REDACTED PERSONAL DATA,4336627,263121,05/11/2020,360,60,BAAA,Legal Services,4707,Counsels Fees,Governance & Partnerships
Blackpool Council,1043719,REDACTED PERSONAL DATA,4336628,261982,05/11/2020,1530,255,BAAA,Legal Services,4707,Counsels Fees,Governance & Partnerships
Blackpool Council,1066073,Blackpool Coastal Housing,4336630,30001853,04/11/2020,21610.66,3601.78,CXB81,Hra Capital Programme 2019/20,6501,Contract Payments,Capital - Chief Executive
Blackpool Council,1066073,Blackpool Coastal Housing,4336630,30001853,04/11/2020,12752.94,2125.49,CXB91,Hra Capital Programme 2020/21,6501,Contract Payments,Capital - Chief Executive
Blackpool Council,1085291,REDACTED PERSONAL DATA,4336631,262811,05/11/2020,1200,200,BAAA,Legal Services,4707,Counsels Fees,Governance & Partnerships
Blackpool Council,1054707,REDACTED PERSONAL DATA,4336632,440292,05/11/2020,660,110,BAAA,Legal Services,4707,Counsels Fees,Governance & Partnerships
Blackpool Council,1086620,REDACTED PERSONAL DATA,4336633,443417,04/11/2020,975,162.5,BAAA,Legal Services,4707,Counsels Fees,Governance & Partnerships
Blackpool Council,1087367,REDACTED PERSONAL DATA,4336635,260820,03/11/2020,672,112,BAAA,Legal Services,4707,Counsels Fees,Governance & Partnerships
Blackpool Council,1088063,REDACTED PERSONAL DATA,4336636,436754,02/11/2020,1530,255,BAAA,Legal Services,4707,Counsels Fees,Governance & Partnerships
Blackpool Council,1093061,REDACTED PERSONAL DATA,4336637,440556,03/11/2020,840,140,BAAA,Legal Services,4707,Counsels Fees,Governance & Partnerships
Blackpool Council,1120006,REDACTED PERSONAL DATA,4336638,263105,03/11/2020,1440,240,JBT,Looked After Children,4707,Counsels Fees,Children'S Services
Blackpool Council,1008630,REDACTED PERSONAL DATA,4336639,436026,03/11/2020,510,85,BAAA,Legal Services,4707,Counsels Fees,Governance & Partnerships
Blackpool Council,1122514,REDACTED PERSONAL DATA,4336645,439187,06/11/2020,570,95,BAAA,Legal Services,4707,Counsels Fees,Governance & Partnerships
Blackpool Council,1122514,REDACTED PERSONAL DATA,4336648,440562,11/11/2020,390,65,BAAA,Legal Services,4707,Counsels Fees,Governance & Partnerships
Blackpool Council,1118307,REDACTED PERSONAL DATA,4336651,262226,03/11/2020,1440,240,BAAA,Legal Services,4707,Counsels Fees,Governance & Partnerships
Blackpool Council,1122514,REDACTED PERSONAL DATA,4336654,438370,03/11/2020,570,95,BAAA,Legal Services,4707,Counsels Fees,Governance & Partnerships
Blackpool Council,1085291,REDACTED PERSONAL DATA,4336657,262585,03/11/2020,810,135,BAAA,Legal Services,4707,Counsels Fees,Governance & Partnerships
Blackpool Council,1050674,REDACTED PERSONAL DATA,4336658,442599,03/11/2020,750,125,BAAA,Legal Services,4707,Counsels Fees,Governance & Partnerships
Blackpool Council,1014404,REDACTED PERSONAL DATA,4336659,262596,03/11/2020,1290,215,BAAA,Legal Services,4707,Counsels Fees,Governance & Partnerships
Blackpool Council,1016930,REDACTED PERSONAL DATA,4336660,262596,03/11/2020,840,140,BAAA,Legal Services,4707,Counsels Fees,Governance & Partnerships
Blackpool Council,1121818,REDACTED PERSONAL DATA,4336661,263267,03/11/2020,630,105,BAAA,Legal Services,4707,Counsels Fees,Governance & Partnerships
Blackpool Council,1012034,REDACTED PERSONAL DATA,4336663,261119,03/11/2020,630,105,BAAA,Legal Services,4707,Counsels Fees,Governance & Partnerships
Blackpool Council,1047848,REDACTED PERSONAL DATA,4336664,259031,02/11/2020,1980,330,BAAA,Legal Services,4707,Counsels Fees,Governance & Partnerships
Blackpool Council,1008630,REDACTED PERSONAL DATA,4336666,439902,05/11/2020,630,105,BAAA,Legal Services,4707,Counsels Fees,Governance & Partnerships
Blackpool Council,1085291,REDACTED PERSONAL DATA,4336667,263339,03/11/2020,312,52,BAAA,Legal Services,4707,Counsels Fees,Governance & Partnerships
Blackpool Council,1083813,REDACTED PERSONAL DATA,4336669,262017,02/11/2020,396,66,BAAA,Legal Services,4707,Counsels Fees,Governance & Partnerships
Blackpool Council,1083813,REDACTED PERSONAL DATA,4336670,262017,02/11/2020,1020,170,BAAA,Legal Services,4707,Counsels Fees,Governance & Partnerships
Blackpool Council,1085658,REDACTED PERSONAL DATA,4336671,259412,02/11/2020,4770,795,BAAA,Legal Services,4707,Counsels Fees,Governance & Partnerships
Blackpool Council,1114000,Dac Beachcroft Claims Limited,4336674,430036905,02/11/2020,1361.4,226.9,RK6007,Davies Group Sensitive,4705,Solicitors Fees,Internal Insurance
Blackpool Council,1114000,Dac Beachcroft Claims Limited,4336675,430036904,02/11/2020,1348.2,224.7,RK6007,Davies Group Sensitive,4705,Solicitors Fees,Internal Insurance
Blackpool Council,1114000,Dac Beachcroft Claims Limited,4336676,430036902,02/11/2020,7672.8,1278.8,RK6007,Davies Group Sensitive,4705,Solicitors Fees,Internal Insurance
Blackpool Council,1114000,Dac Beachcroft Claims Limited,4336677,450033702,02/11/2020,3240,540,RK6008,Gallagher Bassett Sensitive,4705,Solicitors Fees,Internal Insurance
Blackpool Council,1114000,Dac Beachcroft Claims Limited,4336678,430036903,02/11/2020,2070,345,RK6007,Davies Group Sensitive,4705,Solicitors Fees,Internal Insurance
Blackpool Council,1116557,Dagmar Hartshorn Psychological Services,4336679,17720,13/11/2020,1520.4,0,BAAA,Legal Services,4712,Experts Fees,Governance & Partnerships
Blackpool Council,1117026,Foresight Clinical Services Ltd,4336681,INV-20460,02/11/2020,486,81,BAAA,Legal Services,4712,Experts Fees,Governance & Partnerships
Blackpool Council,1113165,Target Psychology Ltd,4336682,10/20/3997,04/11/2020,2966.64,494.44,BAAA,Legal Services,4712,Experts Fees,Governance & Partnerships
Blackpool Council,1120588,G2 Recruitment Solutions,4336706,74830,13/11/2020,1575,262.5,AEF,Facilities,1012,Premises Maint-Priv.Contractor,Resources
Blackpool Council,1120588,G2 Recruitment Solutions,4336707,74829,13/11/2020,1252.68,208.78,AEF,Facilities,0791,Temp/Relief (Bureau Staff),Resources
Blackpool Council,1122592,Hope-Borland Associates Ltd,4336717,13002,02/11/2020,261.46,43.57,BAAA,Legal Services,4712,Experts Fees,Governance & Partnerships
Blackpool Council,1077786,Phh Solicitors,4336718,12442,02/11/2020,336,0,BAAA,Legal Services,4715,Other Fees,Governance & Partnerships
Blackpool Council,1077392,Reed Specialist Recruitment Ltd,4336721,E020895558M,05/11/2020,1215.24,202.54,JA0502,Principal Social Worker,6207,Personnel Services,Children'S Services
Blackpool Council,1077392,Reed Specialist Recruitment Ltd,4336721,E020895558M,05/11/2020,10480.56,1746.76,JAB,Locality,6207,Personnel Services,Children'S Services
Blackpool Council,1077392,Reed Specialist Recruitment Ltd,4336721,E020895558M,05/11/2020,1665.36,277.56,JAH,Duty And Assessment,6207,Personnel Services,Children'S Services
Blackpool Council,1077392,Reed Specialist Recruitment Ltd,4336721,E020895558M,05/11/2020,4996.22,832.71,JBR,Lac - Placements,6207,Personnel Services,Children'S Services
Blackpool Council,1077392,Reed Specialist Recruitment Ltd,4336721,E020895558M,05/11/2020,3865.45,644.24,JBT,Looked After Children,6207,Personnel Services,Children'S Services
Blackpool Council,1077392,Reed Specialist Recruitment Ltd,4336721,E020895558M,05/11/2020,11619.64,1936.62,JEA,Senior Management,6207,Personnel Services,Children'S Services
Blackpool Council,1009922,Cipfa,4338084,5288340,23/11/2020,440,0,EM1002,Education Finance,0911,Training Expenses,Children'S Services
Blackpool Council,1111078,Dr Y P Shukla,4338087,55/2020,13/11/2020,700,0,JDEAAA,Safeguarding Adults,4501,Private Contractors,Adult & Families
Blackpool Council,1105240,Hanzak Ltd T/A Dr Rashad Nazir,4338090,21000RN,20/11/2020,1750,0,JDEAAA,Safeguarding Adults,4501,Private Contractors,Adult & Families
Blackpool Council,1105240,Hanzak Ltd T/A Dr Rashad Nazir,4338091,21001RN,20/11/2020,350,0,JDEAAA,Safeguarding Adults,4501,Private Contractors,Adult & Families
Blackpool Council,1105003,Socal Healthcare Ltd,4338092,1020-020-022,05/11/2020,525,0,JDEAAA,Safeguarding Adults,4501,Private Contractors,Adult & Families
Blackpool Council,1123190,Cder Group Limted,4338095,144196,20/11/2020,8827.51,1471.25,FBBEA,"Income, Recovery & Debtors",3807,Legal & Court Costs,Resources
Blackpool Council,1088230,Midlothian Council,4338097,3004545633,05/11/2020,300,0,MVD,85+,4501,Private Contractors,Adult & Families
Blackpool Council,1115716,North Liverpool Construction Ltd (Fac067),4338102,128091,20/11/2020,1086,181,MVB,65-74,5401,Aids To Daily Living,Adult & Families
Blackpool Council,1011995,Technical & Electrical Services Ltd,4338106,C 8872,09/11/2020,8635.6,1439.27,CXB91,Hra Capital Programme 2020/21,6501,Contract Payments,Capital - Chief Executive
Blackpool Council,1008096,Mellor Architects Ltd,4338108,6538,04/11/2020,798,0,CX4002,Disabled Facilities Grants,6501,Contract Payments,Capital - Adult Social Care
Blackpool Council,1112992,Key To Independence Ltd,4338109,JT141020/DH,09/11/2020,375,0,CX4002,Disabled Facilities Grants,6501,Contract Payments,Capital - Adult Social Care
Blackpool Council,1002210,Read & Errington,4338111,MRC0149/V5,04/11/2020,41527.6,6921.26,CXB91,Hra Capital Programme 2020/21,6501,Contract Payments,Capital - Chief Executive
Blackpool Council,1008096,Mellor Architects Ltd,4338112,6537,04/11/2020,1335.6,0,CX4002,Disabled Facilities Grants,6501,Contract Payments,Capital - Adult Social Care
Blackpool Council,1008096,Mellor Architects Ltd,4338118,6536,04/11/2020,2378.28,0,CX4002,Disabled Facilities Grants,6501,Contract Payments,Capital - Adult Social Care
Blackpool Council,1115716,North Liverpool Construction Ltd (Fac067),4338119,128089,20/11/2020,312,52,MVB,65-74,5401,Aids To Daily Living,Adult & Families
Blackpool Council,1115716,North Liverpool Construction Ltd (Fac067),4338123,128085,20/11/2020,2443.68,407.28,MVB,65-74,5401,Aids To Daily Living,Adult & Families
Blackpool Council,1112992,Key To Independence Ltd,4338127,RH191020/DH,09/11/2020,500,0,CX4002,Disabled Facilities Grants,6501,Contract Payments,Capital - Adult Social Care
Blackpool Council,1007789,Northern Jack Specialists,4338176,111276 ,18/11/2020,539.4,89.9,CVMU,Cvmu,4501,Private Contractors,Community & Env Services
Blackpool Council,1112757,Corona Contracts Ltd,4338227,3538,20/11/2020,582,97,CWASTE,Commercial Waste,1012,Premises Maint-Priv.Contractor,Community & Env Services
Blackpool Council,1120588,G2 Recruitment Solutions,4338228,75045,20/11/2020,1575,262.5,AEF,Facilities,1012,Premises Maint-Priv.Contractor,Resources
Blackpool Council,1120588,G2 Recruitment Solutions,4338229,75044,20/11/2020,1272.9,212.15,AEF,Facilities,0791,Temp/Relief (Bureau Staff),Resources
Blackpool Council,1118238,Keskin Tencon Limited,4338372,2021013,04/11/2020,360,60,CXB91,Hra Capital Programme 2020/21,6501,Contract Payments,Capital - Chief Executive
Blackpool Council,1084838,Sevacare (Uk) Ltd  - Synergy,4338399,COVID111020,05/11/2020,6148.51,0,MTE,Undefined Age Group,4507,Domiciliary Care,Adult & Families
Blackpool Council,1111078,Dr Y P Shukla,4338400,50/2020,05/11/2020,700,0,JDEAAA,Safeguarding Adults,4501,Private Contractors,Adult & Families
Blackpool Council,1111078,Dr Y P Shukla,4338401,49/2020,02/11/2020,1050,0,JDEAAA,Safeguarding Adults,4501,Private Contractors,Adult & Families
Blackpool Council,1118652,Paradigm Professional Consultancy (Fac089),4339242,V66V111485,06/11/2020,2152.82,358.8,JAH,Duty And Assessment,0791,Temp/Relief (Bureau Staff),Children'S Services
Blackpool Council,1006633,Technology Services Ltd T/A The Lock Shop,4339247,31906,09/11/2020,341.52,56.92,CXB91,Hra Capital Programme 2020/21,6501,Contract Payments,Capital - Chief Executive
Blackpool Council,1124011,Dac Beachcroft Claims Ltd - Client Account,4339258,163-1359610ADEW,02/11/2020,9053.75,0,RK6008,Gallagher Bassett Sensitive,4708,Damages,Internal Insurance
Blackpool Council,1103360,Complete Background Screening Ltd,4339268,INV-18538,20/11/2020,3600,600,FK1005,Dbs Recharging,6207,Personnel Services,Chief Executive
Blackpool Council,1086484,REDACTED PERSONAL DATA,4339272,258872,02/11/2020,870,145,BAAA,Legal Services,4707,Counsels Fees,Governance & Partnerships
Blackpool Council,1091377,REDACTED PERSONAL DATA,4339273,262416,02/11/2020,1350,225,BAAA,Legal Services,4707,Counsels Fees,Governance & Partnerships
Blackpool Council,1114999,REDACTED PERSONAL DATA,4339274,262823,02/11/2020,360,60,BAAA,Legal Services,4707,Counsels Fees,Governance & Partnerships
Blackpool Council,1121818,REDACTED PERSONAL DATA,4339275,263734,11/11/2020,384,64,BAAA,Legal Services,4707,Counsels Fees,Governance & Partnerships
Blackpool Council,1112117,REDACTED PERSONAL DATA,4339276,263104,12/11/2020,480,80,BAAA,Legal Services,4707,Counsels Fees,Governance & Partnerships
Blackpool Council,1123006,REDACTED PERSONAL DATA,4339277,1141935,12/11/2020,850,141.67,BAAA,Legal Services,4707,Counsels Fees,Governance & Partnerships
Blackpool Council,1041543,REDACTED PERSONAL DATA,4339278,262908,02/11/2020,1260,210,BAAA,Legal Services,4707,Counsels Fees,Governance & Partnerships
Blackpool Council,1100221,Forensic Testing Service Ltd,4339280,62940,13/11/2020,479.12,79.85,BAAA,Legal Services,4712,Experts Fees,Governance & Partnerships
Blackpool Council,1009338,Forbes Solicitors,4339281,L.17.1317/KXB,11/11/2020,3252,0,RK6008,Gallagher Bassett Sensitive,4705,Solicitors Fees,Internal Insurance
Blackpool Council,1084280,Alpha Biolabs,4339282,514106,02/11/2020,892.8,148.8,BAAA,Legal Services,4712,Experts Fees,Governance & Partnerships
Blackpool Council,1116675,Pickering Psychology Services Ltd,4339288,PPS2579,02/11/2020,828.48,138.08,BAAA,Legal Services,4712,Experts Fees,Governance & Partnerships
Blackpool Council,1114000,Dac Beachcroft Claims Limited,4339290,450032872,11/11/2020,1877.5,0,RK6008,Gallagher Bassett Sensitive,4705,Solicitors Fees,Internal Insurance
Blackpool Council,1102605,Inghams Solicitors (Client Account),4339291,025924,03/11/2020,252,42,BAAA,Legal Services,4715,Other Fees,Governance & Partnerships
Blackpool Council,1088102,Whistl Uk Limited,4339293,IN18US20005609,13/11/2020,3354.31,559.05,FCADA,Customer Services,3511,Postages,Resources
Blackpool Council,1057348,Venn Group Limited,4339295,3701229,20/11/2020,2942.58,490.43,BAAA,Legal Services,0793,Supply Cost Of Other Agency,Governance & Partnerships
Blackpool Council,1057348,Venn Group Limited,4339296,3701228,20/11/2020,2748.13,458.02,BAAA,Legal Services,0793,Supply Cost Of Other Agency,Governance & Partnerships
Blackpool Council,1044395,Sellick Partnership Limited,4339303,INV331054,25/11/2020,2845.8,474.3,JBT,Looked After Children,0793,Supply Cost Of Other Agency,Children'S Services
Blackpool Council,1041219,Abelglass Trade Supplies Ltd,4339331,INV-5053,04/11/2020,1204.8,200.8,CXB91,Hra Capital Programme 2020/21,6501,Contract Payments,Capital - Chief Executive
Blackpool Council,1041219,Abelglass Trade Supplies Ltd,4339332,INV-5050,04/11/2020,4821.6,803.6,CXB91,Hra Capital Programme 2020/21,6501,Contract Payments,Capital - Chief Executive
Blackpool Council,1104767,North Star Environmental Ltd,4339333,INV-20557,20/11/2020,1008,168,CXB91,Hra Capital Programme 2020/21,6501,Contract Payments,Capital - Chief Executive
Blackpool Council,1009009,Hermolle Associates Ltd,4339334,9997,04/11/2020,408,68,CXB91,Hra Capital Programme 2020/21,6501,Contract Payments,Capital - Chief Executive
Blackpool Council,1106471,Mayne Special Needs,4339335,MSN-BES773,04/11/2020,380,0,MTE,Undefined Age Group,5401,Aids To Daily Living,Adult & Families
Blackpool Council,1048456,R T C,4339353,8823,05/11/2020,3744,624,CXB91,Hra Capital Programme 2020/21,6501,Contract Payments,Capital - Chief Executive
Blackpool Council,1118165,Pendrich Height Services Ltd,4339523,0000011847,03/11/2020,29664,4944,CCTV,Cctv,1012,Premises Maint-Priv.Contractor,Community & Env Services
Blackpool Council,1044395,Sellick Partnership Limited,4339525,INV331071,25/11/2020,1190.4,198.4,JBT,Looked After Children,0793,Supply Cost Of Other Agency,Children'S Services
Blackpool Council,1041219,Abelglass Trade Supplies Ltd,4339537,INV-4967,24/11/2020,650.4,108.4,CXB91,Hra Capital Programme 2020/21,6501,Contract Payments,Capital - Chief Executive
Blackpool Council,1094411,Fox Fire Security Limited,4339563,3170,23/11/2020,384.13,64.02,AEB,Buildings,1012,Premises Maint-Priv.Contractor,Resources
Blackpool Council,1118200,Total Leisure Engineering Ltd,4339567,5260,18/11/2020,1022.4,170.4,AEB,Buildings,1012,Premises Maint-Priv.Contractor,Resources
Blackpool Council,1099262,Nhs Blackpool Ccg,4339894,7011217270,10/11/2020,8487.75,0,MGA,Adults Under 65 With Mh Needs,4201,Joint Authorities,Adult & Families
Blackpool Council,1099262,Nhs Blackpool Ccg,4339895,7011217271,10/11/2020,4150.95,0,MFC,75-84,4201,Joint Authorities,Adult & Families
Blackpool Council,1099262,Nhs Blackpool Ccg,4339896,7011217272,10/11/2020,11019.87,0,MFA,Adults Under 65 With Mh,4201,Joint Authorities,Adult & Families
Blackpool Council,1099262,Nhs Blackpool Ccg,4339897,7011217273,10/11/2020,2705.36,0,MFA,Adults Under 65 With Mh,4201,Joint Authorities,Adult & Families
Blackpool Council,1099262,Nhs Blackpool Ccg,4339898,7011217274,10/11/2020,6683.06,0,MFA,Adults Under 65 With Mh,4201,Joint Authorities,Adult & Families
Blackpool Council,1099262,Nhs Blackpool Ccg,4339899,7011217275,10/11/2020,4676.77,0,MFA,Adults Under 65 With Mh,4201,Joint Authorities,Adult & Families
Blackpool Council,1099262,Nhs Blackpool Ccg,4339900,7011217277,10/11/2020,7550.44,0,MGB,65-74,4201,Joint Authorities,Adult & Families
Blackpool Council,1099262,Nhs Blackpool Ccg,4339901,7011217278,10/11/2020,4869.65,0,MGD,85+,4201,Joint Authorities,Adult & Families
Blackpool Council,1099262,Nhs Blackpool Ccg,4339902,7011217279,10/11/2020,3230.96,0,MFB,65-74,4201,Joint Authorities,Adult & Families
Blackpool Council,1099262,Nhs Blackpool Ccg,4339903,7011217349,10/11/2020,1773.1,0,MFA,Adults Under 65 With Mh,4201,Joint Authorities,Adult & Families
Blackpool Council,1099262,Nhs Blackpool Ccg,4339904,7011217282,10/11/2020,3230.96,0,MGC,75-84,4201,Joint Authorities,Adult & Families
Blackpool Council,1099262,Nhs Blackpool Ccg,4339905,7011217283,10/11/2020,5114.69,0,MFD,85+,4201,Joint Authorities,Adult & Families
Blackpool Council,1099262,Nhs Blackpool Ccg,4339906,7011217284,10/11/2020,4632.82,0,MFA,Adults Under 65 With Mh,4201,Joint Authorities,Adult & Families
Blackpool Council,1099262,Nhs Blackpool Ccg,4339907,7011217285,10/11/2020,3953.87,0,MFB,65-74,4201,Joint Authorities,Adult & Families
Blackpool Council,1099262,Nhs Blackpool Ccg,4339908,7011217286,10/11/2020,3230.96,0,MGD,85+,4201,Joint Authorities,Adult & Families
Blackpool Council,1099262,Nhs Blackpool Ccg,4339909,7011217287,10/11/2020,994,0,MFA,Adults Under 65 With Mh,4201,Joint Authorities,Adult & Families
Blackpool Council,1099262,Nhs Blackpool Ccg,4339910,7011217288,10/11/2020,3230.96,0,MFA,Adults Under 65 With Mh,4201,Joint Authorities,Adult & Families
Blackpool Council,1099262,Nhs Blackpool Ccg,4339911,7011217289,10/11/2020,3230.96,0,MFC,75-84,4201,Joint Authorities,Adult & Families
Blackpool Council,1099262,Nhs Blackpool Ccg,4339912,7011217291,10/11/2020,3187.22,0,MFB,65-74,4201,Joint Authorities,Adult & Families
Blackpool Council,1099262,Nhs Blackpool Ccg,4339913,7011217292,10/11/2020,5926.05,0,MFA,Adults Under 65 With Mh,4201,Joint Authorities,Adult & Families
Blackpool Council,1099262,Nhs Blackpool Ccg,4339914,7011217293,10/11/2020,3130.32,0,MFA,Adults Under 65 With Mh,4201,Joint Authorities,Adult & Families
Blackpool Council,1099262,Nhs Blackpool Ccg,4339915,7011217296,10/11/2020,2821.08,0,MGD,85+,4201,Joint Authorities,Adult & Families
Blackpool Council,1099262,Nhs Blackpool Ccg,4339916,7011217297,10/11/2020,3132.44,0,MFA,Adults Under 65 With Mh,4201,Joint Authorities,Adult & Families
Blackpool Council,1099262,Nhs Blackpool Ccg,4339917,7011217301,10/11/2020,3230.95,0,MVC,75-84,4201,Joint Authorities,Adult & Families
Blackpool Council,1099262,Nhs Blackpool Ccg,4339918,7011217302,10/11/2020,3230.95,0,MFC,75-84,4201,Joint Authorities,Adult & Families
Blackpool Council,1099262,Nhs Blackpool Ccg,4339919,7011217321,10/11/2020,2982.36,0,MFA,Adults Under 65 With Mh,4201,Joint Authorities,Adult & Families
Blackpool Council,1099262,Nhs Blackpool Ccg,4339920,7011217324,10/11/2020,3967,0,MFA,Adults Under 65 With Mh,4201,Joint Authorities,Adult & Families
Blackpool Council,1099262,Nhs Blackpool Ccg,4339921,7011217330,10/11/2020,4186,0,MFA,Adults Under 65 With Mh,4201,Joint Authorities,Adult & Families
Blackpool Council,1099262,Nhs Blackpool Ccg,4339922,7011217341,10/11/2020,2999.92,0,MFA,Adults Under 65 With Mh,4201,Joint Authorities,Adult & Families
Blackpool Council,1099262,Nhs Blackpool Ccg,4339923,7011217342,10/11/2020,2999.92,0,MFA,Adults Under 65 With Mh,4201,Joint Authorities,Adult & Families
Blackpool Council,1099262,Nhs Blackpool Ccg,4339924,7011217343,10/11/2020,2999.92,0,MGC,75-84,4201,Joint Authorities,Adult & Families
Blackpool Council,1099262,Nhs Blackpool Ccg,4339925,7011217344,10/11/2020,2999.92,0,MFA,Adults Under 65 With Mh,4201,Joint Authorities,Adult & Families
Blackpool Council,1099262,Nhs Blackpool Ccg,4339926,7011217348,10/11/2020,2565.58,0,MVB,65-74,4201,Joint Authorities,Adult & Families
Blackpool Council,1099262,Nhs Blackpool Ccg,4339927,7011217268,10/11/2020,5086.38,0,MFA,Adults Under 65 With Mh,4201,Joint Authorities,Adult & Families
Blackpool Council,1099262,Nhs Blackpool Ccg,4339928,7011217267,10/11/2020,3230.96,0,MFB,65-74,4201,Joint Authorities,Adult & Families
Blackpool Council,1099262,Nhs Blackpool Ccg,4339929,7011217266,10/11/2020,658.3,0,MVB,65-74,4201,Joint Authorities,Adult & Families
Blackpool Council,1099262,Nhs Blackpool Ccg,4339932,7011217259,10/11/2020,7611.28,0,MVB,65-74,4201,Joint Authorities,Adult & Families
Blackpool Council,1099262,Nhs Blackpool Ccg,4339934,7011217281,10/11/2020,16224.03,0,MFA,Adults Under 65 With Mh,4201,Joint Authorities,Adult & Families
Blackpool Council,1102179,Bedspace Resource Ltd,4340320,182529,06/11/2020,870,145,JEA,Senior Management,5551,Rent & Rent Bonds,Children'S Services
Blackpool Council,1011518,Tw Joinery & Fencing Contractors,4340332,3370,04/11/2020,4740,790,CXB91,Hra Capital Programme 2020/21,6501,Contract Payments,Capital - Chief Executive
Blackpool Council,1039034,Contract Floors Ltd,4340333,INV-1345,09/11/2020,942,157,CXB91,Hra Capital Programme 2020/21,6501,Contract Payments,Capital - Chief Executive
Blackpool Council,1066073,Blackpool Coastal Housing,4340335,30001854,09/11/2020,4751.8,791.97,HFK,Rechargeable Maintenance,3801,Other Expenses,Net Cost Of Services
Blackpool Council,1048456,R T C,4340336,8824,05/11/2020,404.93,67.49,CXB91,Hra Capital Programme 2020/21,6501,Contract Payments,Capital - Chief Executive
Blackpool Council,1100913,Hopscotch Care Limited,4340341,910,04/11/2020,14171.34,0,JEA,Senior Management,4501,Private Contractors,Children'S Services
Blackpool Council,1009824,Acorn Care & Education Ltd,4340382,37387,26/11/2020,1560,0,CWAN,Children With Additional Needs,2211,Casual Hire,Children'S Services
Blackpool Council,1009824,Acorn Care & Education Ltd,4340383,37388,26/11/2020,1560,0,CWAN,Children With Additional Needs,2211,Casual Hire,Children'S Services
Blackpool Council,1009824,Acorn Care & Education Ltd,4340384,37389,26/11/2020,600,0,CWAN,Children With Additional Needs,2211,Casual Hire,Children'S Services
Blackpool Council,1122741,Northern Security International Ltd,4340385,804,04/11/2020,645.76,107.63,SECURE,Security Services,3401,General Services,Community & Env Services
Blackpool Council,1122741,Northern Security International Ltd,4340386,805,04/11/2020,731.86,121.98,SECURE,Security Services,3401,General Services,Community & Env Services
Blackpool Council,1122741,Northern Security International Ltd,4340388,807,04/11/2020,1414.5,235.75,SECURE,Security Services,3401,General Services,Community & Env Services
Blackpool Council,1122741,Northern Security International Ltd,4340389,808,04/11/2020,774.9,129.15,SECURE,Security Services,3401,General Services,Community & Env Services
Blackpool Council,1122741,Northern Security International Ltd,4340391,810,04/11/2020,516.6,86.1,SECURE,Security Services,3401,General Services,Community & Env Services
Blackpool Council,1122741,Northern Security International Ltd,4340393,811,04/11/2020,14760,2460,SECURE,Security Services,3401,General Services,Community & Env Services
Blackpool Council,1107100,Nonstop Consulting Ltd,4340394,176876,26/11/2020,2032.63,338.77,JAB,Locality,0791,Temp/Relief (Bureau Staff),Children'S Services
Blackpool Council,1107100,Nonstop Consulting Ltd,4340396,176875,26/11/2020,2032.63,338.77,JAB,Locality,0791,Temp/Relief (Bureau Staff),Children'S Services
Blackpool Council,1088102,Whistl Uk Limited,4340399,IN18US20005716,20/11/2020,2645.23,440.87,FCADA,Customer Services,3511,Postages,Resources
Blackpool Council,1115510,Zillian Ltd T/A Zillian Healthcare,4340400,17695,05/11/2020,556.56,0,MVD,85+,4507,Domiciliary Care,Adult & Families
Blackpool Council,1077392,Reed Specialist Recruitment Ltd,4340401,E020896914M,06/11/2020,1288.15,214.69,JA0502,Principal Social Worker,6207,Personnel Services,Children'S Services
Blackpool Council,1077392,Reed Specialist Recruitment Ltd,4340401,E020896914M,06/11/2020,10480.56,1746.76,JAB,Locality,6207,Personnel Services,Children'S Services
Blackpool Council,1077392,Reed Specialist Recruitment Ltd,4340401,E020896914M,06/11/2020,1665.36,277.56,JAH,Duty And Assessment,6207,Personnel Services,Children'S Services
Blackpool Council,1077392,Reed Specialist Recruitment Ltd,4340401,E020896914M,06/11/2020,9992.3,1665.39,JBR,Lac - Placements,6207,Personnel Services,Children'S Services
Blackpool Council,1077392,Reed Specialist Recruitment Ltd,4340401,E020896914M,06/11/2020,5843.54,973.92,JBT,Looked After Children,6207,Personnel Services,Children'S Services
Blackpool Council,1077392,Reed Specialist Recruitment Ltd,4340401,E020896914M,06/11/2020,14072.67,2345.46,JEA,Senior Management,6207,Personnel Services,Children'S Services
Blackpool Council,1002210,Read & Errington,4340492,BCH 100426/7,24/11/2020,317.81,52.97,CXB91,Hra Capital Programme 2020/21,6501,Contract Payments,Capital - Chief Executive
Blackpool Council,1042515,Geze Uk Ltd,4340819,904958958,25/11/2020,548.4,91.4,AER,Dual Use Properties,1012,Premises Maint-Priv.Contractor,Resources
Blackpool Council,1042292,Warden Construction Limited,4340822,GRANT PAYMENT,05/11/2020,23765.26,0,CGOAAA,Quality Corridor,6502,Grants & Advances,Capital - Commnctn & Regen
Blackpool Council,1011675,Bambers Remedial Contractors Limited,4340824,16458,02/11/2020,360,60,CGOAAA,Quality Corridor,6502,Grants & Advances,Capital - Commnctn & Regen
Blackpool Council,1112656,REDACTED PERSONAL DATA,4340837,6014,09/11/2020,1560,0,CWAN,Children With Additional Needs,3408,Services To Clients,Children'S Services
Blackpool Council,1006096,REDACTED PERSONAL DATA,4340840,0000195514,09/11/2020,848.17,0,CWAN,Children With Additional Needs,4403,Special Needs - Children,Children'S Services
Blackpool Council,1006096,REDACTED PERSONAL DATA,4340841,0000195129,09/11/2020,510.72,0,CWAN,Children With Additional Needs,4403,Special Needs - Children,Children'S Services
Blackpool Council,1115557,Tracey Carysforth,4340861,33,04/11/2020,5138.25,0,CX4002,Disabled Facilities Grants,6506,Consultants Fees,Capital - Adult Social Care
Blackpool Council,1118512,Sanctuary Personnel Ltd,4340862,INN00001382,06/11/2020,14508.16,2418.03,JBT,Looked After Children,0791,Temp/Relief (Bureau Staff),Children'S Services
Blackpool Council,1025883,REDACTED PERSONAL DATA,4340865,J/WF2610-281020,09/11/2020,348.75,0,CWAN,Children With Additional Needs,4403,Special Needs - Children,Children'S Services
Blackpool Council,1055947,Cherish Uk Limited,4340866,234,09/11/2020,355.68,0,CWAN,Children With Additional Needs,4403,Special Needs - Children,Children'S Services
Blackpool Council,1123674,Innovate (H&Sc) Services Limited,4340869,IHSC00000150,24/11/2020,15062.1,2510.35,JAB,Locality,0791,Temp/Relief (Bureau Staff),Children'S Services
Blackpool Council,1057348,Venn Group Limited,4340870,3703342,27/11/2020,1765.78,294.3,BAAA,Legal Services,0793,Supply Cost Of Other Agency,Governance & Partnerships
Blackpool Council,1057348,Venn Group Limited,4340871,3703343,27/11/2020,2804.5,467.42,BAAA,Legal Services,0793,Supply Cost Of Other Agency,Governance & Partnerships
Blackpool Council,1006099,Blackpool Teaching Hospitals Nhs Ft,4340872,1110055823,19/11/2020,5583.6,930.6,BSTPRJ,Better Start Projects,3401,General Services,Better Start Projects
Blackpool Council,1006099,Blackpool Teaching Hospitals Nhs Ft,4340873,1110055824,19/11/2020,4072.8,678.8,BSTPRJ,Better Start Projects,3401,General Services,Better Start Projects
Blackpool Council,1002210,Read & Errington,4340874,MRC0149/V6,09/11/2020,39113.37,6518.89,CXB91,Hra Capital Programme 2020/21,6501,Contract Payments,Capital - Chief Executive
Blackpool Council,1006238,Walton Summit Truck Centre Ltd,4341290,30245180,27/11/2020,383.5,63.92,CVMU,Cvmu,3041,Other Materials,Community & Env Services
Blackpool Council,1009524,E K Motor Factors Ltd,4341321,BLM1707850 ,06/11/2020,599.96,99.99,CVMU,Cvmu,3041,Other Materials,Community & Env Services
Blackpool Council,1029067,Johnston Sweepers Limited,4341328,61915942 ,20/11/2020,3888.18,648.03,CVMU,Cvmu,3041,Other Materials,Community & Env Services
Blackpool Council,1087126,Micheldever Tyre Services Ltd,4341337,63I28977,06/11/2020,1764,294,CVMU,Cvmu,3041,Other Materials,Community & Env Services
Blackpool Council,1087126,Micheldever Tyre Services Ltd,4341339,63I28958 ,02/11/2020,336.09,56.01,CVMU,Cvmu,3041,Other Materials,Community & Env Services
Blackpool Council,1106104,Bergmann Direct Ltd,4341350,23637,25/11/2020,4581.6,763.6,CVMU,Cvmu,2001,Purchases,Community & Env Services
Blackpool Council,1117913,Premier Care Limited,4341361,382829,11/11/2020,470.54,0,CWAN,Children With Additional Needs,4403,Special Needs - Children,Children'S Services
Blackpool Council,1123190,Cder Group Limted,4341365,144968,27/11/2020,5891.48,981.91,FBBEA,"Income, Recovery & Debtors",3807,Legal & Court Costs,Resources
Blackpool Council,1117913,Premier Care Limited,4341366,465231,09/11/2020,742.08,0,CWAN,Children With Additional Needs,4403,Special Needs - Children,Children'S Services
Blackpool Council,1091610,Communicate Slt Cic,4341377,INV-0460,09/11/2020,456,0,CWAN,Children With Additional Needs,4403,Special Needs - Children,Children'S Services
Blackpool Council,1117341,Little Blossoms Nursery Ltd,4341378,106.JS,11/11/2020,1197,0,CWAN,Children With Additional Needs,4403,Special Needs - Children,Children'S Services
Blackpool Council,1121350,Oliver House - Fox Lane Priory,4341379,A110000286,17/11/2020,32732.6,0,CWAN,Children With Additional Needs,4501,Private Contractors,Children'S Services
Blackpool Council,1121350,Oliver House - Fox Lane Priory,4341379,A110000286,17/11/2020,43389.73,0,JEA,Senior Management,4501,Private Contractors,Children'S Services
Blackpool Council,1006099,Blackpool Teaching Hospitals Nhs Ft,4341380,1110055849,19/11/2020,5418,0,BSTPRJ,Better Start Projects,3401,General Services,Better Start Projects
Blackpool Council,1009009,Hermolle Associates Ltd,4341383,10116,25/11/2020,468,78,CXB91,Hra Capital Programme 2020/21,6501,Contract Payments,Capital - Chief Executive
Blackpool Council,1123873,Jll - Amas Common Payments,4341580,25109838 NNDR,05/11/2020,295.08,0,TAAAA,Business Improvement Districts,7151,Bid Income,Business Improvement Districts
Blackpool Council,1124096,REDACTED PERSONAL DATA,4341591,SELF ISOLATION,02/11/2020,500,0,AD0344,C19 Self Isolate Payments,5004,Main-Self Isolate-C19 Payment,Contingencies
Blackpool Council,1124097,REDACTED PERSONAL DATA,4341592,SELF ISOLATION,02/11/2020,500,0,AD0344,C19 Self Isolate Payments,5004,Main-Self Isolate-C19 Payment,Contingencies
Blackpool Council,1108787,REDACTED PERSONAL DATA,4341593,SELF ISOLATION,02/11/2020,500,0,AD0344,C19 Self Isolate Payments,5004,Main-Self Isolate-C19 Payment,Contingencies
Blackpool Council,1124098,REDACTED PERSONAL DATA,4341594,SELF ISOLATION,02/11/2020,500,0,AD0344,C19 Self Isolate Payments,5004,Main-Self Isolate-C19 Payment,Contingencies
Blackpool Council,1124099,REDACTED PERSONAL DATA,4341595,SELF ISOLATION,02/11/2020,500,0,AD0344,C19 Self Isolate Payments,5004,Main-Self Isolate-C19 Payment,Contingencies
Blackpool Council,1106924,His Provision Cic,4341654,508,19/11/2020,625,0,BSTPRJ,Better Start Projects,3401,General Services,Better Start Projects
Blackpool Council,1084280,Alpha Biolabs,4341655,514174,05/11/2020,281.7,46.95,BAAA,Legal Services,4712,Experts Fees,Governance & Partnerships
Blackpool Council,1054707,REDACTED PERSONAL DATA,4341656,440292,05/11/2020,870,145,BAAA,Legal Services,4707,Counsels Fees,Governance & Partnerships
Blackpool Council,1005266,REDACTED PERSONAL DATA,4341658,344074,02/11/2020,677.58,0,JEA,Senior Management,4809,Special Guardianship,Children'S Services
Blackpool Council,1005947,REDACTED PERSONAL DATA,4341659,344009,02/11/2020,848.58,0,JEA,Senior Management,4809,Special Guardianship,Children'S Services
Blackpool Council,1005947,REDACTED PERSONAL DATA,4341660,344010,02/11/2020,638.58,0,JEA,Senior Management,4809,Special Guardianship,Children'S Services
Blackpool Council,1005947,REDACTED PERSONAL DATA,4341661,344236,02/11/2020,848.58,0,JEA,Senior Management,4809,Special Guardianship,Children'S Services
Blackpool Council,1006685,REDACTED PERSONAL DATA,4341662,344241,02/11/2020,741.78,0,JEA,Senior Management,4809,Special Guardianship,Children'S Services
Blackpool Council,1006685,REDACTED PERSONAL DATA,4341663,344240,02/11/2020,741.78,0,JEA,Senior Management,4809,Special Guardianship,Children'S Services
Blackpool Council,1006685,REDACTED PERSONAL DATA,4341664,344011,02/11/2020,741.78,0,JEA,Senior Management,4809,Special Guardianship,Children'S Services
Blackpool Council,1007093,REDACTED PERSONAL DATA,4341665,344006,02/11/2020,1285.72,0,JEA,Senior Management,4809,Special Guardianship,Children'S Services
Blackpool Council,1007093,REDACTED PERSONAL DATA,4341666,344234,02/11/2020,1195.72,0,JEA,Senior Management,4809,Special Guardianship,Children'S Services
Blackpool Council,1007093,REDACTED PERSONAL DATA,4341667,344325,02/11/2020,1195.72,0,JEA,Senior Management,4809,Special Guardianship,Children'S Services
Blackpool Council,1009775,REDACTED PERSONAL DATA,4341668,343940,02/11/2020,2507.15,0,JEA,Senior Management,4809,Special Guardianship,Children'S Services
Blackpool Council,1010522,REDACTED PERSONAL DATA,4341669,344076,02/11/2020,728.58,0,JEA,Senior Management,4809,Special Guardianship,Children'S Services
Blackpool Council,1013085,REDACTED PERSONAL DATA,4341670,344153,02/11/2020,638.58,0,JEA,Senior Management,4809,Special Guardianship,Children'S Services
Blackpool Council,1013085,REDACTED PERSONAL DATA,4341671,344152,02/11/2020,578.58,0,JEA,Senior Management,4809,Special Guardianship,Children'S Services
Blackpool Council,1018980,REDACTED PERSONAL DATA,4341672,344116,02/11/2020,1285.72,0,JBR,Lac - Placements,4814,Adoption Allowances,Children'S Services
Blackpool Council,1023504,REDACTED PERSONAL DATA,4341673,343898,02/11/2020,848.58,0,JEA,Senior Management,4809,Special Guardianship,Children'S Services
Blackpool Council,1023636,REDACTED PERSONAL DATA,4341674,344021,02/11/2020,638.58,0,JEA,Senior Management,4809,Special Guardianship,Children'S Services
Blackpool Council,1025390,REDACTED PERSONAL DATA,4341675,344069,02/11/2020,848.58,0,JEA,Senior Management,4811,Residence Orders,Children'S Services
Blackpool Council,1029378,REDACTED PERSONAL DATA,4341676,344168,02/11/2020,848.58,0,JEA,Senior Management,4811,Residence Orders,Children'S Services
Blackpool Council,1029394,REDACTED PERSONAL DATA,4341677,344263,02/11/2020,848.58,0,JEA,Senior Management,4809,Special Guardianship,Children'S Services
Blackpool Council,1038672,REDACTED PERSONAL DATA,4341678,343881,02/11/2020,565.72,0,JBR,Lac - Placements,4814,Adoption Allowances,Children'S Services
Blackpool Council,1042600,REDACTED PERSONAL DATA,4341679,343948,02/11/2020,848.58,0,JEA,Senior Management,4811,Residence Orders,Children'S Services
Blackpool Council,1043459,REDACTED PERSONAL DATA,4341680,343884,02/11/2020,638.58,0,JBR,Lac - Placements,4814,Adoption Allowances,Children'S Services
Blackpool Council,1043651,REDACTED PERSONAL DATA,4341681,344154,02/11/2020,848.58,0,JBR,Lac - Placements,4814,Adoption Allowances,Children'S Services
Blackpool Council,1043651,REDACTED PERSONAL DATA,4341682,344064,02/11/2020,638.58,0,JBR,Lac - Placements,4814,Adoption Allowances,Children'S Services
Blackpool Council,1043955,REDACTED PERSONAL DATA,4341683,343972,02/11/2020,728.58,0,JEA,Senior Management,4809,Special Guardianship,Children'S Services
Blackpool Council,1048741,REDACTED PERSONAL DATA,4341684,344304,02/11/2020,848.58,0,JEA,Senior Management,4809,Special Guardianship,Children'S Services
Blackpool Council,1048947,REDACTED PERSONAL DATA,4341685,343887,02/11/2020,848.58,0,JEA,Senior Management,4811,Residence Orders,Children'S Services
Blackpool Council,1050741,REDACTED PERSONAL DATA,4341686,344341,02/11/2020,2935.72,0,JEA,Senior Management,4809,Special Guardianship,Children'S Services
Blackpool Council,1052328,REDACTED PERSONAL DATA,4341687,344169,02/11/2020,848.58,0,JEA,Senior Management,4811,Residence Orders,Children'S Services
Blackpool Council,1052960,REDACTED PERSONAL DATA,4341688,344308,02/11/2020,638.58,0,JEA,Senior Management,4809,Special Guardianship,Children'S Services
Blackpool Council,1052960,REDACTED PERSONAL DATA,4341689,344309,02/11/2020,578.58,0,JEA,Senior Management,4809,Special Guardianship,Children'S Services
Blackpool Council,1054536,REDACTED PERSONAL DATA,4341690,344208,02/11/2020,848.58,0,JEA,Senior Management,4811,Residence Orders,Children'S Services
Blackpool Council,1054614,REDACTED PERSONAL DATA,4341691,344136,02/11/2020,728.58,0,JEA,Senior Management,4809,Special Guardianship,Children'S Services
Blackpool Council,1057277,REDACTED PERSONAL DATA,4341692,344061,02/11/2020,638.58,0,JBR,Lac - Placements,4814,Adoption Allowances,Children'S Services
Blackpool Council,1058573,REDACTED PERSONAL DATA,4341693,344124,02/11/2020,728.58,0,JEA,Senior Management,4809,Special Guardianship,Children'S Services
Blackpool Council,1059285,REDACTED PERSONAL DATA,4341694,343946,02/11/2020,1050,0,JBR,Lac - Placements,4814,Adoption Allowances,Children'S Services
Blackpool Council,1059285,REDACTED PERSONAL DATA,4341695,344138,02/11/2020,930,0,JEA,Senior Management,4809,Special Guardianship,Children'S Services
Blackpool Council,1059285,REDACTED PERSONAL DATA,4341696,343885,02/11/2020,1092.86,0,JBR,Lac - Placements,4814,Adoption Allowances,Children'S Services
Blackpool Council,1062123,REDACTED PERSONAL DATA,4341697,344165,02/11/2020,728.58,0,JBR,Lac - Placements,4814,Adoption Allowances,Children'S Services
Blackpool Council,1063757,REDACTED PERSONAL DATA,4341698,344081,02/11/2020,848.58,0,JEA,Senior Management,4809,Special Guardianship,Children'S Services
Blackpool Council,1068480,REDACTED PERSONAL DATA,4341699,344170,02/11/2020,552.86,0,JEA,Senior Management,4809,Special Guardianship,Children'S Services
Blackpool Council,1068524,REDACTED PERSONAL DATA,4341700,344158,02/11/2020,848.58,0,JEA,Senior Management,4809,Special Guardianship,Children'S Services
Blackpool Council,1068906,REDACTED PERSONAL DATA,4341701,344055,02/11/2020,565.72,0,JBR,Lac - Placements,4814,Adoption Allowances,Children'S Services
Blackpool Council,1068906,REDACTED PERSONAL DATA,4341702,344054,02/11/2020,565.72,0,JBR,Lac - Placements,4814,Adoption Allowances,Children'S Services
Blackpool Council,1068906,REDACTED PERSONAL DATA,4341703,344056,02/11/2020,565.72,0,JBR,Lac - Placements,4814,Adoption Allowances,Children'S Services
Blackpool Council,1069176,REDACTED PERSONAL DATA,4341704,344070,02/11/2020,552.86,0,JEA,Senior Management,4809,Special Guardianship,Children'S Services
Blackpool Council,1070512,REDACTED PERSONAL DATA,4341705,344094,02/11/2020,638.58,0,JEA,Senior Management,4809,Special Guardianship,Children'S Services
Blackpool Council,1070602,REDACTED PERSONAL DATA,4341706,344171,02/11/2020,552.86,0,JEA,Senior Management,4809,Special Guardianship,Children'S Services
Blackpool Council,1071018,REDACTED PERSONAL DATA,4341707,343941,02/11/2020,565.72,0,JBR,Lac - Placements,4814,Adoption Allowances,Children'S Services
Blackpool Council,1071018,REDACTED PERSONAL DATA,4341708,344160,02/11/2020,565.72,0,JBR,Lac - Placements,4814,Adoption Allowances,Children'S Services
Blackpool Council,1071018,REDACTED PERSONAL DATA,4341709,344057,02/11/2020,565.72,0,JBR,Lac - Placements,4814,Adoption Allowances,Children'S Services
Blackpool Council,1071683,REDACTED PERSONAL DATA,4341710,343890,02/11/2020,552.86,0,JEA,Senior Management,4809,Special Guardianship,Children'S Services
Blackpool Council,1071683,REDACTED PERSONAL DATA,4341711,344174,02/11/2020,552.86,0,JEA,Senior Management,4809,Special Guardianship,Children'S Services
Blackpool Council,1072770,REDACTED PERSONAL DATA,4341712,344172,02/11/2020,552.86,0,JEA,Senior Management,4809,Special Guardianship,Children'S Services
Blackpool Council,1074231,REDACTED PERSONAL DATA,4341713,344209,02/11/2020,552.86,0,JEA,Senior Management,4811,Residence Orders,Children'S Services
Blackpool Council,1076446,REDACTED PERSONAL DATA,4341714,343888,02/11/2020,552.86,0,JEA,Senior Management,4811,Residence Orders,Children'S Services
Blackpool Council,1076446,REDACTED PERSONAL DATA,4341715,343949,02/11/2020,552.86,0,JEA,Senior Management,4811,Residence Orders,Children'S Services
Blackpool Council,1077446,REDACTED PERSONAL DATA,4341716,344161,02/11/2020,565.72,0,JBR,Lac - Placements,4814,Adoption Allowances,Children'S Services
Blackpool Council,1077610,REDACTED PERSONAL DATA,4341717,343889,02/11/2020,552.86,0,JEA,Senior Management,4809,Special Guardianship,Children'S Services
Blackpool Council,1078284,REDACTED PERSONAL DATA,4341718,343951,02/11/2020,552.86,0,JEA,Senior Management,4809,Special Guardianship,Children'S Services
Blackpool Council,1078667,REDACTED PERSONAL DATA,4341719,344131,02/11/2020,565.72,0,JEA,Senior Management,4809,Special Guardianship,Children'S Services
Blackpool Council,1079501,REDACTED PERSONAL DATA,4341720,344002,02/11/2020,552.86,0,JEA,Senior Management,4809,Special Guardianship,Children'S Services
Blackpool Council,1079745,REDACTED PERSONAL DATA,4341721,344173,02/11/2020,552.86,0,JEA,Senior Management,4809,Special Guardianship,Children'S Services
Blackpool Council,1080101,REDACTED PERSONAL DATA,4341722,343950,02/11/2020,552.86,0,JEA,Senior Management,4809,Special Guardianship,Children'S Services
Blackpool Council,1080290,REDACTED PERSONAL DATA,4341723,344047,02/11/2020,1195.72,0,JEA,Senior Management,4809,Special Guardianship,Children'S Services
Blackpool Council,1080290,REDACTED PERSONAL DATA,4341724,344037,02/11/2020,1135.72,0,JEA,Senior Management,4809,Special Guardianship,Children'S Services
Blackpool Council,1080411,REDACTED PERSONAL DATA,4341725,343942,02/11/2020,565.72,0,JBR,Lac - Placements,4814,Adoption Allowances,Children'S Services
Blackpool Council,1081971,REDACTED PERSONAL DATA,4341726,343897,02/11/2020,1092.86,0,JEA,Senior Management,4809,Special Guardianship,Children'S Services
Blackpool Council,1081971,REDACTED PERSONAL DATA,4341727,343956,02/11/2020,1092.86,0,JEA,Senior Management,4809,Special Guardianship,Children'S Services
Blackpool Council,1082124,REDACTED PERSONAL DATA,4341728,343966,02/11/2020,578.58,0,JEA,Senior Management,4809,Special Guardianship,Children'S Services
Blackpool Council,1082476,REDACTED PERSONAL DATA,4341729,344097,02/11/2020,1002.86,0,JEA,Senior Management,4809,Special Guardianship,Children'S Services
Blackpool Council,1082476,REDACTED PERSONAL DATA,4341730,344190,02/11/2020,1002.86,0,JEA,Senior Management,4809,Special Guardianship,Children'S Services
Blackpool Council,1082476,REDACTED PERSONAL DATA,4341731,343911,02/11/2020,1092.86,0,JEA,Senior Management,4809,Special Guardianship,Children'S Services
Blackpool Council,1082803,REDACTED PERSONAL DATA,4341732,344260,02/11/2020,728.58,0,JEA,Senior Management,4811,Residence Orders,Children'S Services
Blackpool Council,1082803,REDACTED PERSONAL DATA,4341733,344300,02/11/2020,638.58,0,JEA,Senior Management,4811,Residence Orders,Children'S Services
Blackpool Council,1082861,REDACTED PERSONAL DATA,4341734,344159,02/11/2020,2892.86,0,JEA,Senior Management,4809,Special Guardianship,Children'S Services
Blackpool Council,1082861,REDACTED PERSONAL DATA,4341735,344051,02/11/2020,2724.86,0,JEA,Senior Management,4809,Special Guardianship,Children'S Services
Blackpool Council,1082861,REDACTED PERSONAL DATA,4341736,344050,02/11/2020,2892.86,0,JEA,Senior Management,4809,Special Guardianship,Children'S Services
Blackpool Council,1082861,REDACTED PERSONAL DATA,4341737,344339,02/11/2020,2724.86,0,JEA,Senior Management,4809,Special Guardianship,Children'S Services
Blackpool Council,1083419,REDACTED PERSONAL DATA,4341738,344004,02/11/2020,638.58,0,JEA,Senior Management,4809,Special Guardianship,Children'S Services
Blackpool Council,1083907,REDACTED PERSONAL DATA,4341739,344114,02/11/2020,552.86,0,JEA,Senior Management,4809,Special Guardianship,Children'S Services
Blackpool Council,1083907,REDACTED PERSONAL DATA,4341740,344296,02/11/2020,552.86,0,JEA,Senior Management,4809,Special Guardianship,Children'S Services
Blackpool Council,1083907,REDACTED PERSONAL DATA,4341741,344115,02/11/2020,552.86,0,JEA,Senior Management,4809,Special Guardianship,Children'S Services
Blackpool Council,1085922,REDACTED PERSONAL DATA,4341742,344071,02/11/2020,552.86,0,JEA,Senior Management,4809,Special Guardianship,Children'S Services
Blackpool Council,1085923,REDACTED PERSONAL DATA,4341743,343944,02/11/2020,638.58,0,JBR,Lac - Placements,4814,Adoption Allowances,Children'S Services
Blackpool Council,1085923,REDACTED PERSONAL DATA,4341744,344295,02/11/2020,1092.86,0,JBR,Lac - Placements,4814,Adoption Allowances,Children'S Services
Blackpool Council,1085923,REDACTED PERSONAL DATA,4341745,344237,02/11/2020,1050,0,JEA,Senior Management,4809,Special Guardianship,Children'S Services
Blackpool Council,1085923,REDACTED PERSONAL DATA,4341746,343980,02/11/2020,1002.86,0,JBR,Lac - Placements,4814,Adoption Allowances,Children'S Services
Blackpool Council,1085928,REDACTED PERSONAL DATA,4341747,344072,02/11/2020,552.86,0,JEA,Senior Management,4809,Special Guardianship,Children'S Services
Blackpool Council,1085928,REDACTED PERSONAL DATA,4341748,343955,02/11/2020,638.58,0,JEA,Senior Management,4809,Special Guardianship,Children'S Services
Blackpool Council,1085931,REDACTED PERSONAL DATA,4341749,344177,02/11/2020,848.58,0,JEA,Senior Management,4809,Special Guardianship,Children'S Services
Blackpool Council,1085931,REDACTED PERSONAL DATA,4341750,343893,02/11/2020,728.58,0,JEA,Senior Management,4809,Special Guardianship,Children'S Services
Blackpool Council,1086638,REDACTED PERSONAL DATA,4341751,344059,02/11/2020,565.72,0,JBR,Lac - Placements,4814,Adoption Allowances,Children'S Services
Blackpool Council,1087223,REDACTED PERSONAL DATA,4341752,343979,02/11/2020,565.72,0,JBR,Lac - Placements,4814,Adoption Allowances,Children'S Services
Blackpool Council,1087223,REDACTED PERSONAL DATA,4341753,344058,02/11/2020,565.72,0,JBR,Lac - Placements,4814,Adoption Allowances,Children'S Services
Blackpool Council,1087911,REDACTED PERSONAL DATA,4341754,344262,02/11/2020,1195.72,0,JEA,Senior Management,4809,Special Guardianship,Children'S Services
Blackpool Council,1088072,REDACTED PERSONAL DATA,4341755,343910,02/11/2020,638.58,0,JEA,Senior Management,4809,Special Guardianship,Children'S Services
Blackpool Council,1088081,REDACTED PERSONAL DATA,4341756,343995,02/11/2020,728.58,0,JEA,Senior Management,4809,Special Guardianship,Children'S Services
Blackpool Council,1088106,REDACTED PERSONAL DATA,4341757,344078,02/11/2020,638.58,0,JEA,Senior Management,4809,Special Guardianship,Children'S Services
Blackpool Council,1088133,REDACTED PERSONAL DATA,4341758,344307,02/11/2020,578.58,0,JEA,Senior Management,4809,Special Guardianship,Children'S Services
Blackpool Council,1088246,REDACTED PERSONAL DATA,4341759,344163,02/11/2020,638.58,0,JBR,Lac - Placements,4814,Adoption Allowances,Children'S Services
Blackpool Council,1088614,REDACTED PERSONAL DATA,4341760,344060,02/11/2020,565.72,0,JBR,Lac - Placements,4814,Adoption Allowances,Children'S Services
Blackpool Council,1088741,REDACTED PERSONAL DATA,4341761,343882,02/11/2020,638.58,0,JBR,Lac - Placements,4814,Adoption Allowances,Children'S Services
Blackpool Council,1088743,REDACTED PERSONAL DATA,4341762,344148,02/11/2020,638.58,0,JEA,Senior Management,4809,Special Guardianship,Children'S Services
Blackpool Council,1088744,REDACTED PERSONAL DATA,4341763,344122,02/11/2020,638.58,0,JEA,Senior Management,4809,Special Guardianship,Children'S Services
Blackpool Council,1089191,REDACTED PERSONAL DATA,4341764,344320,02/11/2020,848.58,0,JEA,Senior Management,4809,Special Guardianship,Children'S Services
Blackpool Council,1089191,REDACTED PERSONAL DATA,4341765,344264,02/11/2020,638.58,0,JEA,Senior Management,4809,Special Guardianship,Children'S Services
Blackpool Council,1089191,REDACTED PERSONAL DATA,4341766,344321,02/11/2020,638.58,0,JEA,Senior Management,4809,Special Guardianship,Children'S Services
Blackpool Council,1089503,REDACTED PERSONAL DATA,4341767,344088,02/11/2020,638.58,0,JEA,Senior Management,4809,Special Guardianship,Children'S Services
Blackpool Council,1089504,REDACTED PERSONAL DATA,4341768,343952,02/11/2020,728.58,0,JEA,Senior Management,4809,Special Guardianship,Children'S Services
Blackpool Council,1089505,REDACTED PERSONAL DATA,4341769,344075,02/11/2020,638.58,0,JEA,Senior Management,4809,Special Guardianship,Children'S Services
Blackpool Council,1089506,REDACTED PERSONAL DATA,4341770,344288,02/11/2020,2094.29,0,JEA,Senior Management,4809,Special Guardianship,Children'S Services
Blackpool Council,1089980,REDACTED PERSONAL DATA,4341771,344312,02/11/2020,1002.86,0,JEA,Senior Management,4809,Special Guardianship,Children'S Services
Blackpool Council,1089980,REDACTED PERSONAL DATA,4341772,344180,02/11/2020,638.58,0,JEA,Senior Management,4809,Special Guardianship,Children'S Services
Blackpool Council,1089980,REDACTED PERSONAL DATA,4341773,344133,02/11/2020,1002.86,0,JEA,Senior Management,4809,Special Guardianship,Children'S Services
Blackpool Council,1090054,REDACTED PERSONAL DATA,4341774,344256,02/11/2020,1002.86,0,JEA,Senior Management,4809,Special Guardianship,Children'S Services
Blackpool Council,1090054,REDACTED PERSONAL DATA,4341775,344026,02/11/2020,1092.86,0,JEA,Senior Management,4809,Special Guardianship,Children'S Services
Blackpool Council,1090278,REDACTED PERSONAL DATA,4341776,343943,02/11/2020,638.58,0,JBR,Lac - Placements,4814,Adoption Allowances,Children'S Services
Blackpool Council,1090507,REDACTED PERSONAL DATA,4341777,344162,02/11/2020,565.72,0,JBR,Lac - Placements,4814,Adoption Allowances,Children'S Services
Blackpool Council,1090553,REDACTED PERSONAL DATA,4341778,344121,02/11/2020,552.86,0,JEA,Senior Management,4811,Residence Orders,Children'S Services
Blackpool Council,1090574,REDACTED PERSONAL DATA,4341779,344206,02/11/2020,1135.72,0,JEA,Senior Management,4809,Special Guardianship,Children'S Services
Blackpool Council,1090574,REDACTED PERSONAL DATA,4341780,343931,02/11/2020,1285.72,0,JEA,Senior Management,4809,Special Guardianship,Children'S Services
Blackpool Council,1090630,REDACTED PERSONAL DATA,4341781,343953,02/11/2020,728.58,0,JEA,Senior Management,4809,Special Guardianship,Children'S Services
Blackpool Council,1090630,REDACTED PERSONAL DATA,4341782,343892,02/11/2020,728.58,0,JEA,Senior Management,4809,Special Guardianship,Children'S Services
Blackpool Council,1091208,REDACTED PERSONAL DATA,4341783,344238,02/11/2020,728.58,0,JEA,Senior Management,4809,Special Guardianship,Children'S Services
Blackpool Council,1092226,REDACTED PERSONAL DATA,4341784,344175,02/11/2020,728.58,0,JEA,Senior Management,4809,Special Guardianship,Children'S Services
Blackpool Council,1092955,REDACTED PERSONAL DATA,4341785,344080,02/11/2020,638.58,0,JEA,Senior Management,4809,Special Guardianship,Children'S Services
Blackpool Council,1093033,REDACTED PERSONAL DATA,4341786,344073,02/11/2020,638.58,0,JEA,Senior Management,4809,Special Guardianship,Children'S Services
Blackpool Council,1093432,REDACTED PERSONAL DATA,4341787,344079,02/11/2020,728.58,0,JEA,Senior Management,4809,Special Guardianship,Children'S Services
Blackpool Council,1093432,REDACTED PERSONAL DATA,4341788,343895,02/11/2020,728.58,0,JEA,Senior Management,4809,Special Guardianship,Children'S Services
Blackpool Council,1093556,REDACTED PERSONAL DATA,4341789,343954,02/11/2020,638.58,0,JEA,Senior Management,4809,Special Guardianship,Children'S Services
Blackpool Council,1093573,REDACTED PERSONAL DATA,4341790,343999,02/11/2020,728.58,0,JEA,Senior Management,4809,Special Guardianship,Children'S Services
Blackpool Council,1094329,REDACTED PERSONAL DATA,4341791,344179,02/11/2020,638.58,0,JEA,Senior Management,4809,Special Guardianship,Children'S Services
Blackpool Council,1095249,REDACTED PERSONAL DATA,4341792,344233,02/11/2020,638.58,0,JEA,Senior Management,4809,Special Guardianship,Children'S Services
Blackpool Council,1095249,REDACTED PERSONAL DATA,4341793,344001,02/11/2020,638.58,0,JEA,Senior Management,4809,Special Guardianship,Children'S Services
Blackpool Council,1095249,REDACTED PERSONAL DATA,4341794,344000,02/11/2020,728.58,0,JEA,Senior Management,4809,Special Guardianship,Children'S Services
Blackpool Council,1095280,REDACTED PERSONAL DATA,4341795,344303,02/11/2020,728.58,0,JEA,Senior Management,4811,Residence Orders,Children'S Services
Blackpool Council,1095280,REDACTED PERSONAL DATA,4341796,344013,02/11/2020,728.58,0,JEA,Senior Management,4811,Residence Orders,Children'S Services
Blackpool Council,1095510,REDACTED PERSONAL DATA,4341797,343912,02/11/2020,728.58,0,JEA,Senior Management,4809,Special Guardianship,Children'S Services
Blackpool Council,1095510,REDACTED PERSONAL DATA,4341798,344192,02/11/2020,848.58,0,JEA,Senior Management,4809,Special Guardianship,Children'S Services
Blackpool Council,1095871,REDACTED PERSONAL DATA,4341799,344254,02/11/2020,1002.86,0,JEA,Senior Management,4809,Special Guardianship,Children'S Services
Blackpool Council,1095871,REDACTED PERSONAL DATA,4341800,344314,02/11/2020,1092.86,0,JEA,Senior Management,4809,Special Guardianship,Children'S Services
Blackpool Council,1095873,REDACTED PERSONAL DATA,4341801,344184,02/11/2020,638.58,0,JEA,Senior Management,4809,Special Guardianship,Children'S Services
Blackpool Council,1095956,REDACTED PERSONAL DATA,4341802,343894,02/11/2020,638.58,0,JEA,Senior Management,4809,Special Guardianship,Children'S Services
Blackpool Council,1096099,REDACTED PERSONAL DATA,4341803,343958,02/11/2020,638.58,0,JEA,Senior Management,4809,Special Guardianship,Children'S Services
Blackpool Council,1096099,REDACTED PERSONAL DATA,4341804,343957,02/11/2020,728.58,0,JEA,Senior Management,4809,Special Guardianship,Children'S Services
Blackpool Council,1096411,REDACTED PERSONAL DATA,4341805,344092,02/11/2020,728.58,0,JEA,Senior Management,4809,Special Guardianship,Children'S Services
Blackpool Council,1096411,REDACTED PERSONAL DATA,4341806,343961,02/11/2020,638.58,0,JEA,Senior Management,4809,Special Guardianship,Children'S Services
Blackpool Council,1096569,REDACTED PERSONAL DATA,4341807,343891,02/11/2020,638.58,0,JEA,Senior Management,4809,Special Guardianship,Children'S Services
Blackpool Council,1096576,REDACTED PERSONAL DATA,4341808,344176,02/11/2020,638.58,0,JEA,Senior Management,4809,Special Guardianship,Children'S Services
Blackpool Council,1096875,REDACTED PERSONAL DATA,4341809,344077,02/11/2020,638.58,0,JEA,Senior Management,4809,Special Guardianship,Children'S Services
Blackpool Council,1096875,REDACTED PERSONAL DATA,4341810,343904,02/11/2020,638.58,0,JEA,Senior Management,4809,Special Guardianship,Children'S Services
Blackpool Council,1097143,REDACTED PERSONAL DATA,4341811,344298,02/11/2020,728.58,0,JBR,Lac - Placements,4814,Adoption Allowances,Children'S Services
Blackpool Council,1097143,REDACTED PERSONAL DATA,4341812,344297,02/11/2020,728.58,0,JBR,Lac - Placements,4814,Adoption Allowances,Children'S Services
Blackpool Council,1097161,REDACTED PERSONAL DATA,4341813,344164,02/11/2020,728.58,0,JBR,Lac - Placements,4814,Adoption Allowances,Children'S Services
